Workbook

Sheet Inputs
A1: INPUTS
A4: Municipal Grouping | B4: Generation | C4: Marketed or Calculated Marketed Tonnes | D4: Recycling Rate | E4: Residential Collection Costs | F4: Residential Processing Costs | G4: Residential Depot/Transfer Costs | H4: Residential Promotion & Education Costs | I4: Interest on Municipal Capital | J4: Admin Costs | K4: Gross Costs | L4: Total Gross Revenue | M4: Net Cost (per tonne)
A5: Large Urban | B5: 674290.8117 | C5: 426542.74 | D5: =C5/B5 -> 0.6325797899 | E5: 188.829009 | F5: 137.1379191 | G5: 24.81265301 | H5: 7.974631944 | I5: 8.836070964 | J5: 13.88715597 | K5: 381.47744 | L5: 103.892068 | M5: =K5-L5 -> 277.585372
A6: Urban Regional | B6: 315332.6891 | C6: 229743.24 | D6: =C6/B6 -> 0.7285741311 | E6: 197.180157 | F6: 96.7237544 | G6: 2.62960303 | H6: 6.858970954 | I6: 5.954404143 | J6: 10.64909649 | K6: 319.995986 | L6: 118.3947324 | M6: 201.6012536
A7: Medium Urban | B7: 86463.84565 | C7: 51230.33511 | D7: 0.5925058587 | E7: 144.1836303 | F7: 89.7888423 | G7: 10.46898852 | H7: 7.646891615 | I7: 3.437511967 | J7: 9.405445796 | K7: 264.9313105 | L7: 79.02760252 | M7: 185.903708
A8: Rural Regional | B8: 173662.1525 | C8: 96390.61955 | D8: 0.5550467858 | E8: 232.0042002 | F8: 119.7109757 | G8: 28.71759299 | H8: 7.40006946 | I8: 4.446891741 | J8: 14.74347573 | K8: 407.0232058 | L8: 104.3007938 | M8: 302.7224121
A9: Small Urban | B9: 38679.50095 | C9: 25987.49194 | D9: 0.6718673019 | E9: 190.0216324 | F9: 40.68018616 | G9: 10.16680296 | H9: 3.390387968 | I9: 0.4261242303 | J9: 7.731370171 | K9: 252.4165039 | L9: 37.69588779 | M9: 214.7206161
A10: Rural Collection - North | B10: 22803.3807 | C10: 10226.45037 | D10: 0.4484620285 | E10: 249.1599058 | F10: 63.3684071 | G10: 95.72773298 | H10: 12.59536744 | I10: 6.610426647 | J10: 17.48529779 | K10: 444.9471378 | L10: 16.77648097 | M10: 428.1706568
A11: Rural Collection - South | B11: 75372.40467 | C11: 40982.42892 | D11: 0.5437325385 | E11: 317.3857254 | F11: 68.68177446 | G11: 57.18154125 | H11: 7.42895109 | I11: 3.933930815 | J11: 16.33796526 | K11: 470.9498882 | L11: 51.22064151 | M11: 419.7292467
A12: Rural Depot - North | B12: 16414.60266 | C12: 5042.65875 | D12: 0.3072056543 | E12: 21.317901 | F12: 84.93227308 | G12: 510.5247683 | H12: 5.475030409 | I12: 13.81721894 | J12: 29.01306379 | K12: 665.0802555 | L12: 39.05824085 | M12: 626.0220147
A13: Rural Depot - South | B13: 18573.97774 | C13: 6778.423534 | D13: 0.3649419434 | E13: 47.2208956 | F13: 41.56607928 | G13: 386.9000833 | H13: 10.17344515 | I13: 1.480643685 | J13: 21.024092 | K13: 508.365239 | L13: 7.396241877 | M13: 500.9689971
A14: Total | B14: =SUM(B5:B13) -> 1421593.366 | C14: =SUM(C5:C13) -> 892924.3882 | D14: =C14/B14 -> 0.6281151909 | E14: =SUMPRODUCT(E5:E13,$C$5:$C$13)/SUM($C$5:$C$13) -> 197.6820039 | F14: =SUMPRODUCT(F5:F13,$C$5:$C$13)/SUM($C$5:$C$13) -> 114.3274103 | G14: 26.06693813 | H14: 7.503784675 | I14: 6.788143241 | J14: 13.00346891 | K14: 365.3717492 | L14: 99.80066689 | M14: =SUMPRODUCT(M5:M13,$C$5:$C$13)/SUM($C$5:$C$13) -> 265.5710823
A21: Enter Goal Recycling Rate: | B21: 0.7
A23: OUTPUTS
A25: Municipal Grouping | B25: Printed Paper | C25: OCC/OBB | D25: Mixed Paper | E25: Polycoat | F25: PET | G25: HDPE | H25: Plastic Film | I25: Tubs and Lids | J25: Polystyrene | K25: Mixed Plastic | L25: Steel | M25: Aluminum | N25: Flint Glass | O25: Coloured Glas
A26: Large Urban | B26: =$C$5*Sheet10!B79 -> 258168.7852 | C26: =$C$5*Sheet10!C79 -> 83409.28978 | D26: =$C$5*Sheet10!D79 -> 289.6616264 | E26: =$C$5*Sheet10!E79 -> 2284.486659 | F26: =$C$5*Sheet10!F79 -> 11404.29913 | G26: =$C$5*Sheet10!G79 -> 6585.009627 | H26: =$C$5*Sheet10!H79 -> 1424.219956 | I26: =$C$5*Sheet10!I79 -> 774.5055312 | J26: =$C$5*Sheet10!J79 -> 107.6853574 | K26: =$C$5*Sheet10!K79 -> 2433.774814 | L26: =$C$5*Sheet10!L79 -> 11420.84589 | M26: =$C$5*Sheet10!M79 -> 3532.518149 | N26: =$C$5*Sheet10!N79 -> 37001.72352 | O26: =$C$5*Sheet10!O79 -> 7705.934741
A27: Urban Regional | B27: =$C$6*Sheet10!B80 -> 123201.9166 | C27: =$C$6*Sheet10!C80 -> 40565.83323 | D27: =$C$6*Sheet10!D80 -> 9335.147272 | E27: =$C$6*Sheet10!E80 -> 1641.144541 | F27: =$C$6*Sheet10!F80 -> 9055.48373 | G27: =$C$6*Sheet10!G80 -> 3479.337701 | H27: =$C$6*Sheet10!H80 -> 849.6293582 | I27: =$C$6*Sheet10!I80 -> 987.6593586 | J27: =$C$6*Sheet10!J80 -> 1.849936065 | K27: =$C$6*Sheet10!K80 -> 6539.095908 | L27: =$C$6*Sheet10!L80 -> 8801.622564 | M27: =$C$6*Sheet10!M80 -> 2862.229093 | N27: =$C$6*Sheet10!N80 -> 18789.20848 | O27: =$C$6*Sheet10!O80 -> 3633.082252
A28: Medium Urban | B28: =$C$7*Sheet10!B81 -> 30391.06971 | C28: =$C$7*Sheet10!C81 -> 7891.783542 | D28: =$C$7*Sheet10!D81 -> 0 | E28: =$C$7*Sheet10!E81 -> 523.2553635 | F28: =$C$7*Sheet10!F81 -> 2421.37036 | G28: =$C$7*Sheet10!G81 -> 1394.415037 | H28: =$C$7*Sheet10!H81 -> 79.10527137 | I28: =$C$7*Sheet10!I81 -> 145.1683711 | J28: =$C$7*Sheet10!J81 -> 2.212497369 | K28: =$C$7*Sheet10!K81 -> 1470.606467 | L28: =$C$7*Sheet10!L81 -> 2001.628353 | M28: =$C$7*Sheet10!M81 -> 980.6460742 | N28: =$C$7*Sheet10!N81 -> 3166.060836 | O28: =$C$7*Sheet10!O81 -> 763.0132271
A29: Rural Regional | B29: =$C$8*Sheet10!B82 -> 44224.36489 | C29: =$C$8*Sheet10!C82 -> 19925.42903 | D29: =$C$8*Sheet10!D82 -> 7961.462551 | E29: =$C$8*Sheet10!E82 -> 457.1028726 | F29: =$C$8*Sheet10!F82 -> 3395.672905 | G29: =$C$8*Sheet10!G82 -> 1554.530806 | H29: =$C$8*Sheet10!H82 -> 1199.988116 | I29: =$C$8*Sheet10!I82 -> 277.7277767 | J29: =$C$8*Sheet10!J82 -> 58.15492439 | K29: =$C$8*Sheet10!K82 -> 3784.137341 | L29: =$C$8*Sheet10!L82 -> 3941.261412 | M29: =$C$8*Sheet10!M82 -> 1314.309575 | N29: =$C$8*Sheet10!N82 -> 6495.181106 | O29: =$C$8*Sheet10!O82 -> 1801.296246
A30: Small Urban | B30: =$C$9*Sheet10!B83 -> 11618.53271 | C30: =$C$9*Sheet10!C83 -> 5675.490651 | D30: =$C$9*Sheet10!D83 -> 1292.150554 | E30: =$C$9*Sheet10!E83 -> 239.6296505 | F30: =$C$9*Sheet10!F83 -> 1208.688696 | G30: =$C$9*Sheet10!G83 -> 779.5241236 | H30: =$C$9*Sheet10!H83 -> 231.4471528 | I30: =$C$9*Sheet10!I83 -> 222.1816236 | J30: =$C$9*Sheet10!J83 -> 6.342085954 | K30: =$C$9*Sheet10!K83 -> 526.4885507 | L30: =$C$9*Sheet10!L83 -> 1091.251409 | M30: =$C$9*Sheet10!M83 -> 505.9760463 | N30: =$C$9*Sheet10!N83 -> 1962.05501 | O30: =$C$9*Sheet10!O83 -> 627.7336736
A31: Rural Collection - North | B31: =$B$10*Sheet10!B84 -> 12312.45298 | C31: =$B$10*Sheet10!C84 -> 5494.351448 | D31: =$B$10*Sheet10!D84 -> 146.676042 | E31: =$B$10*Sheet10!E84 -> 182.096737 | F31: =$B$10*Sheet10!F84 -> 995.5631593 | G31: =$B$10*Sheet10!G84 -> 483.5146182 | H31: =$B$10*Sheet10!H84 -> 150.0824458 | I31: =$B$10*Sheet10!I84 -> 88.94276438 | J31: =$B$10*Sheet10!J84 -> 5.510280312 | K31: =$B$10*Sheet10!K84 -> 40.33605496 | L31: =$B$10*Sheet10!L84 -> 770.5902226 | M31: =$B$10*Sheet10!M84 -> 333.7075731 | N31: =$B$10*Sheet10!N84 -> 1510.488776 | O31: =$B$10*Sheet10!O84 -> 289.0675943
A32: Rural Collection - South | B32: =$C$11*Sheet10!B85 -> 20111.8602 | C32: =$C$11*Sheet10!C85 -> 8846.155972 | D32: =$C$11*Sheet10!D85 -> 580.0491974 | E32: =$C$11*Sheet10!E85 -> 421.5063077 | F32: =$C$11*Sheet10!F85 -> 2058.258775 | G32: =$C$11*Sheet10!G85 -> 754.5824738 | H32: =$C$11*Sheet10!H85 -> 556.1416495 | I32: =$C$11*Sheet10!I85 -> 139.334694 | J32: =$C$11*Sheet10!J85 -> 14.42169089 | K32: =$C$11*Sheet10!K85 -> 751.3067093 | L32: =$C$11*Sheet10!L85 -> 1614.256227 | M32: =$C$11*Sheet10!M85 -> 722.1659393 | N32: =$C$11*Sheet10!N85 -> 3409.031152 | O32: =$C$11*Sheet10!O85 -> 1003.357935
A33: Rural Depot - North | B33: =$C$12*Sheet10!B86 -> 2493.100745 | C33: =$C$12*Sheet10!C86 -> 1758.425526 | D33: =$C$12*Sheet10!D86 -> 3.331834872 | E33: =$C$12*Sheet10!E86 -> 37.96857696 | F33: =$C$12*Sheet10!F86 -> 222.7538396 | G33: =$C$12*Sheet10!G86 -> 109.0006753 | H33: =$C$12*Sheet10!H86 -> 52.54363874 | I33: =$C$12*Sheet10!I86 -> 18.23002336 | J33: =$C$12*Sheet10!J86 -> 1.129406529 | K33: =$C$12*Sheet10!K86 -> 27.32554732 | L33: =$C$12*Sheet10!L86 -> 183.4363143 | M33: =$C$12*Sheet10!M86 -> 94.31173552 | N33: =$C$12*Sheet10!N86 -> 33.87866538 | O33: =$C$12*Sheet10!O86 -> 7.222221824
A34: Rural Depot - South | B34: =$C$13*Sheet10!B87 -> 2410.387373 | C34: =$C$13*Sheet10!C87 -> 1842.047938 | D34: =$C$13*Sheet10!D87 -> 968.292559 | E34: =$C$13*Sheet10!E87 -> 32.56389601 | F34: =$C$13*Sheet10!F87 -> 392.0701342 | G34: =$C$13*Sheet10!G87 -> 199.3498411 | H34: =$C$13*Sheet10!H87 -> 102.7187951 | I34: =$C$13*Sheet10!I87 -> 30.91251544 | J34: =$C$13*Sheet10!J87 -> 2.262955803 | K34: =$C$13*Sheet10!K87 -> 85.11449046 | L34: =$C$13*Sheet10!L87 -> 298.0691295 | M34: =$C$13*Sheet10!M87 -> 115.8993213 | N34: =$C$13*Sheet10!N87 -> 221.6524912 | O34: =$C$13*Sheet10!O87 -> 77.08209344
A37: OUTPUTS
C38: Large Urban | D38: Urban Regional | E38: Medium Urban | F38: Rural Regional | G38: Small Urban | H38: Rural Collection - North | I38: Rural Collection - South | J38: Rural Depot - North | K38: Rural Depot - South | L38: Revenue
A39: Gross Collection Costs | C39: =E5*C5 -> 80543642.87 | D39: =E6*C6 -> 45300808.14 | E39: =E7*C7 -> 7386575.7 | F39: =E8*C8 -> 22363028.6 | G39: =E9*C9 -> 4938185.64 | H39: =E10*C10 -> 2548021.41 | I39: =E11*C11 -> 13007237.93 | J39: =E12*C12 -> 107498.9 | K39: =E13*C13 -> 320083.23 | L39: =L5*C5 -> 44314407.33
A40: Gross Processing Costs | C40: =F5*C5 -> 58495183.79 | D40: =F6*C6 -> 22221628.72 | E40: =F7*C7 -> 4599912.48 | F40: =F8*C8 -> 11539015.11 | G40: =F9*C9 -> 1057176.01 | H40: =F10*C10 -> 648033.87 | I40: =F11*C11 -> 2814745.94 | J40: =F12*C12 -> 428284.47 | K40: =F13*C13 -> 281752.49 | L40: =L6*C6 -> 27200389.43
A41: Gross Depot/Transfer Station Costs | C41: =G5*C5 -> 10583657 | D41: =G6*C6 -> 604133.52 | E41: =G7*C7 -> 536329.79 | F41: =G8*C8 -> 2768106.58 | G41: =G9*C9 -> 264209.71 | H41: =G10*C10 -> 978954.91 | I41: =G11*C11 -> 2343438.45 | J41: =G12*C12 -> 2574402.19 | K41: =G13*C13 -> 2622572.63 | L41: 4048610.56
A42: Gross Promotion and Education Costs | C42: =H5*C5 -> 3401521.36 | D42: =H6*C6 -> 1575802.21 | E42: =H7*C7 -> 391752.82 | F42: =H8*C8 -> 713297.28 | G42: =H9*C9 -> 88107.68 | H42: =H10*C10 -> 128805.9 | I42: =H11*C11 -> 304456.46 | J42: =H12*C12 -> 27608.71 | K42: =H13*C13 -> 68959.92 | L42: 10053618.13
A43: Gross Administration Costs | C43: =J5*C5 -> 5923465.56 | D43: =J6*C6 -> 2446557.93 | E43: =J7*C7 -> 481844.14 | F43: =J8*C8 -> 1421132.76 | G43: =J9*C9 -> 200918.92 | H43: =J10*C10 -> 178812.53 | I43: =J11*C11 -> 669569.5 | J43: =J12*C12 -> 146302.98 | K43: =J13*C13 -> 142510.2 | L43: 979621.58
A44: Gross Interest on Municipal Capital Costs | C44: =I5*C5 -> 3768961.92 | D44: =I6*C6 -> 1367984.1 | E44: =I7*C7 -> 176104.89 | F44: =I8*C8 -> 428638.65 | G44: =I9*C9 -> 11073.9 | H44: =I10*C10 -> 67601.2 | I44: =I11*C11 -> 161222.04 | J44: =I12*C12 -> 69675.52 | K44: =I13*C13 -> 10036.43 | L44: 171563.85
A46: Gross System Costs: | B46: =SUM(C39:K44) -> 326249345.6
A47: Net System Costs: | B47: =B46-SUM(L39:L44) -> 239481134.7
A48: Net Cost Per Tonne | B48: =B47/C14 -> 268.1986716
A52: Change in Gross Costs | B52: =B46-Sheet10!B89 -> 0
A53: Change in Net Costs | B53: =B47-Sheet10!B90 -> 0
A54: Change in Net Cost Per Tonne | B54: =M14-Sheet10!B91 -> 0

Sheet Additional Info
A1: Material | B1: Change in Material Recovery | S1: Material | T1: Goal | U1: Default
A2: Printed Paper | B2: =T2-U2 -> 0 | S2: Printed Paper | T2: =SUM(Inputs!B26:B34) -> 504932.4704 | U2: 504932.4704
A3: OCC/OBB | B3: =T3-U3 -> 0 | S3: OCC/OBB | T3: =SUM(Inputs!C26:C34) -> 175408.8071 | U3: 175408.8071
A4: Mixed Paper | B4: 0 | S4: Mixed Paper | T4: =SUM(Inputs!D26:D34) -> 20576.77164 | U4: 20576.77164
A5: Polycoat | B5: 0 | S5: Polycoat | T5: =SUM(Inputs!E26:E34) -> 5819.754604 | U5: 5819.754604
A6: PET | B6: 0 | S6: PET | T6: =SUM(Inputs!F26:F34) -> 31154.16073 | U6: 31154.16073
A7: HDPE | B7: 0 | S7: HDPE | T7: =SUM(Inputs!G26:G34) -> 15339.2649 | U7: 15339.2649
A8: Plastic Film | B8: 0 | S8: Plastic Film | T8: =SUM(Inputs!H26:H34) -> 4645.876383 | U8: 4645.876383
A9: Tubs and Lids | B9: 0 | S9: Tubs and Lids | T9: =SUM(Inputs!I26:I34) -> 2684.662658 | U9: 2684.662658
A10: Polystyrene | B10: 0 | S10: Polystyrene | T10: =SUM(Inputs!J26:J34) -> 199.5691347 | U10: 199.5691347
A11: Mixed Plastic | B11: 0 | S11: Mixed Plastic | T11: =SUM(Inputs!K26:K34) -> 15658.18588 | U11: 15658.18588
A12: Steel | B12: 0 | S12: Steel | T12: =SUM(Inputs!L26:L34) -> 30122.96152 | U12: 30122.96152
A13: Aluminum | B13: 0 | S13: Aluminum | T13: =SUM(Inputs!M26:M34) -> 10461.76351 | U13: 10461.76351
A14: Flint Glass | B14: 0 | S14: Flint Glass | T14: =SUM(Inputs!N26:N34) -> 72589.28004 | U14: 72589.28004
A15: Coloured Glas | B15: 0 | S15: Coloured Glas | T15: =SUM(Inputs!O26:O34) -> 15907.78998 | U15: 15907.78998

Sheet Growth Trends (hidden)
A3: Category | B3: Material | C3: 2005 Quantity Generated | D3: 2006 Quantity Generated | E3: 2007 Quantity Generated | F3: 2008 Quantity Generated | G3: 2009 Quantity Generated | H3: 2010 Quantity Generated | I3: 2011 Quantity Generated | J3: 2012 Quantity Generated | K3: 2013 Quantity Generated | L3: 2014 Quantity Generated | M3: 2015 Quantity Generated | N3: 2016 Quantity Generated | O3: 2017 Quantity Generated | P3: 2018 Quantity Generated | Q3: 2019 Quantity Generated
C4: (tonnes) | D4: (tonnes) | E4: (tonnes) | F4: (tonnes) | G4: (tonnes) | H4: (tonnes) | I4: (tonnes) | J4: (tonnes) | K4: (tonnes) | L4: (tonnes) | M4: (tonnes) | N4: (tonnes) | O4: (tonnes) | P4: (tonnes) | Q4: (tonnes)
A5: PRINTED PAPER
B6: Newsprint - CNA/OCNA | C6: 264800 | D6: 283482.9574 | E6: 268224.0016 | F6: 259569.7962 | G6: 269247.1196 | H6: 255784.7636 | I6: 226369.5158 | J6: 212787.8 | K6: 213799.6934 | L6: 217374.8181 | M6: 203648.9236 | N6: 195740.7194 | O6: 187832.5152 | P6: 179924.311 | Q6: 172016.1068
B7: Newsprint - Non-CNA/OCNA | C7: 136400 | D7: 134698.7691 | E7: 128557.0658 | F7: 124409.1922 | G7: 129047.436 | H7: 125176.0129 | I7: 110780.7715 | J7: 117427.86 | K7: 145964.584 | L7: 148405.3807 | M7: 132970.2544 | N7: 133494.5358 | O7: 134018.8171 | P7: 134543.0984 | Q7: 135067.3797
B8: Magazines and Catalogues | C8: 95100 | D8: 96349.2427 | E8: 97267.03552 | F8: 89652.60294 | G8: 91111.66274 | H8: 91339.4419 | I8: 85585.05706 | J8: 83017.45 | K8: 78941.77287 | L8: 78908.18384 | M8: 77033.86428 | N8: 74907.79506 | O8: 72781.72585 | P8: 70655.65663 | Q8: 68529.58742
B9: Telephone Books | C9: 15000 | D9: 16089.739 | E9: 21089.63886 | F9: 14431.04237 | G9: 19932.50918 | H9: 15391.627 | I9: 13852.4643 | J9: 10389 | K9: 9002.460688 | L9: 8328.91624 | M9: 8703.056007 | N9: 7676.204415 | O9: 6649.352822 | P9: 5622.50123 | Q9: 4595.649638
B10: Other Printed Paper | C10: 127800 | D10: 129368.3886 | E10: 122082.0833 | F10: 117200.0499 | G10: 120303.4615 | H10: 121205.7374 | I10: 118781.6227 | J10: 114030.72 | K10: 125433.792 | L10: 128244.9524 | M10: 120506.8332 | N10: 120154.4246 | O10: 119802.0159 | P10: 119449.6073 | Q10: 119097.1986
A11: Printed Paper Total | C11: 639100 | D11: 659989.0968 | E11: 637219.8251 | F11: 605262.6836 | G11: 629642.189 | H11: 608897.5829 | I11: 555369.4313 | J11: 537652.83 | K11: 573142.3029 | L11: 581262.2513 | M11: 542862.9315 | N11: 531973.6792 | O11: 521084.4269 | P11: 510195.1745 | Q11: 499305.9222
A13: PACKAGING
A14: Paper Based Packaging | B14: Corrugated Cardboard | C14: 140000 | D14: 141800 | E14: 165706.1837 | F14: 162845.6933 | G14: 162846.526 | H14: 169170.4194 | I14: 173399.6798 | J14: 171666 | K14: 173382.66 | L14: 169360.6425 | M14: 181454.7584 | N14: 184806.9361 | O14: 188159.1139 | P14: 191511.2917 | Q14: 194863.4695
B15: Boxboard | C15: 130500 | D15: 132200 | E15: 127388.2184 | F15: 123773.5515 | G15: 127665.9472 | H15: 130538.431 | I15: 127274.9703 | J15: 128547.75 | K15: 157200.9265 | L15: 163987.5138 | M15: 151426.6811 | N15: 154430.1266 | O15: 157433.5721 | P15: 160437.0176 | Q15: 163440.4631
B16: Gable Top Cartons | C16: 42000 | D16: 42500 | E16: 37673.00038 | F16: 37093.50868 | G16: 38387.39431 | H16: 39289.49807 | I16: 38503.70811 | J16: 40429.2 | K16: 14221.14687 | L16: 14248.79104 | M16: 20141.31967 | N16: 17542.53693 | O16: 14943.75418 | P16: 12344.97144 | Q16: 9746.188701
B17: Paper Laminants | C17: 2800 | D17: 2800 | E17: 3543.285095 | F17: 3412.817898 | G17: 3940.597531 | H17: 4252.201573 | I17: 4082.11351 | J17: 4245.28 | K17: 41844.222 | L17: 39205.14414 | M17: 31238.7434 | N17: 34916.23016 | O17: 38593.71693 | P17: 42271.2037 | Q17: 45948.69047
B18: Aseptic Containers | C18: 12800 | D18: 12900 | E18: 15145.08691 | F18: 14433.37452 | G18: 14835.54606 | H18: 15184.18139 | I18: 14637.55086 | J18: 14198.86 | K18: 4980.8157 | L18: 5819.7309 | M18: 8425.958561 | N18: 7686.402911 | O18: 6946.847261 | P18: 6207.291612 | Q18: 5467.735962
A19: Paper Packaging Total | C19: 328100 | D19: 332200 | E19: 349455.7745 | F19: 341558.9458 | G19: 347676.0111 | H19: 358434.7314 | I19: 357898.0226 | J19: 359087.09 | K19: 391629.7711 | L19: 392621.8223 | M19: 392687.4611 | N19: 399382.2328 | O19: 406077.0044 | P19: 412771.7761 | Q19: 419466.5478
A20: Plastic Packaging | B20: PET Bottles | C20: 36200 | D20: 36700 | E20: 45362.03455 | F20: 47211.14993 | G20: 49024.51297 | H20: 49503.07425 | I20: 44552.76682 | J20: 46335.12 | K20: 56400.5001 | L20: 56847.71114 | M20: 57517.07832 | N20: 59463.14947 | O20: 61409.22062 | P20: 63355.29177 | Q20: 65301.36293
B21: HDPE Bottles | C21: 23000 | D21: 23300 | E21: 25688.81933 | F21: 25993.84524 | G21: 26743.96153 | H21: 27372.44463 | I21: 26551.27129 | J21: 27347.53 | K21: 27894.4806 | L21: 27597.63419 | M21: 28953.47823 | N21: 29463.3836 | O21: 29973.28898 | P21: 30483.19435 | Q21: 30993.09972
B22: Plastic Film | C22: 53700 | D22: 54400 | E22: 61615.89948 | F22: 60099.39489 | G22: 59213.14189 | H22: 60604.65072 | I22: 53029.06938 | J22: 48786.68 | K22: 52000.02968 | L22: 54382.76276 | M22: 52629.14646 | N22: 52055.68893 | O22: 51482.2314 | P22: 50908.77387 | Q22: 50335.31634
B23: Plastic Laminants | C23: 57400 | D23: 58100 | E23: 25612.96757 | F23: 26805.18366 | G23: 29186.4796 | H23: 30062.36187 | I23: 32317.03901 | J23: 33609.68 | K23: 34954.0672 | L23: 35391.33064 | M23: 26253.75951 | N23: 24419.18652 | O23: 22584.61353 | P23: 20750.04054 | Q23: 18915.46755
B24: Polystyrene | C24: 20400 | D24: 20600 | E24: 22543.68704 | F24: 21381.22012 | G24: 21970.85318 | H24: 22465.19738 | I24: 20780.30758 | J24: 21195.6 | K24: 21619.512 | L24: 21391.0016 | M24: 21701.63022 | N24: 21750.15609 | O24: 21798.68197 | P24: 21847.20785 | Q24: 21895.73372
B25: Other Plastics | C25: 28300 | D25: 28600 | E25: 44939.16685 | F25: 49798.08552 | G25: 53355.96817 | H25: 54610.83342 | I25: 57887.48343 | J25: 55571.52 | K25: 67133.0381 | L25: 70790.314 | M25: 75459.60486 | N25: 79888.87103 | O25: 84318.1372 | P25: 88747.40336 | Q25: 93176.66953
A26: Plastics Total | C26: 219000 | D26: 221700 | E26: 225762.5748 | F26: 231288.8794 | G26: 239494.9173 | H26: 244618.5623 | I26: 235117.9375 | J26: 232846.13 | K26: 260001.6277 | L26: 266400.7543 | M26: 262514.6976 | N26: 267040.4357 | O26: 271566.1737 | P26: 276091.9117 | Q26: 280617.6498
A27: Steel Packaging | B27: Steel Food & Beverage Cans | C27: 57800 | D27: 58500 | E27: 47494.57379 | F27: 48292.35396 | G27: 49351.17183 | H27: 50800.19527 | I27: 47244.1816 | J27: 47716.44 | K27: 46762.1112 | L27: 45285.5356 | M27: 43411.93753 | N27: 42227.80684 | O27: 41043.67615 | P27: 39859.54546 | Q27: 38675.41477
B28: Steel Aerosols | C28: 4300 | D28: 4400 | E28: 3956.931075 | F28: 4031.881673 | G28: 4336.801373 | H28: 4438.716205 | I28: 4172.393233 | J28: 4213.72 | K28: 4302.1533 | L28: 4078.742759 | M28: 4194.172364 | N28: 4188.906619 | O28: 4183.640874 | P28: 4178.375129 | Q28: 4173.109384
B29: Steel Paint Cans | C29: 4800 | D29: 8609.252 | E29: 6758.36943 | F29: 5239.92032 | G29: 5787.63185 | H29: 5787.63185 | I29: 5382.49762 | J29: 5166.72 | K29: 4918.2184 | L29: 5072.271953 | M29: 4721.67458 | N29: 4534.296987 | O29: 4346.919394 | P29: 4159.541801 | Q29: 3972.164208
A30: Steel Total | C30: 66900 | D30: 71509.252 | E30: 58209.87429 | F30: 57564.15596 | G30: 59475.60505 | H30: 61026.54332 | I30: 56799.07245 | J30: 57096.88 | K30: 55982.4829 | L30: 54436.55031 | M30: 52327.78448 | N30: 50951.01045 | O30: 49574.23642 | P30: 48197.46239 | Q30: 46820.68836
A31: Aluminum Packaging | B31: Aluminum Food & Beverage Cans | C31: 24100 | D31: 24400 | E31: 22604.09903 | F31: 21930.40859 | G31: 22577.91875 | H31: 23215.91875 | I31: 22287.282 | J31: 21172.65 | K31: 23034.7098 | L31: 22551.77291 | M31: 21822.81931 | N31: 21647.42719 | O31: 21472.03507 | P31: 21296.64295 | Q31: 21121.25082
B32: Other Aluminum Packaging | C32: 2408.226691 | D32: 2481.578984 | E32: 3648.030972 | F32: 3711.844946 | G32: 3896.941935 | H32: 3988.52007 | I32: 3589.668063 | J32: 3733.6 | K32: 4228.6828 | L32: 4521.1978 | M32: 4667.474537 | N32: 4857.773684 | O32: 5048.072832 | P32: 5238.371979 | Q32: 5428.671126
A33: Aluminum Total | C33: 26508.22669 | D33: 26881.57898 | E33: 26252.13001 | F33: 25642.25353 | G33: 26474.86069 | H33: 27204.43882 | I33: 25876.95007 | J33: 24906.25 | K33: 27263.3926 | L33: 27072.97071 | M33: 26490.29385 | N33: 26505.20087 | O33: 26520.1079 | P33: 26535.01492 | Q33: 26549.92195
A34: Glass | B34: Clear Glass | C34: 76200 | D34: 77200 | E34: 73979.71552 | F34: 68539.90065 | G34: 70424.79007 | H34: 85913.61318 | I34: 79470.09219 | J34: 76291.2 | K34: 76065.19893 | L34: 74521.6429 | M34: 77086.88197 | N34: 77309.83954 | O34: 77532.7971 | P34: 77755.75467 | Q34: 77978.71224
B35: Coloured Glass | C35: 6700 | D35: 6800 | E35: 15210.81748 | F35: 9398.990275 | G35: 9829.171755 | H35: 24071.15729 | I35: 22867.59943 | J35: 24468.76 | K35: 25001.80831 | L35: 25277.37378 | M35: 30147.45276 | N35: 32544.70456 | O35: 34941.95637 | P35: 37339.20817 | Q35: 39736.45997
A36: Glass Total | C36: 45600 | D36: 44125.111 | E36: 89190.533 | F36: 77938.89092 | G36: 80253.96182 | H36: 109984.7705 | I36: 102337.6916 | J36: 100759.96 | K36: 101067.0072 | L36: 99799.01668 | M36: 120010.9866 | N36: 126357.4034 | O36: 132703.8202 | P36: 139050.2369 | Q36: 145396.6537
C37: 66200 | D37: 61509.128 | M37: 56818.256 | N37: 52127.384
A38: PACKAGING TOTAL | C38: 194700 | D38: 189634.239 | E38: 748870.8866 | F38: 733993.1256 | G38: 753375.356 | H38: 801269.0463 | I38: 778029.6742 | J38: 774696.31 | K38: 835944.2815 | L38: 840331.1143 | M38: 1019883.763 | N38: 1084392.737 | O38: 1148901.712 | P38: 1213410.686 | Q38: 1277919.66
A41: Category | B41: Material | C41: 2005 Revenue | D41: 2006 Revenue | E41: 2007 Revenue | F41: 2008 Revenue | G41: 2009 Revenue | H41: 2010 Revenue | I41: 2011 Revenue | J41: 2012 Revenue | K41: 2013 Revenue | L41: 2014 Revenue | M41: 2015 Revenue | N41: 2016 Revenue | O41: 2017 Revenue | P41: 2018 Revenue | Q41: 2019 Revenue
C42: (tonnes) | D42: (tonnes) | E42: (tonnes) | F42: (tonnes) | G42: (tonnes) | H42: (tonnes) | I42: (tonnes) | J42: (tonnes) | K42: (tonnes) | L42: (tonnes) | M42: (tonnes) | N42: (tonnes) | O42: (tonnes) | P42: (tonnes) | Q42: (tonnes)
A43: PRINTED PAPER
B44: Newsprint - CNA/OCNA | C44: 77.25272883 | D44: 81.22953201 | E44: 102.613264 | F44: 94.32224702 | G44: 89.60535313 | H44: 106.0107211 | I44: 100.3296478 | J44: 87.51717511 | K44: 91.34454342 | L44: 87.94679163 | M44: 96.01715944 | N44: 96.78078835 | O44: 97.54441727 | P44: 98.30804618 | Q44: 99.0716751
B45: Newsprint - Non-CNA/OCNA | C45: 77.25272883 | D45: 81.22953201 | E45: 102.613264 | F45: 94.32224702 | G45: 89.60535313 | H45: 106.0107211 | I45: 100.3296478 | J45: 87.51717511 | K45: 91.34454342 | L45: 87.94679163 | M45: 96.01715944 | N45: 96.78078835 | O45: 97.54441727 | P45: 98.30804618 | Q45: 99.0716751
B46: Magazines and Catalogues | C46: 77.25272883 | D46: 81.22953201 | E46: 102.613264 | F46: 94.32224702 | G46: 89.60535313 | H46: 106.0107211 | I46: 100.3296478 | J46: 87.51717511 | K46: 91.34454342 | L46: 87.94679163 | M46: 96.01715944 | N46: 96.78078835 | O46: 97.54441727 | P46: 98.30804618 | Q46: 99.0716751
B47: Telephone Books | C47: 77.25272883 | D47: 81.22953201 | E47: 102.613264 | F47: 94.32224702 | G47: 89.60535313 | H47: 106.0107211 | I47: 86.0479832 | J47: 82.19953224 | K47: 90.12008115 | L47: 91.61067322 | M47: 92.80018696 | N47: 93.29090975 | O47: 93.78163255 | P47: 94.27235534 | Q47: 94.76307814
B48: Other Printed Paper | C48: 73.07508149 | D48: 76.49839684 | E48: 99.63046517 | F48: 91.58045441 | G48: 90.40232862 | H48: 102.6722382 | I48: 96.31834286 | J48: 86.3932483 | K48: 91.08340057 | L48: 89.03990563 | M48: 96.53858401 | N48: 97.78752907 | O48: 99.03647412 | P48: 100.2854192 | Q48: 101.5343642
A49: Printed Paper Total | C49: 76.7728596 | D49: 80.68968277 | E49: 102.3035097 | F49: 94.00768237 | G49: 89.68984751 | H49: 105.6009738 | I49: 99.38000587 | J49: 87.25422269 | K49: 91.28894074 | L49: 88.14349561 | M49: 95.95686179 | N49: 96.76481447 | O49: 97.57276714 | P49: 98.38071982 | Q49: 99.1886725
A51: PACKAGING
A52: Paper Based Packaging | B52: Corrugated Cardboard | C52: 63.43657454 | D52: 73.49230489 | E52: 96.49493386 | F52: 88.69826991 | G52: 95.64640666 | H52: 113.1458016 | I52: 96.92801058 | J52: 94.48360189 | K52: 109.4304923 | L52: 117.8377649 | M52: 120.7364155 | N52: 125.4231427 | O52: 130.1098699 | P52: 134.796597 | Q52: 139.4833242
B53: Boxboard | C53: 47.21232119 | D53: 50.26245577 | E53: 72.88786827 | F53: 66.99862422 | G53: 65.83779135 | H53: 77.47461697 | I53: 66.09181449 | J53: 72.85494908 | K53: 85.81913443 | L53: 88.71354032 | M53: 90.45396239 | N53: 94.27917162 | O53: 98.10438085 | P53: 101.9295901 | Q53: 105.7547993
B54: Gable Top Cartons | C54: 0 | D54: 0 | E54: 0 | F54: 0 | G54: 0 | H54: 0 | I54: 0 | J54: 0 | K54: 89.85702357 | L54: 97.93430387 | M54: 69.12606274 | N54: 78.28005001 | O54: 87.43403728 | P54: 96.58802455 | Q54: 105.7420118
B55: Paper Laminants | C55: 51.2495176 | D55: 51.41185298 | E55: 61.49481376 | F55: 56.52611356 | G55: 72.20827221 | H55: 77.47461697 | I55: 63.5724223 | J55: 76.26919411 | K55: 0 | L55: 0 | M55: 26.99229846 | N55: 22.62350176 | O55: 18.25470505 | P55: 13.88590834 | Q55: 9.517111639
B56: Aseptic Containers | C56: 51.2495176 | D56: 51.41185298 | E56: 61.49481376 | F56: 56.52611356 | G56: 72.20827221 | H56: 72.07789698 | I56: 64.19706405 | J56: 77.32474304 | K56: 90.09472122 | L56: 95.9100858 | M56: 95.07475192 | N56: 99.7702508 | O56: 104.4657497 | P56: 109.1612485 | Q56: 113.8567474
A57: Paper Packaging Total | C57: 57.49356517 | D57: 64.96297593 | E57: 87.22119838 | F57: 80.19459935 | G57: 84.26956778 | H57: 98.09121237 | I57: 86.23041138 | J57: 88.43587381 | K57: 101.6556681 | L57: 107.5200939 | M57: 110.443852 | N57: 114.9595494 | O57: 119.4752467 | P57: 123.9909441 | Q57: 128.5066414
A58: Plastic Packaging | B58: PET Bottles | C58: 216.9562912 | D58: 242.5996813 | E58: 402.9991233 | F58: 370.4373233 | G58: 393.4218896 | H58: 346.022567 | I58: 290.3147658 | J58: 282.4680557 | K58: 375.1706028 | L58: 425.2337271 | M58: 398.2981041 | N58: 409.8864134 | O58: 421.4747227 | P58: 433.0630321 | Q58: 444.6513414
B59: HDPE Bottles | C59: 250.2684776 | D59: 282.7651914 | E59: 493.887584 | F59: 453.9821158 | G59: 587.9554529 | H59: 556.509705 | I59: 459.1912871 | J59: 427.2738042 | K59: 432.4430253 | L59: 473.7765593 | M59: 532.1530016 | N59: 548.5798527 | O59: 565.0067039 | P59: 581.433555 | Q59: 597.8604062
B60: Plastic Film | C60: 6.833269013 | D60: 20.88606527 | E60: 71.29381935 | F60: 65.53337236 | G60: 86.62934597 | H60: 61.62489244 | I60: 30.20263238 | J60: 26.44443633 | K60: 28.07697799 | L60: 33.16249428 | M60: 40.8039248 | N60: 40.39214194 | O60: 39.98035908 | P60: 39.56857621 | Q60: 39.15679335
B61: Plastic Laminants | C61: 0 | D61: 0 | E61: 0 | F61: 0 | G61: 0 | H61: 0 | I61: 0 | J61: 0 | K61: 0 | L61: 0 | M61: 0 | N61: 0 | O61: 0 | P61: 0 | Q61: 0
B62: Polystyrene | C62: 75.16595915 | D62: 60.24826521 | E62: 80.78974364 | F62: 74.26203845 | G62: 53.53112875 | H62: 52.51682719 | I62: 61.72123112 | J62: 79.43332091 | K62: 51.6513721 | L62: 36.66100965 | M62: 47.5267018 | N62: 44.78644947 | O62: 42.04619714 | P62: 39.30594481 | Q62: 36.56569248
B63: Other Plastics | C63: 5.979110387 | D63: 22.49268568 | E63: 60.10087929 | F63: 55.24480717 | G63: 141.5972327 | H63: 164.5897747 | I63: 124.9993112 | J63: 105.5522541 | K63: 90.24375029 | L63: 145.9947623 | M63: 164.8098317 | N63: 178.1062635 | O63: 191.4026953 | P63: 204.6991271 | Q63: 217.9955589
A64: Plastics Total | C64: 194.8123424 | D64: 213.0780228 | E64: 361.299402 | F64: 340.5176627 | G64: 391.0768399 | H64: 353.457929 | I64: 270.5653993 | J64: 270.4234578 | K64: 293.0540516 | L64: 338.5687031 | M64: 341.0781819 | N64: 348.0586911 | O64: 355.0392004 | P64: 362.0197096 | Q64: 369.0002189
A65: Steel Packaging | B65: Steel Food & Beverage Cans | C65: 42.70793133 | D65: 84.3475713 | E65: 121.2101589 | F65: 111.4165372 | G65: 152.0007201 | H65: 190.7066232 | I65: 161.8286857 | J65: 189.5421672 | K65: 224.7188064 | L65: 262.8868731 | M65: 270.6636578 | N65: 291.8503942 | O65: 313.0371307 | P65: 334.2238671 | Q65: 355.4106035
B66: Steel Aerosols | C66: 42.70793133 | D66: 84.3475713 | E66: 121.2101589 | F66: 111.4165372 | G66: 152.0007201 | H66: 190.7066232 | I66: 161.8286857 | J66: 189.5421672 | K66: 224.7188064 | L66: 262.8868731 | M66: 270.6636578 | N66: 291.8503942 | O66: 313.0371307 | P66: 334.2238671 | Q66: 355.4106035
B67: Steel Paint Cans | C67: 42.70793133 | D67: 84.3475713 | E67: 121.2101589 | F67: 111.4165372 | G67: 152.0007201 | H67: 190.7066232 | I67: 161.8286857 | J67: 189.5421672 | K67: 224.7188064 | L67: 262.8868731 | M67: 270.6636578 | N67: 291.8503942 | O67: 313.0371307 | P67: 334.2238671 | Q67: 355.4106035
A68: Steel Total | C68: 42.70793133 | D68: 84.3475713 | E68: 121.2101589 | F68: 111.4165372 | G68: 152.0007201 | H68: 190.7066232 | I68: 161.8286857 | J68: 189.5421672 | K68: 224.7188064 | L68: 262.8868731 | M68: 270.6636578 | N68: 291.8503942 | O68: 313.0371307 | P68: 334.2238671 | Q68: 355.4106035
A69: Aluminum Packaging | B69: Aluminum Food & Beverage Cans | C69: 1432.424017 | D69: 1367.233965 | E69: 1616.667267 | F69: 1486.042675 | G69: 1857.822601 | H69: 1933.232851 | I69: 1610.615053 | J69: 1438.857335 | K69: 1402.465372 | L69: 1400.334819 | M69: 1538.499422 | N69: 1535.577572 | O69: 1532.655722 | P69: 1529.733872 | Q69: 1526.812022
B70: Other Aluminum Packaging | C70: 1432.424017 | D70: 1367.233965 | E70: 1616.667267 | F70: 1486.042675 | G70: 1857.822601 | H70: 1933.232851 | I70: 1610.615053 | J70: 1438.857335 | K70: 1402.465372 | L70: 1400.334819 | M70: 1538.499422 | N70: 1535.577572 | O70: 1532.655722 | P70: 1529.733872 | Q70: 1526.812022
A71: Aluminum Total | C71: 1432.424017 | D71: 1367.233965 | E71: 1616.667267 | F71: 1486.042675 | G71: 1857.822601 | H71: 1933.232851 | I71: 1610.615053 | J71: 1438.857335 | K71: 1402.465372 | L71: 1400.334819 | M71: 1538.499422 | N71: 1535.577572 | O71: 1532.655722 | P71: 1529.733872 | Q71: 1526.812022
A72: Glass | B72: Clear Glass | C72: 0.1476355305 | D72: 2.999440116 | E72: 9.996256069 | F72: 9.188571705 | G72: 8.210571865 | H72: 8.992408816 | I72: 12.39337544 | J72: 35.78962111 | K72: 27.19324036 | L72: 25.96662696 | M72: 32.12412806 | N72: 35.40346502 | O72: 38.68280198 | P72: 41.96213893 | Q72: 45.24147589
B73: Coloured Glass | C73: 0 | D73: 0 | E73: 2.494375035 | F73: 2.292832807 | G73: 5.851896991 | H73: 7.402003243 | I73: 11.22790436 | J73: 30.64377714 | K73: 21.97754914 | L73: 20.83737716 | M73: 27.28882392 | N73: 30.38265162 | O73: 33.47647931 | P73: 36.57030701 | Q73: 39.6641347
A74: Glass Total | C74: 0.1476355305 | D74: 2.999440116 | E74: 8.744447401 | F74: 8.372612885 | G74: 7.961109958 | H74: 8.686066725 | I74: 12.16438621 | J74: 34.74655611 | K74: 26.19720718 | L74: 24.95459791 | M74: 31.08933437 | N74: 34.2878668 | O74: 37.48639923 | P74: 40.68493166 | Q74: 43.88346409
C75: 0 | D75: 0 | M75: 0 | N75: 0
A76: PACKAGING TOTAL | C76: 0.09042513316 | D76: 1.889930691 | E76: 166.8732901 | F76: 156.0446461 | G76: 170.5607955 | H76: 163.2058102 | I76: 139.5641709 | J76: 146.4119883 | K76: 157.5459277 | L76: 175.2834975 | M76: 211.3212719 | N76: 226.5165853 | O76: 241.7118987 | P76: 256.907212 | Q76: 272.1025254
A79: Category | B79: Material | C79: 2005 Quantity Recovered | D79: 2006 Quantity Recovered | E79: 2007 Quantity Recovered | F79: 2008 Quantity Recovered | G79: 2009 Quantity Recovered | H79: 2010 Quantity Recovered | I79: 2011 Quantity Recovered | J79: 2012 Quantity Recovered | K79: 2013 Quantity Recovered | L79: 2014 Quantity Recovered | M79: 2015 Quantity Recovered | N79: 2016 Quantity Recovered | O79: 2017 Quantity Recovered | P79: 2018 Quantity Recovered | Q79: 2019 Quantity Recovered
C80: (tonnes) | D80: (tonnes) | E80: (tonnes) | F80: (tonnes) | G80: (tonnes) | H80: (tonnes) | I80: (tonnes) | J80: (tonnes) | K80: (tonnes) | L80: (tonnes) | M80: (tonnes) | N80: (tonnes) | O80: (tonnes) | P80: (tonnes) | Q80: (tonnes)
A81: PRINTED PAPER
B82: Newsprint - CNA/OCNA | C82: 198665.5644 | D82: 213942.955 | E82: 215715.9578 | F82: 235716.2351 | G82: 236301.0944 | H82: 224344.4521 | I82: 196010.4941 | J82: 206751.7364 | K82: 202415.719 | L82: 203689.271 | M82: 206309.6057 | N82: 205028.5617 | O82: 203747.5177 | P82: 202466.4736 | Q82: 201185.4296
B83: Newsprint - Non-CNA/OCNA | C83: 102333.7726 | D83: 101656.3851 | E83: 103390.4886 | F83: 112976.4204 | G83: 113256.7376 | H83: 109789.7453 | I83: 95923.66565 | J83: 114096.8324 | K83: 138192.5565 | L83: 139062.0315 | M83: 132574.9967 | N83: 136121.7481 | O83: 139668.4996 | P83: 143215.2511 | Q83: 146762.0025
B84: Magazines and Catalogues | C84: 68898.27458 | D84: 72240.1923 | E84: 73042.96342 | F84: 79815.20011 | G84: 80013.23765 | H84: 80112.2661 | I84: 74107.01596 | J84: 80662.52828 | K84: 74738.44074 | L84: 61776.10222 | M84: 73689.30507 | N84: 73534.52015 | O84: 73379.73523 | P84: 73224.95031 | Q84: 73070.16539
B85: Telephone Books | C85: 11253.714 | D85: 12142.83334 | E85: 16961.0908 | F85: 13104.87979 | G85: 17493.4972 | H85: 13499.73344 | I85: 11994.67323 | J85: 10094.29953 | K85: 8523.115838 | L85: 7967.842398 | M85: 9084.594399 | N85: 8499.326479 | O85: 7914.05856 | P85: 7328.79064 | Q85: 6743.522721
B86: Other Printed Paper | C86: 49462.89047 | D86: 51518.83613 | E86: 47408.02071 | F86: 57232.2653 | G86: 53018.16848 | H86: 59844.19824 | I86: 61304.85407 | J86: 63363.96679 | K86: 63890.49668 | L86: 57949.17696 | M86: 65226.01167 | N86: 66812.68881 | O86: 68399.36595 | P86: 69986.0431 | Q86: 71572.72024
A87: Printed Paper Total | C87: 430614.2161 | D87: 451501.2019 | E87: 456518.5214 | F87: 498845.0007 | G87: 500082.7353 | H87: 487590.3951 | I87: 439340.703 | J87: 474969.3634 | K87: 487760.3288 | L87: 470444.4241 | M87: 486884.5135 | N87: 489996.8453 | O87: 493109.177 | P87: 496221.5088 | Q87: 499333.8405
A89: PACKAGING
A90: Paper Based Packaging | B90: Corrugated Cardboard | C90: 100279.3633 | D90: 107357.0922 | E90: 115229.5332 | F90: 124806.7393 | G90: 125609.5195 | H90: 155563.2593 | I90: 159076.6674 | J90: 149770.916 | K90: 148703.0733 | L90: 144539.0381 | M90: 166201.1661 | N90: 172220.7381 | O90: 178240.3101 | P90: 184259.8821 | Q90: 190279.4541
B91: Boxboard | C91: 54711.92462 | D91: 58573.49854 | E91: 67674.48773 | F91: 73299.19612 | G91: 73931.07986 | H91: 85091.96445 | I91: 71172.2018 | J91: 70976.6756 | K91: 66790.3543 | L91: 67997.79632 | M91: 75634.64049 | N91: 76836.95368 | O91: 78039.26687 | P91: 79241.58006 | Q91: 80443.89325
B92: Gable Top Cartons | C92: 420 | D92: 425 | E92: 376.7300038 | F92: 370.9350868 | G92: 383.8739431 | H92: 392.8949807 | I92: 385.0370811 | J92: 400.8968464 | K92: 4568.349546 | L92: 6833.153614 | M92: 4352.153463 | N92: 4878.783709 | O92: 5405.413955 | P92: 5932.044201 | Q92: 6458.674447
B93: Paper Laminants | C93: 268.128 | D93: 355.5238115 | E93: 455.7913654 | F93: 484.6114443 | G93: 502.8764943 | H93: 783.758452 | I93: 924.7411136 | J93: 502.6392727 | K93: 383.7280852 | L93: 1264.11354 | M93: 959.1515006 | N93: 1025.798836 | O93: 1092.446171 | P93: 1159.093506 | Q93: 1225.740841
B94: Aseptic Containers | C94: 1222.452 | D94: 1637.948989 | E94: 2099.895933 | F94: 2232.674154 | G94: 2316.823849 | H94: 3575.706296 | I94: 3943.76575 | J94: 4850.388341 | K94: 476.0929688 | L94: 954.6291992 | M94: 2651.078479 | N94: 2709.267703 | O94: 2767.456927 | P94: 2825.64615 | Q94: 2883.835374
A95: Paper Packaging Total | C95: 156901.8679 | D95: 168349.0636 | E95: 185836.4382 | F95: 201194.1561 | G95: 202744.1736 | H95: 245407.5835 | I95: 235502.4132 | J95: 226501.516 | K95: 220921.5982 | L95: 221588.7308 | M95: 249798.1901 | N95: 257671.5421 | O95: 265544.8941 | P95: 273418.2461 | Q95: 281291.598
A96: Plastic Packaging | B96: PET Bottles | C96: 18119.97295 | D96: 20143.00857 | E96: 23191.91859 | F96: 26797.20591 | G96: 26903.83712 | H96: 28240.08153 | I96: 25556.89401 | J96: 28216.54798 | K96: 29320.89949 | L96: 32700.66352 | M96: 33192.76654 | N96: 34515.25083 | O96: 35837.73511 | P96: 37160.2194 | Q96: 38482.70369
B97: HDPE Bottles | C97: 11551.4341 | D97: 12132.90763 | E97: 13328.07819 | F97: 15271.86478 | G97: 15200.67835 | H97: 15716.55906 | I97: 14641.25594 | J97: 15469.67723 | K97: 16133.97588 | L97: 16408.75263 | M97: 17287.36485 | N97: 17778.60966 | O97: 18269.85447 | P97: 18761.09928 | Q97: 19252.34409
B98: Plastic Film | C98: 2992.661541 | D98: 4213.001023 | E98: 4994.929918 | F98: 3515.330882 | G98: 4822.302382 | H98: 4220.496092 | I98: 5208.500608 | J98: 3122.627863 | K98: 4391.774023 | L98: 4923.313607 | M98: 4698.609534 | N98: 4781.903305 | O98: 4865.197076 | P98: 4948.490847 | Q98: 5031.784618
B99: Plastic Laminants | C99: 574 | D99: 581 | E99: 256.1296757 | F99: 268.0518366 | G99: 284.5515851 | H99: 300.6236187 | I99: 323.1703901 | J99: 336.0968 | K99: 349.540672 | L99: 7.096217401 | M99: 123.3232121 | N99: 86.10450894 | O99: 48.88580576 | P99: 11.66710259 | Q99: -25.55160059
B100: Polystyrene | C100: 541.434981 | D100: 374.4252989 | E100: 394.1024828 | F100: 847.2475474 | G100: 417.314967 | H100: 776.6708399 | I100: 992.0893675 | J100: 822.8591266 | K100: 1018.451886 | L100: 1448.423565 | M100: 1283.593603 | N100: 1378.192076 | O100: 1472.790548 | P100: 1567.38902 | Q100: 1661.987492
B101: Other Plastics | C101: 1602.921658 | D101: 2358.189938 | E101: 3594.29248 | F101: 4385.469869 | G101: 5353.130999 | H101: 7463.565447 | I101: 11815.19659 | J101: 10653.03728 | K101: 15505.22194 | L101: 16145.96826 | M101: 17308.03218 | N101: 19020.81995 | O101: 20733.60772 | P101: 22446.39549 | Q101: 24159.18326
A102: Plastics Total | C102: 35382.42523 | D102: 39802.53245 | E102: 45759.45134 | F102: 51085.17083 | G102: 52981.81541 | H102: 56717.99659 | I102: 58537.10691 | J102: 58620.84628 | K102: 66719.86389 | L102: 71634.2178 | M102: 73893.68992 | N102: 77560.88032 | O102: 81228.07073 | P102: 84895.26114 | Q102: 88562.45155
A103: Steel Packaging | B103: Steel Food & Beverage Cans | C103: 30447.14657 | D103: 31346.60644 | E103: 31289.73987 | F103: 32313.49181 | G103: 31132.42687 | H103: 31317.34439 | I103: 31478.70873 | J103: 29134.45002 | K103: 28726.65596 | L103: 29186.73 | M103: 29211.35395 | N103: 28952.08557 | O103: 28692.81718 | P103: 28433.5488 | Q103: 28174.28042
B104: Steel Aerosols | C104: 1007.706979 | D104: 1037.270211 | E104: 1035.594227 | F104: 1074.851528 | G104: 1053.572932 | H104: 1168.449508 | I104: 927.0230595 | J104: 1167.114231 | K104: 1150.866604 | L104: 942.2774153 | M104: 1074.315998 | N104: 1077.56024 | O104: 1080.804481 | P104: 1084.048723 | Q104: 1087.292965
B105: Steel Paint Cans | C105: 1127.672095 | D105: 1160.540004 | E105: 1158.879254 | F105: 1202.810043 | G105: 1178.99828 | H105: 1651.704572 | I105: 978.4199637 | J105: 935.174032 | K105: 922.1552896 | L105: 695.9209608 | M105: 872.1126738 | N105: 830.4554419 | O105: 788.7982099 | P105: 747.140978 | Q105: 705.483746
A106: Steel Total | C106: 32582.52565 | D106: 33544.41665 | E106: 33484.21335 | F106: 34591.15339 | G106: 33364.99808 | H106: 34137.49847 | I106: 33384.15176 | J106: 31236.73829 | K106: 30799.67785 | L106: 30824.92838 | M106: 31157.78263 | N106: 30860.10125 | O106: 30562.41988 | P106: 30264.7385 | Q106: 29967.05713
A107: Aluminum Packaging | B107: Aluminum Food & Beverage Cans | C107: 9831.857238 | D107: 10454.9478 | E107: 10742.60748 | F107: 11192.62905 | G107: 9925.206682 | H107: 9585.657315 | I107: 10515.38418 | J107: 10506.61863 | K107: 9993.773175 | L107: 10860.30582 | M107: 10443.45163 | N107: 10458.46124 | O107: 10473.47086 | P107: 10488.48047 | Q107: 10503.49009
B108: Other Aluminum Packaging | C108: 281.5411248 | D108: 299.3836964 | E108: 307.6348075 | F108: 323.7596195 | G108: 301.4647094 | H108: 1107.244123 | I108: 325.069992 | J108: 336.5600569 | K108: 320.1906292 | L108: 347.95348 | M108: 451.6701073 | N108: 461.9591771 | O108: 472.2482468 | P108: 482.5373165 | Q108: 492.8263862
A109: Aluminum Total | C109: 10113.39836 | D109: 10754.3315 | E109: 11050.24229 | F109: 11516.38867 | G109: 10226.67139 | H109: 10692.90144 | I109: 10840.45418 | J109: 10843.17868 | K109: 10313.9638 | L109: 11208.2593 | M109: 10895.12173 | N109: 10920.42042 | O109: 10945.7191 | P109: 10971.01779 | Q109: 10996.31648
A110: Glass | B110: Clear Glass | C110: 40336.43241 | D110: 44524.09424 | E110: 45237.89056 | F110: 47383.38811 | G110: 59528.49769 | H110: 76686.89755 | I110: 74413.25025 | J110: 67826.72133 | K110: 71465.70373 | L110: 70014.08916 | M110: 81971.10708 | N110: 86012.81809 | O110: 90054.52911 | P110: 94096.24012 | Q110: 98137.95113
B111: Coloured Glass | C111: 3228.862698 | D111: 3675.419516 | E111: 9060.564458 | F111: 6359.258555 | G111: 7040.584685 | H111: 18295.37626 | I111: 18195.58331 | J111: 17243.84359 | K111: 16869.18976 | L111: 17209.73862 | M111: 21913.32336 | N111: 23767.04722 | O111: 25620.77108 | P111: 27474.49493 | Q111: 29328.21879
A112: Glass Total | C112: 29640 | D112: 30887.5777 | E112: 54298.45502 | F112: 53742.64666 | G112: 66569.08238 | H112: 94982.27381 | I112: 92608.83356 | J112: 85070.56492 | K112: 88334.89349 | L112: 87223.82777 | M112: 108977.7476 | N112: 116367.1898 | O112: 123756.632 | P112: 131146.0742 | Q112: 138535.5164
C113: 41044 | D113: 40596.02448 | M113: 40148.04896 | N113: 39700.07344
A114: PACKAGING TOTAL | C114: 114249.2951 | D114: 119683.1159 | E114: 330428.8002 | F114: 352129.5157 | G114: 365886.7409 | H114: 441938.2538 | I114: 430872.9596 | J114: 412272.8442 | K114: 417089.9972 | L114: 422479.964 | M114: 526617.3571 | N114: 560419.9405 | O114: 594222.5239 | P114: 628025.1072 | Q114: 661827.6906
A117: Category | B117: Material | C117: 2005 Gross Costs | D117: 2006 Gross Costs | E117: 2007 Gross Costs | F117: 2008 Gross Costs | G117: 2009 Gross Costs | H117: 2010 Gross Costs | I117: 2011 Gross Costs | J117: 2012 Gross Costs | K117: 2013 Gross Costs | L117: 2014 Gross Costs | M117: 2015 Gross Costs | N117: 2016 Gross Costs | O117: 2017 Gross Costs | P117: 2018 Gross Costs | Q117: 2019 Gross Costs
C118: (tonnes) | D118: (tonnes) | E118: (tonnes) | F118: (tonnes) | G118: (tonnes) | H118: (tonnes) | I118: (tonnes) | J118: (tonnes) | K118: (tonnes) | L118: (tonnes) | M118: (tonnes) | N118: (tonnes) | O118: (tonnes) | P118: (tonnes) | Q118: (tonnes)
A119: PRINTED PAPER
B120: Newsprint - CNA/OCNA | C120: 99.48090221 | D120: 98.7552262 | E120: 112.5352386 | F120: 108.027173 | G120: 119.6527484 | H120: 116.0065669 | I120: 119.2517885 | J120: 134.1701789 | K120: 175.4898696 | L120: 173.2880698 | M120: 170.3194222 | N120: 178.4382669 | O120: 186.5571116 | P120: 194.6759563 | Q120: 202.794801
B121: Newsprint - Non-CNA/OCNA | C121: 99.48090221 | D121: 98.7552262 | E121: 112.5352386 | F121: 108.027173 | G121: 119.6527484 | H121: 116.0065669 | I121: 119.2517885 | J121: 134.1701789 | K121: 175.4898696 | L121: 173.2880698 | M121: 170.3194222 | N121: 178.4382669 | O121: 186.5571116 | P121: 194.6759563 | Q121: 202.794801
B122: Magazines and Catalogues | C122: 99.48090221 | D122: 98.7552262 | E122: 112.5352386 | F122: 108.027173 | G122: 119.6527484 | H122: 116.0065669 | I122: 119.2517885 | J122: 134.1701789 | K122: 175.4898696 | L122: 173.2880698 | M122: 170.3194222 | N122: 178.4382669 | O122: 186.5571116 | P122: 194.6759563 | Q122: 202.794801
B123: Telephone Books | C123: 137.4411448 | D123: 136.4385631 | E123: 155.476797 | F123: 149.2485292 | G123: 165.310229 | H123: 174.6498262 | I123: 195.0295898 | J123: 268.1990454 | K123: 226.6846769 | L123: 210.886934 | M123: 248.7041642 | N123: 260.8437334 | O123: 272.9833027 | P123: 285.1228719 | Q123: 297.2624411
B124: Other Printed Paper | C124: 175.4013875 | D124: 174.1218999 | E124: 198.4183553 | F124: 190.4698853 | G124: 210.9677096 | H124: 179.3116399 | I124: 157.1406892 | J124: 161.5984102 | K124: 186.0883056 | L124: 185.3113766 | M124: 177.1233445 | N124: 176.2579588 | O124: 175.3925731 | P124: 174.5271874 | Q124: 173.6618017
A125: Printed Paper Total | C125: 19.79894814 | D125: 19.79894814 | E125: 19.79894814 | F125: 19.79894814 | G125: 19.79894814 | H125: 19.79894814 | I125: 87.26240684 | J125: 87.26240684 | K125: 87.26240684 | L125: 87.26240684 | M125: 100.7550986 | N125: 110.5679653 | O125: 120.380832 | P125: 130.1936987 | Q125: 140.0065655
A127: PACKAGING
A128: Paper Based Packaging | B128: Corrugated Cardboard | C128: 411.5371064 | D128: 408.535097 | E128: 465.5408771 | F128: 446.8917069 | G128: 494.9849143 | H128: 483.4815949 | I128: 500.8652553 | J128: 510.8120808 | K128: 479.7110721 | L128: 482.5160767 | M128: 518.9481083 | N128: 528.1227501 | O128: 537.297392 | P128: 546.4720338 | Q128: 555.6466756
B129: Boxboard | C129: 375.4741633 | D129: 372.7352196 | E129: 424.7455907 | F129: 407.7306448 | G129: 451.6094507 | H129: 1033.87594 | I129: 1166.779917 | J129: 1065.383785 | K129: 281.5505145 | L129: 287.6713607 | M129: 741.2252293 | N129: 769.3106058 | O129: 797.3959822 | P129: 825.4813587 | Q129: 853.5667352
B130: Gable Top Cartons | C130: 375.4741633 | D130: 372.7352196 | E130: 424.7455907 | F130: 407.7306448 | G130: 451.6094507 | H130: 840.0194175 | I130: 1296.934299 | J130: 842.2533221 | K130: 1121.978933 | L130: 1170.59989 | M130: 1315.221331 | N130: 1421.55101 | O130: 1527.88069 | P130: 1634.210369 | Q130: 1740.540049
B131: Paper Laminants | C131: 803.8544269 | D131: 797.9906092 | E131: 909.3398607 | F131: 872.912482 | G131: 966.8528267 | H131: 1095.687548 | I131: 1296.934299 | J131: 842.2533221 | K131: 882.0510714 | L131: 960.4760676 | M131: 1044.951434 | N131: 1063.518013 | O131: 1082.084591 | P131: 1100.65117 | Q131: 1119.217749
B132: Aseptic Containers | C132: 803.8544269 | D132: 797.9906092 | E132: 909.3398607 | F132: 872.912482 | G132: 966.8528267 | H132: 436.6726951 | I132: 447.6222606 | J132: 307.6571422 | K132: 882.0510714 | L132: 960.4760676 | M132: 644.661398 | N132: 627.592026 | O132: 610.522654 | P132: 593.4532819 | Q132: 576.3839099
A133: Paper Packaging Total | C133: 379.7055166 | D133: 379.7055166 | E133: 379.7055166 | F133: 379.7055166 | G133: 379.7055166 | H133: 379.7055166 | I133: 341.2092526 | J133: 341.2092526 | K133: 341.2092526 | L133: 341.2092526 | M133: 333.5099998 | N133: 327.9105433 | O133: 322.3110867 | P133: 316.7116301 | Q133: 311.1121735
A134: Plastic Packaging | B134: PET Bottles | C134: 1027.503567 | D134: 1020.008312 | E134: 1162.337258 | F134: 1115.775019 | G134: 1235.851536 | H134: 1226.104069 | I134: 1290.484826 | J134: 1371.066157 | K134: 1287.223702 | L134: 1280.549808 | M134: 1391.88877 | N134: 1426.470287 | O134: 1461.051804 | P134: 1495.633322 | Q134: 1530.214839
B135: HDPE Bottles | C135: 969.1169255 | D135: 962.0475797 | E135: 1096.288856 | F135: 1052.37246 | G135: 1165.625774 | H135: 1121.81281 | I135: 1144.257854 | J135: 1215.708381 | K135: 1202.605167 | L135: 1196.369997 | M135: 1264.557967 | N135: 1292.182947 | O135: 1319.807926 | P135: 1347.432905 | Q135: 1375.057885
B136: Plastic Film | C136: 1478.537129 | D136: 1467.751753 | E136: 1672.557496 | F136: 1605.55627 | G136: 1778.341644 | H136: 2379.689379 | I136: 1923.795961 | J136: 2043.922937 | K136: 1904.612301 | L136: 1894.73742 | M136: 2155.507578 | N136: 2217.427096 | O136: 2279.346614 | P136: 2341.266132 | Q136: 2403.18565
B137: Plastic Laminants | C137: 1478.537129 | D137: 1467.751753 | E137: 1672.557496 | F137: 1605.55627 | G137: 1778.341644 | H137: 2379.689379 | I137: 1923.795961 | J137: 2043.922937 | K137: 1904.612301 | L137: 1894.73742 | M137: 2155.507578 | N137: 2217.427096 | O137: 2279.346614 | P137: 2341.266132 | Q137: 2403.18565
B138: Polystyrene | C138: 1782.221583 | D138: 1769.220943 | E138: 2016.092805 | F138: 1935.329848 | G138: 2143.604511 | H138: 2656.784775 | I138: 2318.934449 | J138: 2463.734931 | K138: 2304.043091 | L138: 2292.097274 | M138: 2576.034453 | N138: 2650.185004 | O138: 2724.335555 | P138: 2798.486106 | Q138: 2872.636658
B139: Other Plastics | C139: 956.299752 | D139: 949.3239027 | E139: 1081.789755 | F139: 1038.45418 | G139: 1150.209649 | H139: 1341.119418 | I139: 1244.287725 | J139: 1321.984385 | K139: 1395.070526 | L139: 1387.837477 | M139: 1487.085992 | N139: 1541.712958 | O139: 1596.339925 | P139: 1650.966891 | Q139: 1705.593857
A140: Plastics Total | C140: 970.4279811 | D140: 970.4279811 | E140: 970.4279811 | F140: 970.4279811 | G140: 970.4279811 | H140: 970.4279811 | I140: 1009.606935 | J140: 1009.606935 | K140: 1009.606935 | L140: 1009.606935 | M140: 1017.442725 | N140: 1023.141482 | O140: 1028.840239 | P140: 1034.538996 | Q140: 1040.237753
A141: Steel Packaging | B141: Steel Food & Beverage Cans | C141: 265.6552081 | D141: 263.7173526 | E141: 300.5156927 | F141: 288.4772905 | G141: 319.5223915 | H141: 306.1154762 | I141: 310.7236698 | J141: 330.1260885 | K141: 353.9895434 | L141: 352.1542069 | M141: 362.8257096 | N141: 372.5940764 | O141: 382.3624432 | P141: 392.13081 | Q141: 401.8991769
B142: Steel Aerosols | C142: 265.6552081 | D142: 263.7173526 | E142: 300.5156927 | F142: 288.4772905 | G142: 319.5223915 | H142: 306.1154762 | I142: 310.7236698 | J142: 330.1260885 | K142: 353.9895434 | L142: 352.1542069 | M142: 362.8257096 | N142: 372.5940764 | O142: 382.3624432 | P142: 392.13081 | Q142: 401.8991769
B143: Steel Paint Cans | C143: 265.6552081 | D143: 263.7173526 | E143: 300.5156927 | F143: 288.4772905 | G143: 319.5223915 | H143: 306.1154762 | I143: 310.7236698 | J143: 330.1260885 | K143: 353.9895434 | L143: 352.1542069 | M143: 362.8257096 | N143: 372.5940764 | O143: 382.3624432 | P143: 392.13081 | Q143: 401.8991769
A144: Steel Total | C144: 115.408853 | D144: 115.408853 | E144: 115.408853 | F144: 115.408853 | G144: 115.408853 | H144: 115.408853 | I144: 89.26733384 | J144: 89.26733384 | K144: 89.26733384 | L144: 89.26733384 | M144: 84.03903002 | N144: 80.23662724 | O144: 76.43422446 | P144: 72.63182168 | Q144: 68.8294189
A145: Aluminum Packaging | B145: Aluminum Food & Beverage Cans | C145: 810.0298895 | D145: 804.1210242 | E145: 916.3256956 | F145: 879.6184703 | G145: 974.2804943 | H145: 995.6275998 | I145: 1078.481044 | J145: 1145.824291 | K145: 1120.160638 | L145: 1114.35292 | M145: 1207.769286 | N145: 1248.476028 | O145: 1289.182769 | P145: 1329.889511 | Q145: 1370.596253
B146: Other Aluminum Packaging | C146: 810.0298895 | D146: 804.1210242 | E146: 916.3256956 | F146: 879.6184703 | G146: 974.2804943 | H146: 995.6275998 | I146: 1078.481044 | J146: 1145.824291 | K146: 1120.160638 | L146: 1114.35292 | M146: 1207.769286 | N146: 1248.476028 | O146: 1289.182769 | P146: 1329.889511 | Q146: 1370.596253
A147: Aluminum Total | C147: -937.605251 | D147: -937.605251 | E147: -937.605251 | F147: -937.605251 | G147: -937.605251 | H147: -937.605251 | I147: -285.9818991 | J147: -285.9818991 | K147: -285.9818991 | L147: -285.9818991 | M147: -155.6572287 | N147: -60.87565024 | O147: 33.90592822 | P147: 128.6875067 | Q147: 223.4690851
A148: Glass | B148: Clear Glass | C148: 158.7537219 | D148: 157.5956729 | E148: 179.5861073 | F148: 172.3920411 | G148: 190.9443796 | H148: 172.7610766 | I148: 164.2687413 | J148: 174.5261218 | K148: 136.7006363 | L148: 135.9918818 | M148: 150.3862065 | N148: 147.8469644 | O148: 145.3077223 | P148: 142.7684802 | Q148: 140.2292381
B149: Coloured Glass | C149: 150.9038697 | D149: 149.8030823 | E149: 170.7061618 | F149: 163.8678186 | G149: 181.5028046 | H149: 151.4696053 | I149: 129.3010966 | J149: 137.3750037 | K149: 126.0786979 | L149: 125.4250152 | M149: 125.4509977 | N149: 121.2342126 | O149: 117.0174275 | P149: 112.8006425 | Q149: 108.5838574
A150: Glass Total | C150: 159.9738711 | D150: 159.9738711 | E150: 159.9738711 | F150: 159.9738711 | G150: 159.9738711 | H150: 159.9738711 | I150: 108.9523833 | J150: 108.9523833 | K150: 108.9523833 | L150: 108.9523833 | M150: 98.74808574 | N150: 91.32677842 | O150: 83.9054711 | P150: 76.48416377 | Q150: 69.06285645
A152: PACKAGING TOTAL | C152: 356.0046542 | D152: 356.0046542 | E152: 356.0046542 | F152: 356.0046542 | G152: 356.0046542 | H152: 356.0046542 | I152: 398.5374719 | J152: 391.7894699 | K152: 371.186103 | L152: 371.5680871 | M152: 385.3396913 | N152: 388.6903796 | O152: 392.0410679 | P152: 395.3917562 | Q152: 398.7424445
A155: Category | B155: Material | C155: 2005 Net Cost | D155: 2006 Net Cost | E155: 2007 Net Cost | F155: 2008 Net Cost | G155: 2009 Net Cost | H155: 2010 Net Cost | I155: 2011 Net Cost | J155: 2012 Net Cost | K155: 2013 Net Cost | L155: 2014 Net Cost | M155: 2015 Net Cost | N155: 2016 Net Cost | O155: 2017 Net Cost | P155: 2018 Net Cost | Q155: 2019 Net Cost
C156: (tonnes) | D156: (tonnes) | E156: (tonnes) | F156: (tonnes) | G156: (tonnes) | H156: (tonnes) | I156: (tonnes) | J156: (tonnes) | K156: (tonnes) | L156: (tonnes) | M156: (tonnes) | N156: (tonnes) | O156: (tonnes) | P156: (tonnes) | Q156: (tonnes)
A157: PRINTED PAPER
B158: Newsprint - CNA/OCNA | C158: 22.22817338 | D158: 17.5256942 | E158: 9.921974635 | F158: 13.704926 | G158: 30.04739529 | H158: 9.995845811 | I158: 18.92214072 | J158: 46.65300383 | K158: 84.14532614 | L158: 85.34127818 | M158: 74.30226273 | N158: 81.65747853 | O158: 89.01269434 | P158: 96.36791014 | Q158: 103.7231259
B159: Newsprint - Non-CNA/OCNA | C159: 22.22817338 | D159: 17.5256942 | E159: 9.921974635 | F159: 13.704926 | G159: 30.04739529 | H159: 9.995845811 | I159: 18.92214072 | J159: 46.65300383 | K159: 84.14532614 | L159: 85.34127818 | M159: 74.30226273 | N159: 81.65747853 | O159: 89.01269434 | P159: 96.36791014 | Q159: 103.7231259
B160: Magazines and Catalogues | C160: 22.22817338 | D160: 17.5256942 | E160: 9.921974635 | F160: 13.704926 | G160: 30.04739529 | H160: 9.995845811 | I160: 18.92214072 | J160: 46.65300383 | K160: 84.14532614 | L160: 85.34127818 | M160: 74.30226273 | N160: 81.65747853 | O160: 89.01269434 | P160: 96.36791014 | Q160: 103.7231259
B161: Telephone Books | C161: 60.18841602 | D161: 55.20903105 | E161: 52.86353296 | F161: 54.92628215 | G161: 75.70487588 | H161: 68.63910516 | I161: 108.9816066 | J161: 185.9995132 | K161: 136.5645958 | L161: 119.2762608 | M161: 155.9039773 | N161: 167.5528237 | O161: 179.2016701 | P161: 190.8505165 | Q161: 202.499363
B162: Other Printed Paper | C162: 102.326306 | D162: 97.62350307 | E162: 98.78789011 | F162: 98.8894309 | G162: 120.565381 | H162: 76.63940167 | I162: 60.8223463 | J162: 75.20516191 | K162: 95.00490505 | L162: 96.27147093 | M162: 80.5847605 | N162: 78.47042973 | O162: 76.35609897 | P162: 74.24176821 | Q162: 72.12743744
A163: Printed Paper Total
A165: PACKAGING
A166: Paper Based Packaging | B166: Corrugated Cardboard | C166: 348.1005318 | D166: 335.0427921 | E166: 369.0459433 | F166: 358.193437 | G166: 399.3385076 | H166: 370.3357932 | I166: 403.9372448 | J166: 416.3284789 | K166: 370.2805798 | L166: 364.6783119 | M166: 398.2116928 | N166: 402.6996074 | O166: 407.1875221 | P166: 411.6754368 | Q166: 416.1633515
B167: Boxboard | C167: 328.2618422 | D167: 322.4727639 | E167: 351.8577224 | F167: 340.7320206 | G167: 385.7716594 | H167: 956.4013227 | I167: 1100.688102 | J167: 992.5288364 | K167: 195.7313801 | L167: 198.9578204 | M167: 650.7712669 | N167: 675.0314341 | O167: 699.2916014 | P167: 723.5517686 | Q167: 747.8119359
B168: Gable Top Cartons | C168: 375.4741633 | D168: 372.7352196 | E168: 424.7455907 | F168: 407.7306448 | G168: 451.6094507 | H168: 840.0194175 | I168: 1296.934299 | J168: 842.2533221 | K168: 1032.12191 | L168: 1072.665587 | M168: 1246.095268 | N168: 1343.27096 | O168: 1440.446652 | P168: 1537.622345 | Q168: 1634.798037
B169: Paper Laminants | C169: 752.6049093 | D169: 746.5787562 | E169: 847.8450469 | F169: 816.3863684 | G169: 894.6445545 | H169: 1018.212931 | I169: 1233.361877 | J169: 765.984128 | K169: 882.0510714 | L169: 960.4760676 | M169: 1017.959136 | N169: 1040.894511 | O169: 1063.829886 | P169: 1086.765262 | Q169: 1109.700637
B170: Aseptic Containers | C170: 752.6049093 | D170: 746.5787562 | E170: 847.8450469 | F170: 816.3863684 | G170: 894.6445545 | H170: 364.5947981 | I170: 383.4251965 | J170: 230.3323992 | K170: 791.9563502 | L170: 864.5659818 | M170: 549.5866461 | N170: 527.8217752 | O170: 506.0569043 | P170: 484.2920334 | Q170: 462.5271625
A171: Paper Packaging Total
A172: Plastic Packaging | B172: PET Bottles | C172: 810.5472756 | D172: 777.408631 | E172: 759.3381347 | F172: 745.3376961 | G172: 842.4296462 | H172: 880.0815023 | I172: 1000.17006 | J172: 1088.598101 | K172: 912.0530987 | L172: 855.3160808 | M172: 993.5906659 | N172: 1016.583874 | O172: 1039.577082 | P172: 1062.57029 | Q172: 1085.563497
B173: HDPE Bottles | C173: 718.8484479 | D173: 679.2823883 | E173: 602.401272 | F173: 598.3903443 | G173: 577.6703215 | H173: 565.3031051 | I173: 685.066567 | J173: 788.4345772 | K173: 770.1621419 | L173: 722.5934377 | M173: 732.4049657 | N173: 743.6030939 | O173: 754.8012222 | P173: 765.9993504 | Q173: 777.1974787
B174: Plastic Film | C174: 1471.70386 | D174: 1446.865688 | E174: 1601.263676 | F174: 1540.022898 | G174: 1691.712298 | H174: 2318.064486 | I174: 1893.593329 | J174: 2017.478501 | K174: 1876.535323 | L174: 1861.574926 | M174: 2114.703653 | N174: 2177.034954 | O174: 2239.366255 | P174: 2301.697556 | Q174: 2364.028857
B175: Plastic Laminants | C175: 1478.537129 | D175: 1467.751753 | E175: 1672.557496 | F175: 1605.55627 | G175: 1778.341644 | H175: 2379.689379 | I175: 1923.795961 | J175: 2043.922937 | K175: 1904.612301 | L175: 1894.73742 | M175: 2155.507578 | N175: 2217.427096 | O175: 2279.346614 | P175: 2341.266132 | Q175: 2403.18565
B176: Polystyrene | C176: 1707.055624 | D176: 1708.972677 | E176: 1935.303061 | F176: 1861.067809 | G176: 2090.073382 | H176: 2604.267948 | I176: 2257.213218 | J176: 2384.30161 | K176: 2252.391718 | L176: 2255.436264 | M176: 2528.507751 | N176: 2605.398554 | O176: 2682.289358 | P176: 2759.180162 | Q176: 2836.070965
B177: Other Plastics | C177: 950.3206417 | D177: 926.831217 | E177: 1021.688875 | F177: 983.2093733 | G177: 1008.612417 | H177: 1176.529644 | I177: 1119.288414 | J177: 1216.432131 | K177: 1304.826776 | L177: 1241.842715 | M177: 1322.27616 | N177: 1363.606695 | O177: 1404.937229 | P177: 1446.267764 | Q177: 1487.598298
A178: Plastics Total
A179: Steel Packaging | B179: Steel Food & Beverage Cans | C179: 222.9472768 | D179: 179.3697813 | E179: 179.3055339 | F179: 177.0607534 | G179: 167.5216714 | H179: 115.408853 | I179: 148.8949841 | J179: 140.5839213 | K179: 129.270737 | L179: 89.26733384 | M179: 92.16205174 | N179: 80.74368213 | O179: 69.32531252 | P179: 57.90694291 | Q179: 46.48857331
B180: Steel Aerosols | C180: 222.9472768 | D180: 179.3697813 | E180: 179.3055339 | F180: 177.0607534 | G180: 167.5216714 | H180: 115.408853 | I180: 148.8949841 | J180: 140.5839213 | K180: 129.270737 | L180: 89.26733384 | M180: 92.16205174 | N180: 80.74368213 | O180: 69.32531252 | P180: 57.90694291 | Q180: 46.48857331
B181: Steel Paint Cans | C181: 222.9472768 | D181: 179.3697813 | E181: 179.3055339 | F181: 177.0607534 | G181: 167.5216714 | H181: 115.408853 | I181: 148.8949841 | J181: 140.5839213 | K181: 129.270737 | L181: 89.26733384 | M181: 92.16205174 | N181: 80.74368213 | O181: 69.32531252 | P181: 57.90694291 | Q181: 46.48857331
A182: Steel Total
A183: Aluminum Packaging | B183: Aluminum Food & Beverage Cans | C183: -622.3941274 | D183: -563.1129411 | E183: -700.3415712 | F183: -606.4242043 | G183: -883.5421065 | H183: -937.605251 | I183: -532.1340088 | J183: -293.0330433 | K183: -282.3047332 | L183: -285.9818991 | M183: -330.7301356 | N183: -287.1015441 | O183: -243.4729526 | P183: -199.8443612 | Q183: -156.2157697
B184: Other Aluminum Packaging | C184: -622.3941274 | D184: -563.1129411 | E184: -700.3415712 | F184: -606.4242043 | G184: -883.5421065 | H184: -937.605251 | I184: -532.1340088 | J184: -293.0330433 | K184: -282.3047332 | L184: -285.9818991 | M184: -330.7301356 | N184: -287.1015441 | O184: -243.4729526 | P184: -199.8443612 | Q184: -156.2157697
A185: Aluminum Total
A186: Glass | B186: Clear Glass | C186: 158.6060864 | D186: 154.5962327 | E186: 169.5898513 | F186: 163.2034694 | G186: 182.7338077 | H186: 163.7686678 | I186: 151.8753659 | J186: 138.7365007 | K186: 109.5073959 | L186: 110.0252549 | M186: 118.2620784 | N186: 112.4434994 | O186: 106.6249203 | P186: 100.8063413 | Q186: 94.98776219
B187: Coloured Glass | C187: 150.9038697 | D187: 149.8030823 | E187: 168.2117867 | F187: 161.5749858 | G187: 175.6509076 | H187: 144.067602 | I187: 118.0731923 | J187: 106.7312265 | K187: 104.1011488 | L187: 104.5876381 | M187: 98.16217375 | N187: 90.85156098 | O187: 83.54094821 | P187: 76.23033545 | Q187: 68.91972268
A188: Glass Total
A190: PACKAGING TOTAL

Sheet Sheet10
A1: 217374.8181 | B1: 203689.271 | C1: 173.2880698 | D1: 87.94679163 | E1: 85.34127818
A2: 148405.3807 | B2: 139062.0315 | C2: 173.2880698 | D2: 87.94679163 | E2: 85.34127818
A3: 78908.18384 | B3: 61776.10222 | C3: 173.2880698 | D3: 87.94679163 | E3: 85.34127818
A4: 8328.91624 | B4: 7967.842398 | C4: 210.886934 | D4: 91.61067322 | E4: 119.2762608
A5: 128244.9524 | B5: 57949.17696 | C5: 185.3113766 | D5: 89.03990563 | E5: 96.27147093
A7: 169360.6425 | B7: 144539.0381 | C7: 482.5160767 | D7: 117.8377649 | E7: 364.6783119
A8: 163987.5138 | B8: 67997.79632 | C8: 287.6713607 | D8: 88.71354032 | E8: 198.9578204
A9: 14248.79104 | B9: 6833.153614 | C9: 1170.59989 | D9: 97.93430387 | E9: 1072.665587
A10: 39205.14414 | B10: 1264.11354 | C10: 960.4760676 | D10: 0 | E10: 960.4760676
A11: 5819.7309 | B11: 954.6291992 | C11: 960.4760676 | D11: 95.9100858 | E11: 864.5659818
A13: 56847.71114 | B13: 32700.66352 | C13: 1280.549808 | D13: 425.2337271 | E13: 855.3160808
A14: 27597.63419 | B14: 16408.75263 | C14: 1196.369997 | D14: 473.7765593 | E14: 722.5934377
A15: 54382.76276 | B15: 4923.313607 | C15: 1894.73742 | D15: 33.16249428 | E15: 1861.574926
A16: 35391.33064 | B16: 7.096217401 | C16: 1894.73742 | D16: 0 | E16: 1894.73742
A17: 21391.0016 | B17: 1448.423565 | C17: 2292.097274 | D17: 36.66100965 | E17: 2255.436264
A18: 70790.314 | B18: 16145.96826 | C18: 1387.837477 | D18: 145.9947623 | E18: 1241.842715
A20: 45285.5356 | B20: 29186.73 | C20: 352.1542069 | D20: 262.8868731 | E20: 89.26733384
A21: 4078.742759 | B21: 942.2774153 | C21: 352.1542069 | D21: 262.8868731 | E21: 89.26733384
A22: 5072.271953 | B22: 695.9209608 | C22: 352.1542069 | D22: 262.8868731 | E22: 89.26733384
A24: 22551.77291 | B24: 10860.30582 | C24: 1114.35292 | D24: 1400.334819 | E24: -285.9818991
A25: 4521.1978 | B25: 347.95348 | C25: 1114.35292 | D25: 1400.334819 | E25: -285.9818991
A27: 74521.6429 | B27: 70014.08916 | C27: 135.9918818 | D27: 25.96662696 | E27: 110.0252549
A28: 25277.37378 | B28: 17209.73862 | C28: 125.4250152 | D28: 20.83737716 | E28: 104.5876381
A30: 2014
A32: Generation (Sheet 1) | B32: Recovery (Sheet 1) | C32: Gross Costs | D32: Revenue | E32: Net System Costs
A33: 182016.1068 | B33: 167185.4296 | C33: 202.794801 | D33: 99.0716751 | E33: 103.7231259
A34: 135067.3797 | B34: 146762.0025 | C34: 202.794801 | D34: 99.0716751 | E34: 103.7231259
A35: 68529.58742 | B35: 73070.16539 | C35: 202.794801 | D35: 99.0716751 | E35: 103.7231259
A36: 4595.649638 | B36: 6743.522721 | C36: 297.2624411 | D36: 94.76307814 | E36: 202.499363
A37: 119097.1986 | B37: 71572.72024 | C37: 173.6618017 | D37: 101.5343642 | E37: 72.12743744
A39: 197863.4695 | B39: 190279.4541 | C39: 555.6466756 | D39: 139.4833242 | E39: 416.1633515
A40: 163440.4631 | B40: 80443.89325 | C40: 853.5667352 | D40: 105.7547993 | E40: 747.8119359
A41: 9746.188701 | B41: 6458.674447 | C41: 1740.540049 | D41: 105.7420118 | E41: 1634.798037
A42: 45948.69047 | B42: 1225.740841 | C42: 1119.217749 | D42: 9.517111639 | E42: 1109.700637
A43: 5467.735962 | B43: 2883.835374 | C43: 576.3839099 | D43: 113.8567474 | E43: 462.5271625
A45: 65301.36293 | B45: 38482.70369 | C45: 1530.214839 | D45: 444.6513414 | E45: 1085.563497
A46: 30993.09972 | B46: 19252.34409 | C46: 1375.057885 | D46: 597.8604062 | E46: 777.1974787
A47: 50335.31634 | B47: 5031.784618 | C47: 2403.18565 | D47: 39.15679335 | E47: 2364.028857
A48: 18915.46755 | B48: -25.55160059 | C48: 2403.18565 | D48: 0 | E48: 2403.18565
A49: 21895.73372 | B49: 1661.987492 | C49: 2872.636658 | D49: 36.56569248 | E49: 2836.070965
A50: 93176.66953 | B50: 24159.18326 | C50: 1705.593857 | D50: 217.9955589 | E50: 1487.598298
A52: 38675.41477 | B52: 28174.28042 | C52: 401.8991769 | D52: 355.4106035 | E52: 46.48857331
A53: 4173.109384 | B53: 1087.292965 | C53: 401.8991769 | D53: 355.4106035 | E53: 46.48857331
A54: 3972.164208 | B54: 705.483746 | C54: 401.8991769 | D54: 355.4106035 | E54: 46.48857331
A56: 21121.25082 | B56: 10503.49009 | C56: 1370.596253 | D56: 1526.812022 | E56: -156.2157697
A57: 5428.671126 | B57: 492.8263862 | C57: 1370.596253 | D57: 1526.812022 | E57: -156.2157697
A59: 77978.71224 | B59: 73137.95113 | C59: 140.2292381 | D59: 45.24147589 | E59: 94.98776219
A60: 39736.45997 | B60: 29328.21879 | C60: 108.5838574 | D60: 39.6641347 | E60: 68.91972268
A62: 2019
A65: Municipal Grouping | B65: Generation | C65: Marketed or Calculated Marketed Tonnes | D65: Recycling Rate | E65: Residential Collection Costs | F65: Residential Processing Costs | G65: Residential Depot/Transfer Costs | H65: Residential Promotion & Education Costs | I65: Interest on Municipal Capital | J65: Admin Costs | K65: Gross Costs | L65: Total Gross Revenue | M65: Net Cost
A66: Large Urban | B66: 674290.8117 | C66: 426542.74 | D66: =C66/B66 -> 0.6325797899 | E66: 188.829009 | F66: 137.1379191 | G66: 24.81265301 | H66: 7.974631944 | I66: 8.836070964 | J66: 13.88715597 | K66: 381.47744 | L66: 103.892068 | M66: =K66-L66 -> 277.585372
A67: Urban Regional | B67: 315332.6891 | C67: 229743.24 | D67: =C67/B67 -> 0.7285741311 | E67: 197.180157 | F67: 96.7237544 | G67: 2.62960303 | H67: 6.858970954 | I67: 5.954404143 | J67: 10.64909649 | K67: 319.995986 | L67: 118.3947324 | M67: =K67-L67 -> 201.6012536
A68: Medium Urban | B68: 86463.84565 | C68: 51230.33511 | D68: 0.5925058587 | E68: 144.1836303 | F68: 89.7888423 | G68: 10.46898852 | H68: 7.646891615 | I68: 3.437511967 | J68: 9.405445796 | K68: 264.9313105 | L68: 79.02760252 | M68: 185.903708
A69: Rural Regional | B69: 173662.1525 | C69: 96390.61955 | D69: 0.5550467858 | E69: 232.0042002 | F69: 119.7109757 | G69: 28.71759299 | H69: 7.40006946 | I69: 4.446891741 | J69: 14.74347573 | K69: 407.0232058 | L69: 104.3007938 | M69: 302.7224121
A70: Small Urban | B70: 38679.50095 | C70: 25987.49194 | D70: 0.6718673019 | E70: 190.0216324 | F70: 40.68018616 | G70: 10.16680296 | H70: 3.390387968 | I70: 0.4261242303 | J70: 7.731370171 | K70: 252.4165039 | L70: 37.69588779 | M70: 214.7206161
A71: Rural Collection - North | B71: 22803.3807 | C71: 10226.45037 | D71: 0.4484620285 | E71: 249.1599058 | F71: 63.3684071 | G71: 95.72773298 | H71: 12.59536744 | I71: 6.610426647 | J71: 17.48529779 | K71: 444.9471378 | L71: 16.77648097 | M71: 428.1706568
A72: Rural Collection - South | B72: 75372.40467 | C72: 40982.42892 | D72: 0.5437325385 | E72: 317.3857254 | F72: 68.68177446 | G72: 57.18154125 | H72: 7.42895109 | I72: 3.933930815 | J72: 16.33796526 | K72: 470.9498882 | L72: 51.22064151 | M72: 419.7292467
A73: Rural Depot - North | B73: 16414.60266 | C73: 5042.65875 | D73: 0.3072056543 | E73: 21.317901 | F73: 84.93227308 | G73: 510.5247683 | H73: 5.475030409 | I73: 13.81721894 | J73: 29.01306379 | K73: 665.0802555 | L73: 39.05824085 | M73: 626.0220147
A74: Rural Depot - South | B74: 18573.97774 | C74: 6778.423534 | D74: 0.3649419434 | E74: 47.2208956 | F74: 41.56607928 | G74: 386.9000833 | H74: 10.17344515 | I74: 1.480643685 | J74: 21.024092 | K74: 508.365239 | L74: 7.396241877 | M74: 500.9689971
A75: 2012
A77: *Relative contribution of what is being marketed by municipalities
A78: Municipal Grouping | B78: Printed Paper Reported and/or Calculated Marketed2 | C78: OCC/OBB Reported and/or Calculated Marketed3 | D78: Mixed Paper Reported and/or Calculated Marketed4 | E78: Polycoat Reported and/or Calculated Marketed5 | F78: PET Reported and/or Calculated Marketed | G78: HDPE Reported and/or Calculated Marketed | H78: Plastic Film Reported and/or Calculated Marketed | I78: Tubs and Lids Reported and/or Calculated Marketed | J78: Polystyrene Reported and/or Calculated Marketed | K78: Mixed Plastic Reported and/or Calculated Marketed6 | L78: Steel Reported and/or Calculated Marketed | M78: Aluminum Reported and/or Calculated Marketed | N78: Flint Reported and/or Calculated Marketed | O78: Coloured Reported and/or Calculated Marketed
A79: Large Urban | B79: ='2012 BB Tonnes (2)'!G11/'2012 BB Tonnes (2)'!$U$11 -> 0.6052588897 | C79: ='2012 BB Tonnes (2)'!H11/'2012 BB Tonnes (2)'!$U$11 -> 0.1955473202 | D79: ='2012 BB Tonnes (2)'!I11/'2012 BB Tonnes (2)'!$U$11 -> 0.0006790916811 | E79: ='2012 BB Tonnes (2)'!J11/'2012 BB Tonnes (2)'!$U$11 -> 0.005355821221 | F79: ='2012 BB Tonnes (2)'!K11/'2012 BB Tonnes (2)'!$U$11 -> 0.0267365918 | G79: ='2012 BB Tonnes (2)'!L11/'2012 BB Tonnes (2)'!$U$11 -> 0.01543810036 | H79: ='2012 BB Tonnes (2)'!M11/'2012 BB Tonnes (2)'!$U$11 -> 0.003338985341 | I79: ='2012 BB Tonnes (2)'!N11/'2012 BB Tonnes (2)'!$U$11 -> 0.001815774736 | J79: ='2012 BB Tonnes (2)'!O11/'2012 BB Tonnes (2)'!$U$11 -> 0.0002524608844 | K79: ='2012 BB Tonnes (2)'!P11/'2012 BB Tonnes (2)'!$U$11 -> 0.005705816992 | L79: ='2012 BB Tonnes (2)'!Q11/'2012 BB Tonnes (2)'!$U$11 -> 0.02677538454 | M79: ='2012 BB Tonnes (2)'!R11/'2012 BB Tonnes (2)'!$U$11 -> 0.00828174487 | N79: ='2012 BB Tonnes (2)'!S11/'2012 BB Tonnes (2)'!$U$11 -> 0.08674798573 | O79: ='2012 BB Tonnes (2)'!T11/'2012 BB Tonnes (2)'!$U$11 -> 0.01806603188
A80: Urban Regional | B80: ='2012 BB Tonnes (2)'!G18/'2012 BB Tonnes (2)'!$U$18 -> 0.5362591586 | C80: ='2012 BB Tonnes (2)'!H18/'2012 BB Tonnes (2)'!$U$18 -> 0.1765703018 | D80: ='2012 BB Tonnes (2)'!I18/'2012 BB Tonnes (2)'!$U$18 -> 0.04063295735 | E80: ='2012 BB Tonnes (2)'!J18/'2012 BB Tonnes (2)'!$U$18 -> 0.007143385552 | F80: ='2012 BB Tonnes (2)'!K18/'2012 BB Tonnes (2)'!$U$18 -> 0.03941566999 | G80: ='2012 BB Tonnes (2)'!L18/'2012 BB Tonnes (2)'!$U$18 -> 0.01514446171 | H80: ='2012 BB Tonnes (2)'!M18/'2012 BB Tonnes (2)'!$U$18 -> 0.003698169131 | I80: ='2012 BB Tonnes (2)'!N18/'2012 BB Tonnes (2)'!$U$18 -> 0.004298970271 | J80: ='2012 BB Tonnes (2)'!O18/'2012 BB Tonnes (2)'!$U$18 -> 8.052189327e-06 | K80: ='2012 BB Tonnes (2)'!P18/'2012 BB Tonnes (2)'!$U$18 -> 0.02846262596 | L80: ='2012 BB Tonnes (2)'!Q18/'2012 BB Tonnes (2)'!$U$18 -> 0.03831069225 | M80: ='2012 BB Tonnes (2)'!R18/'2012 BB Tonnes (2)'!$U$18 -> 0.01245838221 | N80: ='2012 BB Tonnes (2)'!S18/'2012 BB Tonnes (2)'!$U$18 -> 0.08178350964 | O80: ='2012 BB Tonnes (2)'!T18/'2012 BB Tonnes (2)'!$U$18 -> 0.01581366334
A81: Medium Urban | B81: ='2012 BB Tonnes (2)'!G26/'2012 BB Tonnes (2)'!$U$26 -> 0.5932241053 | C81: ='2012 BB Tonnes (2)'!H26/'2012 BB Tonnes (2)'!$U$26 -> 0.1540451282 | D81: ='2012 BB Tonnes (2)'!I26/'2012 BB Tonnes (2)'!$U$26 -> 0 | E81: ='2012 BB Tonnes (2)'!J26/'2012 BB Tonnes (2)'!$U$26 -> 0.01021377983 | F81: ='2012 BB Tonnes (2)'!K26/'2012 BB Tonnes (2)'!$U$26 -> 0.04726438652 | G81: ='2012 BB Tonnes (2)'!L26/'2012 BB Tonnes (2)'!$U$26 -> 0.02721854219 | H81: ='2012 BB Tonnes (2)'!M26/'2012 BB Tonnes (2)'!$U$26 -> 0.001544109973 | I81: ='2012 BB Tonnes (2)'!N26/'2012 BB Tonnes (2)'!$U$26 -> 0.002833640865 | J81: ='2012 BB Tonnes (2)'!O26/'2012 BB Tonnes (2)'!$U$26 -> 4.318725155e-05 | K81: ='2012 BB Tonnes (2)'!P26/'2012 BB Tonnes (2)'!$U$26 -> 0.02870577489 | L81: ='2012 BB Tonnes (2)'!Q26/'2012 BB Tonnes (2)'!$U$26 -> 0.0390711548 | M81: ='2012 BB Tonnes (2)'!R26/'2012 BB Tonnes (2)'!$U$26 -> 0.01914190239 | N81: ='2012 BB Tonnes (2)'!S26/'2012 BB Tonnes (2)'!$U$26 -> 0.06180050997 | O81: ='2012 BB Tonnes (2)'!T26/'2012 BB Tonnes (2)'!$U$26 -> 0.01489377779
A82: Rural Regional | B82: ='2012 BB Tonnes (2)'!G41/'2012 BB Tonnes (2)'!$U$41 -> 0.4588036169 | C82: ='2012 BB Tonnes (2)'!H41/'2012 BB Tonnes (2)'!$U$41 -> 0.2067154369 | D82: ='2012 BB Tonnes (2)'!I41/'2012 BB Tonnes (2)'!$U$41 -> 0.082595823 | E82: ='2012 BB Tonnes (2)'!J41/'2012 BB Tonnes (2)'!$U$41 -> 0.004742192495 | F82: ='2012 BB Tonnes (2)'!K41/'2012 BB Tonnes (2)'!$U$41 -> 0.03522825064 | G82: ='2012 BB Tonnes (2)'!L41/'2012 BB Tonnes (2)'!$U$41 -> 0.01612740755 | H82: ='2012 BB Tonnes (2)'!M41/'2012 BB Tonnes (2)'!$U$41 -> 0.0124492209 | I82: ='2012 BB Tonnes (2)'!N41/'2012 BB Tonnes (2)'!$U$41 -> 0.002881273904 | J82: ='2012 BB Tonnes (2)'!O41/'2012 BB Tonnes (2)'!$U$41 -> 0.0006033255586 | K82: ='2012 BB Tonnes (2)'!P41/'2012 BB Tonnes (2)'!$U$41 -> 0.03925835686 | L82: ='2012 BB Tonnes (2)'!Q41/'2012 BB Tonnes (2)'!$U$41 -> 0.04088843323 | M82: ='2012 BB Tonnes (2)'!R41/'2012 BB Tonnes (2)'!$U$41 -> 0.01363524357 | N82: ='2012 BB Tonnes (2)'!S41/'2012 BB Tonnes (2)'!$U$41 -> 0.06738395434 | O82: ='2012 BB Tonnes (2)'!T41/'2012 BB Tonnes (2)'!$U$41 -> 0.01868746414
A83: Small Urban | B83: ='2012 BB Tonnes (2)'!G65/'2012 BB Tonnes (2)'!$U$65 -> 0.4470817245 | C83: ='2012 BB Tonnes (2)'!H65/'2012 BB Tonnes (2)'!$U$65 -> 0.2183931664 | D83: ='2012 BB Tonnes (2)'!I65/'2012 BB Tonnes (2)'!$U$65 -> 0.04972201845 | E83: ='2012 BB Tonnes (2)'!J65/'2012 BB Tonnes (2)'!$U$65 -> 0.009220961032 | F83: ='2012 BB Tonnes (2)'!K65/'2012 BB Tonnes (2)'!$U$65 -> 0.04651040197 | G83: ='2012 BB Tonnes (2)'!L65/'2012 BB Tonnes (2)'!$U$65 -> 0.02999612758 | H83: ='2012 BB Tonnes (2)'!M65/'2012 BB Tonnes (2)'!$U$65 -> 0.008906098109 | I83: ='2012 BB Tonnes (2)'!N65/'2012 BB Tonnes (2)'!$U$65 -> 0.008549560078 | J83: ='2012 BB Tonnes (2)'!O65/'2012 BB Tonnes (2)'!$U$65 -> 0.0002440437872 | K83: ='2012 BB Tonnes (2)'!P65/'2012 BB Tonnes (2)'!$U$65 -> 0.02025930597 | L83: ='2012 BB Tonnes (2)'!Q65/'2012 BB Tonnes (2)'!$U$65 -> 0.04199140924 | M83: ='2012 BB Tonnes (2)'!R65/'2012 BB Tonnes (2)'!$U$65 -> 0.01946998377 | N83: ='2012 BB Tonnes (2)'!S65/'2012 BB Tonnes (2)'!$U$65 -> 0.07549997571 | O83: ='2012 BB Tonnes (2)'!T65/'2012 BB Tonnes (2)'!$U$65 -> 0.02415522341
A84: Rural Collection - North | B84: ='2012 BB Tonnes (2)'!G98/'2012 BB Tonnes (2)'!$U$98 -> 0.5399398074 | C84: ='2012 BB Tonnes (2)'!H98/'2012 BB Tonnes (2)'!$U$98 -> 0.2409446003 | D84: ='2012 BB Tonnes (2)'!I98/'2012 BB Tonnes (2)'!$U$98 -> 0.006432205995 | E84: ='2012 BB Tonnes (2)'!J98/'2012 BB Tonnes (2)'!$U$98 -> 0.007985514931 | F84: ='2012 BB Tonnes (2)'!K98/'2012 BB Tonnes (2)'!$U$98 -> 0.04365857732 | G84: ='2012 BB Tonnes (2)'!L98/'2012 BB Tonnes (2)'!$U$98 -> 0.0212036375 | H84: ='2012 BB Tonnes (2)'!M98/'2012 BB Tonnes (2)'!$U$98 -> 0.006581587521 | I84: ='2012 BB Tonnes (2)'!N98/'2012 BB Tonnes (2)'!$U$98 -> 0.003900420098 | J84: ='2012 BB Tonnes (2)'!O98/'2012 BB Tonnes (2)'!$U$98 -> 0.0002416431311 | K84: ='2012 BB Tonnes (2)'!P98/'2012 BB Tonnes (2)'!$U$98 -> 0.001768862937 | L84: ='2012 BB Tonnes (2)'!Q98/'2012 BB Tonnes (2)'!$U$98 -> 0.03379280611 | M84: ='2012 BB Tonnes (2)'!R98/'2012 BB Tonnes (2)'!$U$98 -> 0.01463412717 | N84: ='2012 BB Tonnes (2)'!S98/'2012 BB Tonnes (2)'!$U$98 -> 0.06623968593 | O84: ='2012 BB Tonnes (2)'!T98/'2012 BB Tonnes (2)'!$U$98 -> 0.01267652363
A85: Rural Collection - South | B85: ='2012 BB Tonnes (2)'!G162/'2012 BB Tonnes (2)'!$U$162 -> 0.49074349 | C85: ='2012 BB Tonnes (2)'!H162/'2012 BB Tonnes (2)'!$U$162 -> 0.2158524081 | D85: ='2012 BB Tonnes (2)'!I162/'2012 BB Tonnes (2)'!$U$162 -> 0.01415360711 | E85: ='2012 BB Tonnes (2)'!J162/'2012 BB Tonnes (2)'!$U$162 -> 0.01028504944 | F85: ='2012 BB Tonnes (2)'!K162/'2012 BB Tonnes (2)'!$U$162 -> 0.05022295723 | G85: ='2012 BB Tonnes (2)'!L162/'2012 BB Tonnes (2)'!$U$162 -> 0.01841234143 | H85: ='2012 BB Tonnes (2)'!M162/'2012 BB Tonnes (2)'!$U$162 -> 0.01357024618 | I85: ='2012 BB Tonnes (2)'!N162/'2012 BB Tonnes (2)'!$U$162 -> 0.003399864226 | J85: ='2012 BB Tonnes (2)'!O162/'2012 BB Tonnes (2)'!$U$162 -> 0.0003518993693 | K85: ='2012 BB Tonnes (2)'!P162/'2012 BB Tonnes (2)'!$U$162 -> 0.01833241048 | L85: ='2012 BB Tonnes (2)'!Q162/'2012 BB Tonnes (2)'!$U$162 -> 0.03938898376 | M85: ='2012 BB Tonnes (2)'!R162/'2012 BB Tonnes (2)'!$U$162 -> 0.01762135526 | N85: ='2012 BB Tonnes (2)'!S162/'2012 BB Tonnes (2)'!$U$162 -> 0.08318275031 | O85: ='2012 BB Tonnes (2)'!T162/'2012 BB Tonnes (2)'!$U$162 -> 0.0244826371
A86: Rural Depot - North | B86: ='2012 BB Tonnes (2)'!G209/'2012 BB Tonnes (2)'!$U$209 -> 0.4944020344 | C86: ='2012 BB Tonnes (2)'!H209/'2012 BB Tonnes (2)'!$U$209 -> 0.3487099986 | D86: ='2012 BB Tonnes (2)'!I209/'2012 BB Tonnes (2)'!$U$209 -> 0.000660729793 | E86: ='2012 BB Tonnes (2)'!J209/'2012 BB Tonnes (2)'!$U$209 -> 0.007529475787 | F86: ='2012 BB Tonnes (2)'!K209/'2012 BB Tonnes (2)'!$U$209 -> 0.04417388737 | G86: ='2012 BB Tonnes (2)'!L209/'2012 BB Tonnes (2)'!$U$209 -> 0.02161571518 | H86: ='2012 BB Tonnes (2)'!M209/'2012 BB Tonnes (2)'!$U$209 -> 0.01041982838 | I86: ='2012 BB Tonnes (2)'!N209/'2012 BB Tonnes (2)'!$U$209 -> 0.003615161022 | J86: ='2012 BB Tonnes (2)'!O209/'2012 BB Tonnes (2)'!$U$209 -> 0.000223970446 | K86: ='2012 BB Tonnes (2)'!P209/'2012 BB Tonnes (2)'!$U$209 -> 0.00541887696 | L86: ='2012 BB Tonnes (2)'!Q209/'2012 BB Tonnes (2)'!$U$209 -> 0.03637690421 | M86: ='2012 BB Tonnes (2)'!R209/'2012 BB Tonnes (2)'!$U$209 -> 0.01870277966 | N86: ='2012 BB Tonnes (2)'!S209/'2012 BB Tonnes (2)'!$U$209 -> 0.006718413254 | O86: ='2012 BB Tonnes (2)'!T209/'2012 BB Tonnes (2)'!$U$209 -> 0.001432224979
A87: Rural Depot - South | B87: ='2012 BB Tonnes (2)'!G243/'2012 BB Tonnes (2)'!$U$243 -> 0.3555970442 | C87: ='2012 BB Tonnes (2)'!H243/'2012 BB Tonnes (2)'!$U$243 -> 0.2717516734 | D87: ='2012 BB Tonnes (2)'!I243/'2012 BB Tonnes (2)'!$U$243 -> 0.1428492265 | E87: ='2012 BB Tonnes (2)'!J243/'2012 BB Tonnes (2)'!$U$243 -> 0.00480405154 | F87: ='2012 BB Tonnes (2)'!K243/'2012 BB Tonnes (2)'!$U$243 -> 0.05784090243 | G87: ='2012 BB Tonnes (2)'!L243/'2012 BB Tonnes (2)'!$U$243 -> 0.02940946964 | H87: ='2012 BB Tonnes (2)'!M243/'2012 BB Tonnes (2)'!$U$243 -> 0.01515378827 | I87: ='2012 BB Tonnes (2)'!N243/'2012 BB Tonnes (2)'!$U$243 -> 0.004560428437 | J87: ='2012 BB Tonnes (2)'!O243/'2012 BB Tonnes (2)'!$U$243 -> 0.0003338469177 | K87: ='2012 BB Tonnes (2)'!P243/'2012 BB Tonnes (2)'!$U$243 -> 0.0125566793 | L87: ='2012 BB Tonnes (2)'!Q243/'2012 BB Tonnes (2)'!$U$243 -> 0.04397322298 | M87: ='2012 BB Tonnes (2)'!R243/'2012 BB Tonnes (2)'!$U$243 -> 0.01709827082 | N87: ='2012 BB Tonnes (2)'!S243/'2012 BB Tonnes (2)'!$U$243 -> 0.0326997111 | O87: ='2012 BB Tonnes (2)'!T243/'2012 BB Tonnes (2)'!$U$243 -> 0.01137168444
A89: Gross Costs | B89: 326249345.6
A90: Net Costs | B90: 239481134.7
A91: Net Cost Per Tonne | B91: 265.5710823
A93: Municipal Grouping | B93: Printed Paper | C93: OCC/OBB | D93: Mixed Paper | E93: Polycoat | F93: PET | G93: HDPE | H93: Plastic Film | I93: Tubs and Lids | J93: Polystyrene | K93: Mixed Plastic | L93: Steel | M93: Aluminum | N93: Flint Glass | O93: Coloured Glas
A94: Large Urban | B94: 258168.7852 | C94: 83409.28978 | D94: 289.6616264 | E94: 2284.486659 | F94: 11404.29913 | G94: 6585.009627 | H94: 1424.219956 | I94: 774.5055312 | J94: 107.6853574 | K94: 2433.774814 | L94: 11420.84589 | M94: 3532.518149 | N94: 37001.72352 | O94: 7705.934741
A95: Urban Regional | B95: 123201.9166 | C95: 40565.83323 | D95: 9335.147272 | E95: 1641.144541 | F95: 9055.48373 | G95: 3479.337701 | H95: 849.6293582 | I95: 987.6593586 | J95: 1.849936065 | K95: 6539.095908 | L95: 8801.622564 | M95: 2862.229093 | N95: 18789.20848 | O95: 3633.082252
A96: Medium Urban | B96: 30391.06971 | C96: 7891.783542 | D96: 0 | E96: 523.2553635 | F96: 2421.37036 | G96: 1394.415037 | H96: 79.10527137 | I96: 145.1683711 | J96: 2.212497369 | K96: 1470.606467 | L96: 2001.628353 | M96: 980.6460742 | N96: 3166.060836 | O96: 763.0132271
A97: Rural Regional | B97: 44224.36489 | C97: 19925.42903 | D97: 7961.462551 | E97: 457.1028726 | F97: 3395.672905 | G97: 1554.530806 | H97: 1199.988116 | I97: 277.7277767 | J97: 58.15492439 | K97: 3784.137341 | L97: 3941.261412 | M97: 1314.309575 | N97: 6495.181106 | O97: 1801.296246
A98: Small Urban | B98: 11618.53271 | C98: 5675.490651 | D98: 1292.150554 | E98: 239.6296505 | F98: 1208.688696 | G98: 779.5241236 | H98: 231.4471528 | I98: 222.1816236 | J98: 6.342085954 | K98: 526.4885507 | L98: 1091.251409 | M98: 505.9760463 | N98: 1962.05501 | O98: 627.7336736
A99: Rural Collection - North | B99: 12312.45298 | C99: 5494.351448 | D99: 146.676042 | E99: 182.096737 | F99: 995.5631593 | G99: 483.5146182 | H99: 150.0824458 | I99: 88.94276438 | J99: 5.510280312 | K99: 40.33605496 | L99: 770.5902226 | M99: 333.7075731 | N99: 1510.488776 | O99: 289.0675943
A100: Rural Collection - South | B100: 20111.8602 | C100: 8846.155972 | D100: 580.0491974 | E100: 421.5063077 | F100: 2058.258775 | G100: 754.5824738 | H100: 556.1416495 | I100: 139.334694 | J100: 14.42169089 | K100: 751.3067093 | L100: 1614.256227 | M100: 722.1659393 | N100: 3409.031152 | O100: 1003.357935
A101: Rural Depot - North | B101: 2493.100745 | C101: 1758.425526 | D101: 3.331834872 | E101: 37.96857696 | F101: 222.7538396 | G101: 109.0006753 | H101: 52.54363874 | I101: 18.23002336 | J101: 1.129406529 | K101: 27.32554732 | L101: 183.4363143 | M101: 94.31173552 | N101: 33.87866538 | O101: 7.222221824
A102: Rural Depot - South | B102: 2410.387373 | C102: 1842.047938 | D102: 968.292559 | E102: 32.56389601 | F102: 392.0701342 | G102: 199.3498411 | H102: 102.7187951 | I102: 30.91251544 | J102: 2.262955803 | K102: 85.11449046 | L102: 298.0691295 | M102: 115.8993213 | N102: 221.6524912 | O102: 77.08209344
B103: =SUM(B94:B102) -> 504932.4704 | C103: =SUM(C94:C102) -> 175408.8071 | D103: 20576.77164 | E103: 5819.754604 | F103: 31154.16073 | G103: 15339.2649 | H103: 4645.876383 | I103: 2684.662658 | J103: 199.5691347 | K103: 15658.18588 | L103: 30122.96152 | M103: 10461.76351 | N103: 72589.28004 | O103: 15907.78998

Sheet 2012 Macro Cost Data (hidden)
B2: 2012 Blue Box Financial Details
A4: Municipal Grouping | B4: Marketed or Calculated Marketed Tonnes | C4: Residential Collection Costs | D4: Residential Processing Costs | E4: Residential Depot/Transfer Costs | F4: Residential Promotion & Education Costs | G4: Interest on Municipal Capital | H4: Adminstration Costs | I4: Gross Costs | J4: Total Gross Revenue | K4: Net Cost
A5: 1 | B5: 41298.58 | C5: 5130395.68 | D5: 3219575.71 | E5: 48119.7 | F5: 200371.69 | G5: 21475.35 | H5: 310533.7 | I5: 8930471.83 | J5: 1302216.65 | K5: 7628255.18
A6: 1 | B6: 38422.15 | C6: 7922612.29 | D6: 3479644.93 | E6: 124144.33 | F6: 145501.86 | G6: 173053.91 | H6: 394518.97 | I6: 12239476.29 | J6: 4535360.72 | K6: 7704115.57
A7: 1 | B7: 26669.9 | C7: 5084528.22 | D7: 4153375.59 | E7: 66046.29 | F7: 228337.97 | G7: 268180.85 | H7: 332513 | I7: 10132981.92 | J7: 3605121.89 | K7: 6527860.03
A8: 1 | B8: 86950.4 | C8: 19937202.43 | D8: 14095723.1 | E8: 286940.4 | F8: 673487.78 | G8: 943555.54 | H8: 1242238.82 | I8: 37179148.07 | J8: 9639556.46 | K8: 27539591.61
A9: 1 | B9: 156465 | C9: 33215934.3 | D9: 22397573.54 | E9: 7232374 | F9: 1806726 | G9: 1578717.86 | H9: 2811315.78 | I9: 69042641.48 | J9: 16074934 | K9: 52967707.48
A10: 1 | B10: 76736.71 | C10: 9252969.95 | D10: 11149290.92 | E10: 2826032.28 | F10: 347096.06 | G10: 783978.41 | H10: 832345.29 | I10: 25191712.91 | J10: 9157217.61 | K10: 16034495.3
B11: 426542.74 | C11: 188.829009 | D11: 137.1379191 | E11: 24.81265301 | F11: 7.974631944 | G11: 8.836070964 | H11: 13.88715597 | I11: 381.47744 | J11: 103.892068 | K11: 277.585372
A12: 2 | B12: 44429.08 | C12: 9578932.45 | D12: 5314154.69 | E12: 241957.32 | F12: 469394.3 | G12: 474426.19 | H12: 556715.6 | I12: 16635580.55 | J12: 6277101.36 | K12: 10358479.19
A13: 2 | B13: 24918.31 | C13: 3756911.15 | D13: 2850965.04 | E13: 10045.69 | F13: 189889.61 | G13: 239425.16 | H13: 254074.8 | I13: 7301311.45 | J13: 3405334.58 | K13: 3895976.87
A14: 2 | B14: 39464.89 | C14: 6658374.74 | D14: 4066967.16 | E14: 162198.55 | F14: 434786.97 | G14: 352507.01 | H14: 423126.72 | I14: 12097961.15 | J14: 4392299.36 | K14: 7705661.79
A15: 2 | B15: 60885.53 | C15: 12603398.73 | D15: 5575973.43 | E15: 0 | F15: 59444.22 | G15: 132805.27 | H15: 608304.67 | I15: 18979926.32 | J15: 7949330.93 | K15: 11030595.39
A16: 2 | B16: 25511.02 | C16: 5836446.95 | D16: 756103.76 | E16: 162361.36 | F16: 264060.9 | G16: 19750.44 | H16: 239740.53 | I16: 7278463.94 | J16: 989039.97 | K16: 6289423.97
A17: 2 | B17: 34534.41 | C17: 6866744.12 | D17: 3657464.64 | E17: 27570.6 | F17: 158226.21 | G17: 149070.03 | H17: 364595.61 | I17: 11223671.21 | J17: 4187283.23 | K17: 7036387.98
B18: 229743.24 | C18: 197.180157 | D18: 96.7237544 | E18: 2.62960303 | F18: 6.858970954 | G18: 5.954404143 | H18: 10.64909649 | I18: 319.995986 | J18: 118.3947324 | K18: 201.6012536
A19: 3 | B19: 11589.59511 | C19: 1532833.43 | D19: 0 | E19: 111555.26 | F19: 143655.78 | G19: 4548.99 | H19: 60806.82 | I19: 1853400.28 | J19: 0 | K19: 1853400.28
A20: 3 | B20: 6607.44 | C20: 1715467.76 | D20: 603430.56 | E20: 20187.07 | F20: 55410.28 | G20: 1793.52 | H20: 73957.61 | I20: 2470246.8 | J20: 991471.03 | K20: 1478775.77
A21: 3 | B21: 8415.73 | C21: 1098724.37 | D21: 2211510.97 | E21: 73433.6 | F21: 72650.28 | G21: 163029.6 | H21: 180967.44 | I21: 3800316.26 | J21: 1123351.79 | K21: 2676964.47
A22: 3 | B22: 8517.7 | C22: 1161008.14 | D22: 647209.66 | E22: 54145.01 | F22: 39439.99 | G22: 1717.65 | H22: 58988.36 | I22: 1962508.81 | J22: 1042460.4 | K22: 920048.41
A23: 3 | B23: 3873.07 | C23: 737100.68 | D23: 414561.63 | E23: 0 | F23: 6922.72 | G23: 0 | H23: 36349.19 | I23: 1194934.22 | J23: 629146.05 | K23: 565788.17
A24: 3 | B24: 6013.93 | C24: 851172.44 | D24: 459483.16 | E24: 69911.84 | F24: 6305.09 | G24: 0 | H24: 43078.74 | I24: 1429951.27 | J24: 262175.29 | K24: 1167775.98
A25: 3 | B25: 6212.87 | C25: 290268.88 | D25: 263716.5 | E25: 207097.01 | F25: 67368.68 | G25: 5015.13 | H25: 27695.98 | I25: 861162.18 | J25: 6 | K25: 861156.18
B26: 51230.33511 | C26: 144.1836303 | D26: 89.7888423 | E26: 10.46898852 | F26: 7.646891615 | G26: 3.437511967 | H26: 9.405445796 | I26: 264.9313105 | J26: 79.02760252 | K26: 185.903708
A27: 4 | B27: 11868.21 | C27: 3528377.7 | D27: 1765598.5 | E27: 20269 | F27: 54847.01 | G27: 219765.71 | H27: 278846.25 | I27: 5867704.17 | J27: 1422235.28 | K27: 4445468.89
A28: 4 | B28: 4359.68 | C28: 815055.89 | D28: 491211.67 | E28: 134478.63 | F28: 26714.28 | G28: 30919.09 | H28: 74918.98 | I28: 1573298.54 | J28: 675186.47 | K28: 898112.07
A29: 4 | B29: 4232.23955 | C29: 842300.1 | D29: 0 | E29: 272867.6 | F29: 14198.5 | G29: 2526.2 | H29: 38660.56 | I29: 1170552.96 | J29: 4848.37 | K29: 1165704.59
A30: 4 | B30: 13310.88 | C30: 2921752.65 | D30: 1756372.88 | E30: 170155.94 | F30: 43496.38 | G30: 12066.71 | H30: 156888.98 | I30: 5060733.54 | J30: 702958.33 | K30: 4357775.21
A31: 4 | B31: 5857.16 | C31: 1586532.04 | D31: 134781.19 | E31: 640586.88 | F31: 94088.46 | G31: 13270.69 | H31: 83812.33 | I31: 2553071.59 | J31: 226777.61 | K31: 2326293.98
A32: 4 | B32: 9280.22 | C32: 1944212.71 | D32: 1402234.01 | E32: 0 | F32: 40699.18 | G32: 26236.32 | H32: 136388.01 | I32: 3549770.23 | J32: 1189804.37 | K32: 2359965.86
A33: 4 | B33: 5843.74 | C33: 1549703.93 | D33: 871320.77 | E33: 779793.82 | F33: 46987.71 | G33: 1844.89 | H33: 104754.07 | I33: 3354405.19 | J33: 457763.33 | K33: 2896641.86
A34: 4 | B34: 4677.18 | C34: 1466156.39 | D34: 719069.37 | E34: 0 | F34: 56429.23 | G34: 14455.73 | H34: 71646.61 | I34: 2327757.33 | J34: 513673.7 | K34: 1814083.63
A35: 4 | B35: 3895.94 | C35: 758595.38 | D35: 184152.37 | E35: 50968.07 | F35: 36279.58 | G35: 10165.7 | H35: 36962.8 | I35: 1077123.9 | J35: 410300.04 | K35: 666823.86
A36: 4 | B36: 5461.1 | C36: 964184.99 | D36: 1609197.85 | E36: 48213.06 | F36: 95559.14 | G36: 72137.87 | H36: 120720.71 | I36: 2910013.62 | J36: 705223.69 | K36: 2204789.93
A37: 4 | B37: 7146.65 | C37: 1322872.63 | D37: 722557.23 | E37: 133251.58 | F37: 45011.31 | G37: 3022.21 | H37: 77056.93 | I37: 2303771.89 | J37: 893993.97 | K37: 1409777.92
A38: 4 | B38: 4707.1 | C38: 1048946.32 | D38: 513343.79 | E38: 188630.02 | F38: 52629.88 | G38: 287.73 | H38: 56637.11 | I38: 1860474.85 | J38: 667145.07 | K38: 1193329.78
A39: 4 | B39: 10751.01 | C39: 2347903.02 | D39: 883842.82 | E39: 34068.69 | F39: 51638.61 | G39: 11992.57 | H39: 109856.32 | I39: 3439302.03 | J39: 1380202.08 | K39: 2059099.95
A40: 4 | B40: 4999.51 | C40: 1266434.85 | D40: 485332.66 | E40: 294823.29 | F40: 54718.01 | G40: 9947.23 | H40: 73983.1 | I40: 2185239.14 | J40: 803505.82 | K40: 1381733.32
B41: 96390.61955 | C41: 232.0042002 | D41: 119.7109757 | E41: 28.71759299 | F41: 7.40006946 | G41: 4.446891741 | H41: 14.74347573 | I41: 407.0232058 | J41: 104.3007938 | K41: 302.7224121
A42: 5 | B42: 642.00449 | C42: 147447.99 | D42: 4873.68 | E42: 0 | F42: 1209.19 | G42: 0 | H42: 4630.11 | I42: 158160.97 | J42: 268 | K42: 157892.97
A43: 5 | B43: 382.737048 | C43: 118234.91 | D43: 41132.77 | E43: 0 | F43: 6295.75 | G43: 0 | H43: 5182.67 | I43: 170846.1 | J43: 35307.6 | K43: 135538.5
A44: 5 | B44: 1376.472448 | C44: 199680.14 | D44: 0 | E44: 0 | F44: 9669.12 | G44: 0 | H44: 6473.86 | I44: 215823.12 | J44: 0 | K44: 215823.12
A45: 5 | B45: 623.18 | C45: 254122.62 | D45: 54026.87 | E45: 0 | F45: 607.5 | G45: 0 | H45: 9274.86 | I45: 318031.85 | J45: 82682.9 | K45: 235348.95
A46: 5 | B46: 235.174624 | C46: 48493.83 | D46: 16723.91 | E46: 0 | F46: 2687.5 | G46: 0 | H46: 2090.91 | I46: 69996.15 | J46: 0 | K46: 69996.15
A47: 5 | B47: 2598.56 | C47: 762792.9 | D47: 508746.01 | E47: 40781.93 | F47: 14255.49 | G47: 339.28 | H47: 42161.09 | I47: 1369076.7 | J47: 356109.04 | K47: 1012967.66
A48: 5 | B48: 121.17117 | C48: 27728.31 | D48: 0 | E48: 0 | F48: 341.27 | G48: 0 | H48: 848.91 | I48: 28918.49 | J48: 220 | K48: 28698.49
A49: 5 | B49: 416.71232 | C49: 81128.85 | D49: 0 | E49: 0 | F49: 366 | G49: 0 | H49: 2452.17 | I49: 83947.02 | J49: 0 | K49: 83947.02
A50: 5 | B50: 524.86075 | C50: 144835.4 | D50: 0 | E50: 0 | F50: 810.81 | G50: 0 | H50: 4436.77 | I50: 150082.98 | J50: 360 | K50: 149722.98
A51: 5 | B51: 158.16816 | C51: 51588.89 | D51: 13950.2 | E51: 0 | F51: 153.13 | G51: 0 | H51: 1973.83 | I51: 67666.05 | J51: 0 | K51: 67666.05
A52: 5 | B52: 3605.5768 | C52: 648980.33 | D52: 0 | E52: 0 | F52: 557.56 | G52: 1269.35 | H52: 19835.19 | I52: 670642.43 | J52: 0 | K52: 670642.43
A53: 5 | B53: 2948.44 | C53: 424584.81 | D53: 0 | E53: 5647.84 | F53: 8188.28 | G53: 645.11 | H53: 14035.79 | I53: 453101.83 | J53: 2348.59 | K53: 450753.24
A54: 5 | B54: 2068.16 | C54: 255888.92 | D54: 222113.99 | E54: 60680.28 | F54: 20837.38 | G54: 6407.31 | H54: 19326.76 | I54: 585254.64 | J54: 281119.82 | K54: 304134.82
A55: 5 | B55: 358.02 | C55: 106777.55 | D55: 21389.11 | E55: 87273.83 | F55: 1658.07 | G55: 0 | H55: 7909.47 | I55: 225008.03 | J55: 2874.71 | K55: 222133.32
A56: 5 | B56: 543.49 | C56: 111648.45 | D56: 95307.86 | E56: 0 | F56: 1069.8 | G56: 0 | H56: 6262.18 | I56: 214288.29 | J56: 75808.66 | K56: 138479.63
A57: 5 | B57: 3130.56 | C57: 116747.96 | D57: 0 | E57: 0 | F57: 237.5 | G57: 0 | H57: 3514.31 | I57: 120499.77 | J57: 0 | K57: 120499.77
A58: 5 | B58: 257.91626 | C58: 79104 | D58: 0 | E58: 0 | F58: 2412.5 | G58: 0 | H58: 2591.09 | I58: 84107.59 | J58: 0 | K58: 84107.59
A59: 5 | B59: 457.60892 | C59: 169365.71 | D59: 0 | E59: 24557.96 | F59: 860 | G59: 767.31 | H59: 6390.23 | I59: 201941.21 | J59: 0 | K59: 201941.21
A60: 5 | B60: 487.61 | C60: 93380.96 | D60: 0 | E60: 0 | F60: 1535.49 | G60: 0 | H60: 2878.2 | I60: 97794.65 | J60: 0 | K60: 97794.65
A61: 5 | B61: 576.83 | C61: 161764.65 | D61: 78911.61 | E61: 0 | F61: 8357.84 | G61: 0 | H61: 7697.95 | I61: 256732.05 | J61: 91499.08 | K61: 165232.97
A62: 5 | B62: 2142.03 | C62: 421084.73 | D62: 0 | E62: 0 | F62: 2894.23 | G62: 25.6 | H62: 12778.53 | I62: 436783.09 | J62: 24722.03 | K62: 412061.06
A63: 5 | B63: 2265.1 | C63: 489647.86 | D63: 0 | E63: 45267.87 | F63: 2449.99 | G63: 1619.94 | H63: 17446.7 | I63: 556432.36 | J63: 26194.95 | K63: 530237.41
A64: 5 | B64: 67.10895 | C64: 23155.87 | D64: 0 | E64: 0 | F64: 653.28 | G64: 0 | H64: 727.34 | I64: 24536.49 | J64: 106.2 | K64: 24430.29
B65: 25987.49194 | C65: 190.0216324 | D65: 40.68018616 | E65: 10.16680296 | F65: 3.390387968 | G65: 0.4261242303 | H65: 7.731370171 | I65: 252.4165039 | J65: 37.69588779 | K65: 214.7206161
A66: 6 | B66: 218.02 | C66: 40051.18 | D66: 138821.06 | E66: 0 | F66: 1735.58 | G66: 519.53 | H66: 9056.37 | I66: 190183.72 | J66: 24436.92 | K66: 165746.8
A67: 6 | B67: 59.506728 | C67: 35000 | D67: 26487 | E67: 12100 | F67: 0 | G67: 0 | H67: 2449.61 | I67: 76036.61 | J67: 0 | K67: 76036.61
A68: 6 | B68: 19.2888 | C68: 13603.95 | D68: 0 | E68: 0 | F68: 545 | G68: 0 | H68: 435.37 | I68: 14584.32 | J68: 0 | K68: 14584.32
A69: 6 | B69: 342.912 | C69: 84949 | D69: 0 | E69: 0 | F69: 0 | G69: 0 | H69: 2548.47 | I69: 87497.47 | J69: 150 | K69: 87347.47
A70: 6 | B70: 201.44284 | C70: 45623.83 | D70: 0 | E70: 0 | F70: 0 | G70: 0 | H70: 1368.71 | I70: 46992.54 | J70: 147 | K70: 46845.54
A71: 6 | B71: 117.82242 | C71: 58503.6 | D71: 0 | E71: 8316.32 | F71: 100 | G71: 0 | H71: 2175.92 | I71: 69095.84 | J71: 156 | K71: 68939.84
A72: 6 | B72: 84.029448 | C72: 31330.61 | D72: 0 | E72: 0 | F72: 1243.55 | G72: 0 | H72: 1002.1 | I72: 33576.26 | J72: 40 | K72: 33536.26
A73: 6 | B73: 681.1142 | C73: 150128.96 | D73: 12734.67 | E73: 110524.78 | F73: 36053.27 | G73: 5451.01 | H73: 11825.84 | I73: 326718.53 | J73: 2547.75 | K73: 324170.78
A74: 6 | B74: 347.196496 | C74: 61219.14 | D74: 25718.73 | E74: 0 | F74: 1316.93 | G74: 0 | H74: 2673.98 | I74: 90928.78 | J74: 0 | K74: 90928.78
A75: 6 | B75: 515.78787 | C75: 109704.1 | D75: 0 | E75: 0 | F75: 0 | G75: 0 | H75: 3291.12 | I75: 112995.22 | J75: 0 | K75: 112995.22
A76: 6 | B76: 213.025912 | C76: 72685.31 | D76: 0 | E76: 0 | F76: 1460 | G76: 0 | H76: 2253.56 | I76: 76398.87 | J76: 0 | K76: 76398.87
A77: 6 | B77: 528.14 | C77: 71706 | D77: 15216.62 | E77: 115707.27 | F77: 0 | G77: 3044.25 | H77: 7505.36 | I77: 213179.5 | J77: 0 | K77: 213179.5
A78: 6 | B78: 37.12201 | C78: 24381.09 | D78: 0 | E78: 0 | F78: 857.95 | G78: 0 | H78: 774.33 | I78: 26013.37 | J78: 0 | K78: 26013.37
A79: 6 | B79: 967.31 | C79: 298809.77 | D79: 18567.46 | E79: 210024.75 | F79: 3915.4 | G79: 35496.11 | H79: 27969.33 | I79: 594782.82 | J79: 87202 | K79: 507580.82
A80: 6 | B80: 676.64 | C80: 126634 | D80: 0 | E80: 0 | F80: 11995 | G80: 0 | H80: 4398.77 | I80: 143027.77 | J80: 0 | K80: 143027.77
A81: 6 | B81: 154.68 | C81: 15785.15 | D81: 0 | E81: 47741.71 | F81: 291.04 | G81: 388.09 | H81: 2479.34 | I81: 66685.33 | J81: 0 | K81: 66685.33
A82: 6 | B82: 125.42185 | C82: 66690 | D82: 0 | E82: 0 | F82: 6348.12 | G82: 0 | H82: 2318.11 | I82: 75356.23 | J82: 0 | K82: 75356.23
A83: 6 | B83: 17.93144 | C83: 13112.5 | D83: 0 | E83: 1695.91 | F83: 0 | G83: 0 | H83: 444.25 | I83: 15252.66 | J83: 0 | K83: 15252.66
A84: 6 | B84: 274.82968 | C84: 32461.44 | D84: 0 | E84: 51461.73 | F84: 0 | G84: 0 | H84: 3370.43 | I84: 87293.6 | J84: 83.2 | K84: 87210.4
A85: 6 | B85: 55.07131 | C85: 33993 | D85: 4554.01 | E85: 0 | F85: 1839.16 | G85: 0 | H85: 1248.37 | I85: 41634.54 | J85: 0 | K85: 41634.54
A86: 6 | B86: 328.54363 | C86: 88197.58 | D86: 0 | E86: 0 | F86: 485 | G86: 0 | H86: 2670.18 | I86: 91352.76 | J86: 0 | K86: 91352.76
A87: 6 | B87: 77.881376 | C87: 30390.67 | D87: 3926.86 | E87: 5907.63 | F87: 0 | G87: 505.93 | H87: 1868.07 | I87: 42599.16 | J87: 0 | K87: 42599.16
A88: 6 | B88: 12.65268 | C88: 9722.66 | D88: 0 | E88: 10615 | F88: 2843.75 | G88: 0 | H88: 1159.07 | I88: 24340.48 | J88: 0 | K88: 24340.48
A89: 6 | B89: 134.935832 | C89: 78152.35 | D89: 0 | E89: 0 | F89: 2985.31 | G89: 0 | H89: 2493.84 | I89: 83631.5 | J89: 0 | K89: 83631.5
A90: 6 | B90: 39.079824 | C90: 48070.2 | D90: 1084.8 | E90: 1084.8 | F90: 8476.72 | G90: 0 | H90: 1931.03 | I90: 60647.55 | J90: 27720 | K90: 32927.55
A91: 6 | B91: 107.186896 | C91: 109548.75 | D91: 0 | E91: 5814.75 | F91: 3011.25 | G91: 2323.73 | H91: 3953.62 | I91: 124652.1 | J91: 212 | K91: 124440.1
A92: 6 | B92: 26.279312 | C92: 12374 | D92: 0 | E92: 0 | F92: 1005 | G92: 0 | H92: 421.47 | I92: 13800.47 | J92: 0 | K92: 13800.47
A93: 6 | B93: 3077.401352 | C93: 653698.7 | D93: 287543.05 | E93: 350534.83 | F93: 19535.72 | G93: 19872.55 | H93: 59967.96 | I93: 1391152.81 | J93: 150 | K93: 1391002.81
A94: 6 | B94: 107.4279 | C94: 29707.53 | D94: 0 | E94: 0 | F94: 55.1 | G94: 0 | H94: 893.98 | I94: 30656.61 | J94: 0 | K94: 30656.61
A95: 6 | B95: 626.81 | C95: 87466.93 | D95: 113379.61 | E95: 47425.43 | F95: 22707.05 | G95: 0 | H95: 13434.39 | I95: 284413.41 | J95: 28718.98 | K95: 255694.43
A96: 6 | B96: 50.95856 | C96: 14319.41 | D96: 0 | E96: 0 | F96: 0 | G96: 0 | H96: 429.58 | I96: 14748.99 | J96: 0 | K96: 14748.99
B97: 10226.45037 | C97: 249.1599058 | D97: 63.3684071 | E97: 95.72773298 | F97: 12.59536744 | G97: 6.610426647 | H97: 17.48529779 | I97: 444.9471378 | J97: 16.77648097 | K97: 428.1706568
A98: 7 | B98: 627.251176 | C98: 218324.11 | D98: 70135.64 | E98: 0 | F98: 9059.84 | G98: 570.9 | H98: 9585.96 | I98: 307676.45 | J98: 3071.96 | K98: 304604.49
A99: 7 | B99: 28.46884 | C99: 13911.54 | D99: 0 | E99: 9567.25 | F99: 0 | G99: 764.75 | H99: 1212.18 | I99: 25455.72 | J99: 0 | K99: 25455.72
A100: 7 | B100: 271.12 | C100: 44215.55 | D100: 0 | E100: 0 | F100: 0 | G100: 0 | H100: 1326.47 | I100: 45542.02 | J100: 0 | K100: 45542.02
A101: 7 | B101: 251.44484 | C101: 114785.28 | D101: 0 | E101: 17864.61 | F101: 5610 | G101: 347.45 | H101: 4634.66 | I101: 143242 | J101: 0 | K101: 143242
A102: 7 | B102: 189.90538 | C102: 15804.05 | D102: 0 | E102: 43448.28 | F102: 425 | G102: 0 | H102: 2667.79 | I102: 62345.12 | J102: 0 | K102: 62345.12
A103: 7 | B103: 386.73 | C103: 97425.31 | D103: 0 | E103: 79367.22 | F103: 1689.22 | G103: 0 | H103: 6975.58 | I103: 185457.33 | J103: 7073.87 | K103: 178383.46
A104: 7 | B104: 412.99 | C104: 159668.6 | D104: 24099.75 | E104: 0 | F104: 682.93 | G104: 0 | H104: 5547.2 | I104: 189998.48 | J104: 26368.87 | K104: 163629.61
A105: 7 | B105: 435.44 | C105: 197439.55 | D105: 37813.52 | E105: 0 | F105: 457.14 | G105: 0 | H105: 7094.65 | I105: 242804.86 | J105: 57884.1 | K105: 184920.76
A106: 7 | B106: 266.3819 | C106: 44864.5 | D106: 244.2 | E106: 38694.27 | F106: 450 | G106: 1788.35 | H106: 4297.18 | I106: 90338.5 | J106: 0 | K106: 90338.5
A107: 7 | B107: 1918.72 | C107: 776075.72 | D107: 0 | E107: 22365.25 | F107: 14885.71 | G107: 45.91 | H107: 24797.86 | I107: 838170.45 | J107: 3446.77 | K107: 834723.68
A108: 7 | B108: 523.92 | C108: 308168.21 | D108: 29043.11 | E108: 0 | F108: 18963.56 | G108: 0 | H108: 11683.78 | I108: 367858.66 | J108: 57553.18 | K108: 310305.48
A109: 7 | B109: 339.604888 | C109: 103089.17 | D109: 0 | E109: 2030.18 | F109: 7487.01 | G109: 0 | H109: 3632.55 | I109: 116238.91 | J109: 0 | K109: 116238.91
A110: 7 | B110: 23.1287 | C110: 41932.16 | D110: 0 | E110: 53210.98 | F110: 10953.26 | G110: 528.82 | H110: 4819.19 | I110: 111444.41 | J110: 0 | K110: 111444.41
A111: 7 | B111: 15.52236 | C111: 40089.94 | D111: 0 | E111: 3368.91 | F111: 189.09 | G111: 182.43 | H111: 2191.52 | I111: 46021.89 | J111: 0 | K111: 46021.89
A112: 7 | B112: 91.13958 | C112: 68857.86 | D112: 0 | E112: 49693.02 | F112: 2289.94 | G112: 50.31 | H112: 6044.56 | I112: 126935.69 | J112: 0 | K112: 126935.69
A113: 7 | B113: 1496.97162 | C113: 338691.69 | D113: 0 | E113: 0 | F113: 5639.95 | G113: 0 | H113: 10939.74 | I113: 355271.38 | J113: 7251.06 | K113: 348020.32
A114: 7 | B114: 601.137088 | C114: 113349.65 | D114: 0 | E114: 0 | F114: 23562.5 | G114: 82.38 | H114: 4711.28 | I114: 141705.81 | J114: 509.76 | K114: 141196.05
A115: 7 | B115: 526.71 | C115: 178029.05 | D115: 45557.86 | E115: 450 | F115: 2652 | G115: 0 | H115: 6884.41 | I115: 233573.32 | J115: 70006.35 | K115: 163566.97
A116: 7 | B116: 275.21 | C116: 71764.08 | D116: 6790.64 | E116: 0 | F116: 3089.55 | G116: 0 | H116: 2511.12 | I116: 84155.39 | J116: 34710.13 | K116: 49445.26
A117: 7 | B117: 229.93 | C117: 65005.42 | D117: 0 | E117: 0 | F117: 0 | G117: 0 | H117: 1950.16 | I117: 66955.58 | J117: 0 | K117: 66955.58
A118: 7 | B118: 221.06215 | C118: 83977.39 | D118: 0 | E118: 0 | F118: 169.31 | G118: 126.19 | H118: 2544.93 | I118: 86817.82 | J118: 38 | K118: 86779.82
A119: 7 | B119: 283.541776 | C119: 161465.62 | D119: 0 | E119: 0 | F119: 1450 | G119: 0 | H119: 4916.47 | I119: 167832.09 | J119: 0 | K119: 167832.09
A120: 7 | B120: 317.91693 | C120: 57044.64 | D120: 50355.49 | E120: 96376.32 | F120: 1340.68 | G120: 3418.54 | H120: 8278.78 | I120: 216814.45 | J120: 7150.54 | K120: 209663.91
A121: 7 | B121: 120.56393 | C121: 8280 | D121: 0 | E121: 41377.6 | F121: 4836.7 | G121: 0 | H121: 2559.12 | I121: 57053.42 | J121: 2093.8 | K121: 54959.62
A122: 7 | B122: 567.579224 | C122: 209700 | D122: 0 | E122: 0 | F122: 1142 | G122: 0 | H122: 6348.1 | I122: 217190.1 | J122: 0 | K122: 217190.1
A123: 7 | B123: 953.65256 | C123: 104640.35 | D123: 0 | E123: 48712.35 | F123: 150 | G123: 0 | H123: 5582.33 | I123: 159085.03 | J123: 1610 | K123: 157475.03
A124: 7 | B124: 640.912592 | C124: 245982 | D124: 0 | E124: 34796.07 | F124: 11542.65 | G124: 238.07 | H124: 9764.7 | I124: 302323.49 | J124: 580 | K124: 301743.49
A125: 7 | B125: 2902.13 | C125: 1371837.25 | D125: 169588.57 | E125: 359362.12 | F125: 14242.49 | G125: 40371.51 | H125: 66213.8 | I125: 2021615.74 | J125: 299360.57 | K125: 1722255.17
A126: 7 | B126: 260 | C126: 81303.75 | D126: 0 | E126: 148356.1 | F126: 0 | G126: 0 | H126: 9856.92 | I126: 239516.77 | J126: 0 | K126: 239516.77
A127: 7 | B127: 1277.4424 | C127: 382336.95 | D127: 87734.46 | E127: 0 | F127: 7598.66 | G127: 9188.3 | H127: 22113.22 | I127: 508971.59 | J127: 0 | K127: 508971.59
A128: 7 | B128: 358.11 | C128: 21437.91 | D128: 139182.8 | E128: 167069.66 | F128: 1503.03 | G128: 0 | H128: 13253.19 | I128: 342446.59 | J128: 0 | K128: 342446.59
A129: 7 | B129: 178.88576 | C129: 80453.52 | D129: 0 | E129: 152.64 | F129: 5370.49 | G129: 69.54 | H129: 2700.23 | I129: 88746.42 | J129: 4000 | K129: 84746.42
A130: 7 | B130: 158.815048 | C130: 43976 | D130: 0 | E130: 27788.52 | F130: 387.63 | G130: 0 | H130: 2728.09 | I130: 74880.24 | J130: 30 | K130: 74850.24
A131: 7 | B131: 155.39 | C131: 13880.93 | D131: 0 | E131: 90232.09 | F131: 676.02 | G131: 1141.82 | H131: 5296.54 | I131: 111227.4 | J131: 234 | K131: 110993.4
A132: 7 | B132: 304.7 | C132: 26863.39 | D132: 15234 | E132: 149975.03 | F132: 2395 | G132: 495.72 | H132: 6682.49 | I132: 201645.63 | J132: 6879.49 | K132: 194766.14
A133: 7 | B133: 140.71894 | C133: 66631.09 | D133: 0 | E133: 0 | F133: 1531.46 | G133: 0 | H133: 2075.51 | I133: 70238.06 | J133: 0 | K133: 70238.06
A134: 7 | B134: 1042.97 | C134: 289445.69 | D134: 165005.14 | E134: 14082.52 | F134: 886.56 | G134: 122.41 | H134: 14282.12 | I134: 483824.44 | J134: 136707.76 | K134: 347116.68
A135: 7 | B135: 374.95 | C135: 42473.71 | D135: 19215.52 | E135: 102033.94 | F135: 936.02 | G135: 1152.54 | H135: 7906.28 | I135: 173718.01 | J135: 3356.74 | K135: 170361.27
A136: 7 | B136: 353.95 | C136: 107830.03 | D136: 35781.82 | E136: 0 | F136: 2855.92 | G136: 0 | H136: 4451.15 | I136: 150918.92 | J136: 27172.12 | K136: 123746.8
A137: 7 | B137: 574.199 | C137: 129830 | D137: 0 | E137: 0 | F137: 1311 | G137: 0 | H137: 3980.49 | I137: 135121.49 | J137: 0 | K137: 135121.49
A138: 7 | B138: 821.79218 | C138: 291834.65 | D138: 0 | E138: 0 | F138: 3038.2 | G138: 0 | H138: 8906.95 | I138: 303779.8 | J138: 210 | K138: 303569.8
A139: 7 | B139: 203.54 | C139: 17330 | D139: 0 | E139: 0 | F139: 106.77 | G139: 0 | H139: 525.24 | I139: 17962.01 | J139: 65 | K139: 17897.01
A140: 7 | B140: 13.65272 | C140: 12122.15 | D140: 0 | E140: 0 | F140: 13.72 | G140: 0 | H140: 606.79 | I140: 12742.66 | J140: 170.02 | K140: 12572.64
A141: 7 | B141: 778.33 | C141: 285086.33 | D141: 66996.24 | E141: 3785.6 | F141: 5014.5 | G141: 0 | H141: 10926.77 | I141: 371809.44 | J141: 102730.9 | K141: 269078.54
A142: 7 | B142: 681.66 | C142: 132468.32 | D142: 0 | E142: 21797.68 | F142: 1699 | G142: 0 | H142: 5355.43 | I142: 161320.43 | J142: 0 | K142: 161320.43
A143: 7 | B143: 214.42 | C143: 85372.78 | D143: 18910.59 | E143: 0 | F143: 1118.5 | G143: 0 | H143: 3187.91 | I143: 108589.78 | J143: 29230.54 | K143: 79359.24
A144: 7 | B144: 289.41237 | C144: 51313.05 | D144: 4237.5 | E144: 45009.3 | F144: 658.13 | G144: 0 | H144: 3651.54 | I144: 104869.52 | J144: 85 | K144: 104784.52
A145: 7 | B145: 532.99 | C145: 238390.2 | D145: 127280.66 | E145: 0 | F145: 1402.89 | G145: 4629.93 | H145: 18585.18 | I145: 390288.86 | J145: 55242.49 | K145: 335046.37
A146: 7 | B146: 1015.7 | C146: 179753.88 | D146: 315562.89 | E146: 0 | F146: 6801.62 | G146: 18691.78 | H146: 22930.73 | I146: 543740.9 | J146: 160381.61 | K146: 383359.29
A147: 7 | B147: 1102.4978 | C147: 233461.42 | D147: 142027.03 | E147: 65869.64 | F147: 2208.77 | G147: 0 | H147: 14540.97 | I147: 458107.83 | J147: 143280.44 | K147: 314827.39
A148: 7 | B148: 469.10572 | C148: 84116.14 | D148: 0 | E148: 13198.6 | F148: 1594.12 | G148: 0 | H148: 2999.15 | I148: 101908.01 | J148: 5257.81 | K148: 96650.2
A149: 7 | B149: 400.285576 | C149: 101340.7 | D149: 29095.05 | E149: 0 | F149: 7000 | G149: 3904.69 | H149: 6485.12 | I149: 147825.56 | J149: 0 | K149: 147825.56
A150: 7 | B150: 3279.57 | C150: 882055.24 | D150: 862355.07 | E150: 32525.7 | F150: 23200.61 | G150: 31615.2 | H150: 74368.17 | I150: 1906119.99 | J150: 485579.34 | K150: 1420540.65
A151: 7 | B151: 280.1341 | C151: 220848.73 | D151: 0 | E151: 0 | F151: 697.56 | G151: 0 | H151: 6711.15 | I151: 228257.44 | J151: 0 | K151: 228257.44
A152: 7 | B152: 721.03499 | C152: 228326.47 | D152: 0 | E152: 140279.55 | F152: 7967.46 | G152: 5686.04 | H152: 19112.98 | I152: 401372.5 | J152: 0 | K152: 401372.5
A153: 7 | B153: 1067.755752 | C153: 285417.97 | D153: 0 | E153: 0 | F153: 13545.24 | G153: 0 | H153: 9479.53 | I153: 308442.74 | J153: 847 | K153: 307595.74
A154: 7 | B154: 514.446664 | C154: 266734.97 | D154: 0 | E154: 0 | F154: 5163.66 | G154: 0 | H154: 8620.9 | I154: 280519.53 | J154: 392 | K154: 280127.53
A155: 7 | B155: 903 | C155: 512766.76 | D155: 147868.13 | E155: 40002.84 | F155: 3739 | G155: 0 | H155: 21385.59 | I155: 725762.32 | J155: 157104.89 | K155: 568657.43
A156: 7 | B156: 672.47365 | C156: 232193 | D156: 18826 | E156: 0 | F156: 14028.48 | G156: 0 | H156: 8231.99 | I156: 273279.47 | J156: 0 | K156: 273279.47
A157: 7 | B157: 622.72056 | C157: 143872.54 | D157: 17842.66 | E157: 4265 | F157: 7101.64 | G157: 6058.59 | H157: 8600.17 | I157: 187740.6 | J157: 147.38 | K157: 187593.22
A158: 7 | B158: 591.693232 | C158: 195211.68 | D158: 8729.79 | E158: 55017.06 | F158: 1665.22 | G158: 23210.33 | H158: 14017.11 | I158: 297851.19 | J158: 685.08 | K158: 297166.11
A159: 7 | B159: 362.979736 | C159: 229146.78 | D159: 0 | E159: 0 | F159: 726.92 | G159: 0 | H159: 6910.75 | I159: 236784.45 | J159: 21856.79 | K159: 214927.66
A160: 7 | B160: 192.16467 | C160: 72825.41 | D160: 0 | E160: 0 | F160: 0 | G160: 0 | H160: 2184.76 | I160: 75010.17 | J160: 0 | K160: 75010.17
A161: 7 | B161: 704.91 | C161: 180257.52 | D161: 41890.35 | E161: 0 | F161: 1464.93 | G161: 0 | H161: 6737.68 | I161: 230350.48 | J161: 107456.61 | K161: 122893.87
A162: 7 | B162: 419.62548 | C162: 14492.52 | D162: 0 | E162: 297756.82 | F162: 1851.04 | G162: 6175.53 | H162: 14834.46 | I162: 335110.37 | J162: 8781.38 | K162: 326328.99
A163: 7 | B163: 1039.06801 | C163: 319047.52 | D163: 32431.7 | E163: 7646.24 | F163: 12395.75 | G163: 0 | H163: 11546.48 | I163: 383067.69 | J163: 30633.47 | K163: 352434.22
A164: 7 | B164: 791.49 | C164: 279694.23 | D164: 0 | E164: 3479.04 | F164: 10102.84 | G164: 564.01 | H164: 9175.65 | I164: 303015.77 | J164: 12258.87 | K164: 290756.9
A165: 7 | B165: 833.42464 | C165: 254465.33 | D165: 0 | E165: 3695.45 | F165: 585 | G165: 0 | H165: 7774.07 | I165: 266519.85 | J165: 0 | K165: 266519.85
A166: 7 | B166: 177.99 | C166: 45913.81 | D166: 84909.76 | E166: 0 | F166: 291.17 | G166: 0 | H166: 3939.27 | I166: 135054.01 | J166: 3246.06 | K166: 131807.95
A167: 7 | B167: 771.796088 | C167: 240887.17 | D167: 0 | E167: 8735 | F167: 861.4 | G167: 0 | H167: 7706.44 | I167: 258190.01 | J167: 14683.55 | K167: 243506.46
A168: 7 | B168: 413.5483 | C168: 149609 | D168: 0 | E168: 0 | F168: 0 | G168: 0 | H168: 4488.27 | I168: 154097.27 | J168: 1731 | K168: 152366.27
B169: 40982.42892 | C169: 317.3857254 | D169: 68.68177446 | E169: 57.18154125 | F169: 7.42895109 | G169: 3.933930815 | H169: 16.33796526 | I169: 470.9498882 | J169: 51.22064151 | K169: 419.7292467
A170: 8 | B170: 48.63278 | C170: 0 | D170: 0 | E170: 16489.5 | F170: 0 | G170: 0 | H170: 581.53 | I170: 17071.03 | J170: 0 | K170: 17071.03
A171: 8 | B171: 47.82015 | C171: 0 | D171: 0 | E171: 24021.52 | F171: 100 | G171: 0 | H171: 1206.08 | I171: 25327.6 | J171: 0 | K171: 25327.6
A172: 8 | B172: 19.43556 | C172: 0 | D172: 0 | E172: 17326.01 | F172: 445.5 | G172: 0 | H172: 888.58 | I172: 18660.09 | J172: 0 | K172: 18660.09
A173: 8 | B173: 116.60794 | C173: 0 | D173: 21789 | E173: 103174 | F173: 0 | G173: 0 | H173: 5812.37 | I173: 130775.37 | J173: 0 | K173: 130775.37
A174: 8 | B174: 51.758592 | C174: 0 | D174: 1160.64 | E174: 7065 | F174: 1725 | G174: 0 | H174: 333.02 | I174: 10283.66 | J174: 0 | K174: 10283.66
A175: 8 | B175: 1742.34 | C175: 0 | D175: 359411.39 | E175: 317640.21 | F175: 1059 | G175: 35636.94 | H175: 35687.38 | I175: 749434.92 | J175: 176855.9 | K175: 572579.02
A176: 8 | B176: 16.58301 | C176: 0 | D176: 0 | E176: 4884.48 | F176: 1175 | G176: 0 | H176: 205.28 | I176: 6264.76 | J176: 0 | K176: 6264.76
A177: 8 | B177: 45.0072 | C177: 0 | D177: 0 | E177: 11722.8 | F177: 0 | G177: 0 | H177: 351.68 | I177: 12074.48 | J177: 0 | K177: 12074.48
A178: 8 | B178: 180.155032 | C178: 0 | D178: 22008.4 | E178: 48554.08 | F178: 0 | G178: 0 | H178: 2429.18 | I178: 72991.66 | J178: 0 | K178: 72991.66
A179: 8 | B179: 16.05614 | C179: 0 | D179: 0 | E179: 10165.19 | F179: 1185.37 | G179: 0 | H179: 567.53 | I179: 11918.09 | J179: 0 | K179: 11918.09
A180: 8 | B180: 51.758592 | C180: 0 | D180: 1160.64 | E180: 7065 | F180: 281.1 | G180: 0 | H180: 260.82 | I180: 8767.56 | J180: 0 | K180: 8767.56
A181: 8 | B181: 7.92984 | C181: 0 | D181: 0 | E181: 11976.34 | F181: 57.11 | G181: 198.62 | H181: 400.4 | I181: 12632.47 | J181: 0 | K181: 12632.47
A182: 8 | B182: 26.070608 | C182: 0 | D182: 728.42 | E182: 6450.64 | F182: 326.7 | G182: 0 | H182: 231.71 | I182: 7737.47 | J182: 0 | K182: 7737.47
A183: 8 | B183: 137.09336 | C183: 0 | D183: 0 | E183: 34874.67 | F183: 505.81 | G183: 0 | H183: 1071.53 | I183: 36452.01 | J183: 0 | K183: 36452.01
A184: 8 | B184: 56.22328 | C184: 0 | D184: 0 | E184: 7565.16 | F184: 0 | G184: 0 | H184: 378.26 | I184: 7943.42 | J184: 0 | K184: 7943.42
A185: 8 | B185: 113.89322 | C185: 1925.32 | D185: 0 | E185: 95081.1 | F185: 0 | G185: 529.88 | H185: 3692.9 | I185: 101229.2 | J185: 0 | K185: 101229.2
A186: 8 | B186: 17.374608 | C186: 0 | D186: 485.61 | E186: 4500.53 | F186: 151.2 | G186: 0 | H186: 161.14 | I186: 5298.48 | J186: 0 | K186: 5298.48
A187: 8 | B187: 41.366872 | C187: 0 | D187: 0 | E187: 63012.1 | F187: 50 | G187: 0 | H187: 2097.53 | I187: 65159.63 | J187: 506.37 | K187: 64653.26
A188: 8 | B188: 71.06494 | C188: 0 | D188: 0 | E188: 18048.63 | F188: 560 | G188: 0 | H188: 755.51 | I188: 19364.14 | J188: 0 | K188: 19364.14
A189: 8 | B189: 103.54 | C189: 0 | D189: 8283.84 | E189: 24972.31 | F189: 943.2 | G189: 0 | H189: 1300.48 | I189: 35499.83 | J189: 4323.9 | K189: 31175.93
A190: 8 | B190: 182.29 | C190: 0 | D190: 0 | E190: 140466.66 | F190: 0 | G190: 7451.1 | H190: 6559.5 | I190: 154477.26 | J190: 0 | K190: 154477.26
A191: 8 | B191: 88.6 | C191: 0 | D191: 0 | E191: 76309.28 | F191: 1828.89 | G191: 3544.54 | H191: 4084.14 | I191: 85766.85 | J191: 15 | K191: 85751.85
A192: 8 | B192: 53.45 | C192: 0 | D192: 0 | E192: 57527.25 | F192: 0 | G192: 438.45 | H192: 2709.12 | I192: 60674.82 | J192: 0 | K192: 60674.82
A193: 8 | B193: 57.0627 | C193: 0 | D193: 0 | E193: 20740.19 | F193: 200 | G193: 0 | H193: 1047.01 | I193: 21987.2 | J193: 0 | K193: 21987.2
A194: 8 | B194: 19.01197 | C194: 0 | D194: 0 | E194: 9284.44 | F194: 433.33 | G194: 0 | H194: 485.89 | I194: 10203.66 | J194: 0 | K194: 10203.66
A195: 8 | B195: 145.08571 | C195: 0 | D195: 0 | E195: 47994.35 | F195: 1565.83 | G195: 66.39 | H195: 2481.33 | I195: 52107.9 | J195: 0 | K195: 52107.9
A196: 8 | B196: 154.54258 | C196: 0 | D196: 0 | E196: 116987.45 | F196: 340 | G196: 3140.64 | H196: 6023.4 | I196: 126491.49 | J196: 0 | K196: 126491.49
A197: 8 | B197: 29.47944 | C197: 0 | D197: 0 | E197: 12546.99 | F197: 0 | G197: 0 | H197: 376.41 | I197: 12923.4 | J197: 0 | K197: 12923.4
A198: 8 | B198: 37.05057 | C198: 0 | D198: 0 | E198: 41580 | F198: 1200 | G198: 0 | H198: 1307.4 | I198: 44087.4 | J198: 0 | K198: 44087.4
A199: 8 | B199: 442.69582 | C199: 67470.38 | D199: 0 | E199: 191774.28 | F199: 2217.84 | G199: 6382.72 | H199: 9993.55 | I199: 277838.77 | J199: 7.72 | K199: 277831.05
A200: 8 | B200: 21.63739 | C200: 9753.8 | D200: 0 | E200: 10061.12 | F200: 68.54 | G200: 483.33 | H200: 886.34 | I200: 21253.13 | J200: 0 | K200: 21253.13
A201: 8 | B201: 90.994944 | C201: 0 | D201: 0 | E201: 49081.21 | F201: 0 | G201: 0 | H201: 2454.06 | I201: 51535.27 | J201: 0 | K201: 51535.27
A202: 8 | B202: 11.28752 | C202: 0 | D202: 0 | E202: 43701.61 | F202: 536.53 | G202: 0 | H202: 2211.91 | I202: 46450.05 | J202: 0 | K202: 46450.05
... 47 more rows

Sheet 2012 BB Tonnes (2)
B2: PC | C2: Group | D2: Municipality | E2: Total Households Served | F2: TOTAL Reported and/or Calculated Marketed Tonnes1 | G2: Paper (tonnes) | K2: Plastic (tonnes) | Q2: Metal (tonnes) | S2: Glass (tonnes)
G3: Printed Paper Reported and/or Calculated Marketed2 | H3: OCC/OBB Reported and/or Calculated Marketed3 | I3: Mixed Paper Reported and/or Calculated Marketed4 | J3: Polycoat Reported and/or Calculated Marketed5 | K3: PET Reported and/or Calculated Marketed | L3: HDPE Reported and/or Calculated Marketed | M3: Plastic Film Reported and/or Calculated Marketed | N3: Tubs and Lids Reported and/or Calculated Marketed | O3: Polystyrene Reported and/or Calculated Marketed | P3: Mixed Plastic Reported and/or Calculated Marketed6 | Q3: Steel Reported and/or Calculated Marketed | R3: Aluminum Reported and/or Calculated Marketed | S3: Flint Reported and/or Calculated Marketed | T3: Coloured Reported and/or Calculated Marketed
E4: =SUM(E5:E242) -> 5192895 | F4: =SUM(F11,F18,F41,F65,F98,F162,F209,F243) -> 841694.0531 | G4: =SUM(G5:G242) -> 587042.4689 | H4: 200234.063 | I4: 25591.72059 | J4: 6651.871335 | K4: 37432.80514 | L4: 18400.41715 | M4: 5542.871877 | N4: 3336.556043 | O4: 211.4856173 | P4: 18042.59631 | Q4: 35921.49006 | R4: 12905.69745 | S4: 83374.99145 | T4: 20020.62408
B5: 1 | C5: 1 | D5: HALTON, REGIONAL MUNICIPALITY OF | E5: 183677 | F5: 41298.58 | G5: 26870.79 | H5: 5923.81 | I5: 241 | J5: 186.23 | K5: 1300.59964 | L5: 614.6761004 | M5: 0.9113625858 | N5: 183.0400972 | O5: 0.03346069746 | P5: 326.3550941 | Q5: 1197.317821 | R5: 501.9330585 | S5: 3319.582027 | T5: 632.3013385 | BA5: =+X5-AM5 -> 0
B6: 20 | C6: 1 | D6: TORONTO, CITY OF | E6: 1000936 | F6: 156465 | G6: 92436.66511 | H6: 34539.73816 | I6: 0 | J6: 808.5428178 | K6: 3801.785958 | L6: 2318.177841 | M6: 267.1327923 | N6: 304.4573261 | O6: 57.07348592 | P6: 751.8772879 | Q6: 4003.090624 | R6: 1104.545639 | S6: 13500.40688 | T6: 2571.506073
B7: 50 | C7: 1 | D7: LONDON, CITY OF | E7: 168568 | F7: 26669.9 | G7: 13684.15 | H7: 5742.94 | I7: 691.75 | J7: 230.9 | K7: 1259.747716 | L7: 496.39 | M7: 182.06 | N7: 0 | O7: 0 | P7: 572.512284 | Q7: 1011.63 | R7: 378.73 | S7: 0 | T7: 2419.09
B8: 97 | C8: 1 | D8: YORK, REGIONAL MUNICIPALITY OF | E8: 332788 | F8: 76736.71 | G8: 49053.02 | H8: 9461.94 | I8: 0 | J8: 381.66 | K8: 2575.521622 | L8: 1422.59 | M8: 0 | N8: 0 | O8: 12.55 | P8: 639.9383783 | Q8: 2170.33 | R8: 708.25 | S8: 8661.1644 | T8: 1649.7456
B9: 172 | C9: 1 | D9: HAMILTON, CITY OF | E9: 215733 | F9: 38422.15 | G9: 19447.51467 | H9: 9478.785331 | I9: 0 | J9: 177.25 | K9: 1380.486476 | L9: 626.89 | M9: 488.1 | N9: 0 | O9: 17.29 | P9: 959.7035235 | Q9: 1478.33 | R9: 526.79 | S9: 3226.4484 | T9: 614.5616
B10: 270 | C10: 1 | D10: PEEL, REGIONAL MUNICIPALITY OF | E10: 416500 | F10: 86950.4 | G10: 55948.72 | H10: 14791.12 | I10: 0 | J10: 546.78 | K10: 2131.99385 | L10: 1277.55 | M10: 853.4 | N10: 238.59 | O10: 0 | P10: 72.06614982 | Q10: 2227.93 | R10: 783.53 | S10: 6786.1248 | T10: 1292.5952
D11: Group 1 Weighted Average | F11: =SUM(F5:F10) -> 426542.74 | G11: =SUMPRODUCT(G5:G10,$F$5:$F$10)/SUM($F$5:$F$10) -> 59346.75964 | H11: 19173.77838 | I11: 66.58620214 | J11: 525.1482301 | K11: 2621.572544 | L11: 1513.734448 | M11: 327.3937217 | N11: 178.0400894 | O11: 24.75425918 | P11: 559.4659663 | Q11: 2625.376244 | R11: 812.0404848 | S11: 8505.801313 | T11: 1771.408021 | U11: =SUM(G11:T11) -> 98051.85955
B12: 6 | C12: 2 | D12: DURHAM, REGIONAL MUNICIPALITY OF | E12: 213317 | F12: 44429.08 | G12: 25353.11 | H12: 4948.45 | I12: 3296.23 | J12: 449.37 | K12: 2065.772287 | L12: 809.84 | M12: 0 | N12: 494.47 | O12: 0 | P12: 69.8277132 | Q12: 1668.06 | R12: 690.51 | S12: 3850.0896 | T12: 733.3504
B13: 18 | C13: 2 | D13: ESSEX-WINDSOR SOLID WASTE AUTHORITY | E13: 164356 | F13: 24918.31 | G13: 14788.63 | H13: 4987.66 | I13: 0 | J13: 54.63 | K13: 875.1286971 | L13: 460.01 | M13: 0 | N13: 0 | O13: 0 | P13: 491.5613029 | Q13: 948.9537627 | R13: 317.6962373 | S13: 1712.968 | T13: 281.072
B14: 53 | C14: 2 | D14: WATERLOO, REGIONAL MUNICIPALITY OF | E14: 199450 | F14: 34534.41 | G14: 23772.18185 | H14: 2919.288155 | I14: 0 | J14: 387.1 | K14: 1611.526798 | L14: 664.44 | M14: 0 | N14: 0 | O14: 0 | P14: 1154.033202 | Q14: 1110.34 | R14: 505.68 | S14: 2024.2488 | T14: 385.5712
B15: 335 | C15: 2 | D15: SIMCOE, COUNTY OF | E15: 131150 | F15: 25511.02 | G15: 2918.63 | H15: 3915.42 | I15: 9713.69 | J15: 153.44 | K15: 1294.746713 | L15: 677.2105076 | M15: 76.72457823 | N15: 769.9489824 | O15: 2.816944583 | P15: 47.29476132 | Q15: 1214.890304 | R15: 560.0936151 | S15: 3225.919818 | T15: 940.1937749
B16: 357 | C16: 2 | D16: NIAGARA, REGIONAL MUNICIPALITY OF | E16: 190710 | F16: 39464.89 | G16: 21237.7 | H16: 6542.23 | I16: 0 | J16: 137.55 | K16: 1090.23259 | L16: 298.0917965 | M16: 859.6344155 | N16: 2.562761181 | O16: 0.1587710094 | P16: 3879.521223 | Q16: 1454.227061 | R16: 400.1363124 | S16: 2992.789858 | T16: 570.0552111
B17: 441 | C17: 2 | D17: OTTAWA, CITY OF | E17: 387732 | F17: 60885.53 | G17: 32433.79 | H17: 14949.39 | I17: 0 | J17: 415.1 | K17: 2252.53915 | L17: 780.39 | M17: 0 | N17: 0 | O17: 0 | P17: 1094.70085 | Q17: 2418.25 | R17: 570.63 | S17: 5082.9528 | T17: 887.7872
D18: Group 2 Weighted Average | F18: =SUM(F12:F17) -> 229743.24 | G18: =SUMPRODUCT(G12:G17,$F$12:$F$17)/SUM($F$12:$F$17) -> 22648.02442 | H18: 7457.15657 | I18: 1716.066189 | J18: 301.6891513 | K18: 1664.656057 | L18: 639.6014561 | M18: 156.1860967 | N18: 181.5599456 | O18: 0.3400709854 | P18: 1202.07224 | Q18: 1617.989138 | R18: 526.1593018 | S18: 3453.992149 | T18: 667.8640874 | U18: =SUM(G18:T18) -> 42233.35687
B19: 14 | C19: 3 | D19: BARRIE, CITY OF | E19: 56292 | F19: 11589.59511 | G19: 8031.953256 | H19: 284.1422415 | I19: 0 | J19: 147.3291523 | K19: 609.5957981 | L19: 426.7299303 | M19: 0.4077588106 | N19: 0.241648486 | O19: 0.01497087373 | P19: 661.5662758 | Q19: 389.2618685 | R19: 274.6896717 | S19: 641.4765314 | T19: 122.186006
B20: 36 | C20: 3 | D20: GUELPH, CITY OF | E20: 49482 | F20: 8415.73 | G20: 4505.42 | H20: 1211.1 | I20: 0 | J20: 59.07 | K20: 455.0483503 | L20: 199.89 | M20: 0 | N20: 0 | O20: 0 | P20: 244.2416497 | Q20: 501.31 | R20: 178.91 | S20: 891.0216 | T20: 169.7184
B21: 55 | C21: 3 | D21: SAULT STE. MARIE, CITY OF | E21: 32517 | F21: 6013.93 | G21: 4374.77 | H21: 120.1726142 | I21: 0 | J21: 0 | K21: 234.3576839 | L21: 135.95 | M21: 0 | N21: 0 | O21: 0 | P21: 160.3659658 | Q21: 309.367548 | R21: 112.326435 | S21: 471.0430211 | T21: 95.57673206
B22: 103 | C22: 3 | D22: SARNIA, CITY OF | E22: 39326 | F22: 3873.07 | G22: 2037.64 | H22: 991.15 | I22: 0 | J22: 38.35 | K22: 173.466447 | L22: 113.38 | M22: 0 | N22: 52.08 | O22: 0 | P22: 5.86355301 | Q22: 125.39 | R22: 75.77 | S22: 90.88 | T22: 169.1
B23: 123 | C23: 3 | D23: THUNDER BAY, CITY OF | E23: 46945 | F23: 6212.87 | G23: 3022.96 | H23: 2480.853958 | I23: 0 | J23: 111.97 | K23: 169.9989869 | L23: 86.96 | M23: 24.34 | N23: 0 | O23: 0 | P23: 5.50584783 | Q23: 228.6354479 | R23: 79.26232064 | S23: 1.110083229 | T23: 1.273355656
B24: 179 | C24: 3 | D24: BRANTFORD, CITY OF | E24: 37874 | F24: 6607.44 | G24: 2877.34 | H24: 2208.52 | I24: 0 | J24: 80.09 | K24: 340.800193 | L24: 185.02 | M24: 0 | N24: 102.41 | O24: 0 | P24: 140.599807 | Q24: 180.43 | R24: 129.5 | S24: 221.56 | T24: 141.17
B25: 293 | C25: 3 | D25: PETERBOROUGH, CITY OF | E25: 36465 | F25: 8517.7 | G25: 4800.416044 | H25: 1793.71587 | I25: 0 | J25: 72.92045188 | K25: 369.5326195 | L25: 181.12291 | M25: 56.22036709 | N25: 33.31765308 | O25: 2.064132019 | P25: 15.07723917 | Q25: 278.6965015 | R25: 101.3574085 | S25: 683.1373943 | T25: 130.1214084
D26: Group 3 Weighted Average | F26: =SUM(F19:F25) -> 51230.33511 | G26: =SUMPRODUCT(G19:G25,$F$19:$F$25)/SUM($F$19:$F$25) -> 4760.589199 | H26: 1236.203261 | I26: 0 | J26: 81.96499351 | K26: 379.2939733 | L26: 218.4272298 | M26: 12.3913934 | N26: 22.73980436 | O26: 0.3465752005 | P26: 230.3621863 | Q26: 313.5437617 | R26: 153.6126617 | S26: 495.9455248 | T26: 119.5217069 | U26: =SUM(G26:T26) -> 8024.942271
B27: 12 | C27: 4 | D27: NORTHUMBERLAND, COUNTY OF | E27: 37657 | F27: 5461.1 | G27: 2542.5 | H27: 1569.4 | I27: 0 | J27: 19.49 | K27: 184.3679518 | L27: 75.6 | M27: 180.6 | N27: 0 | O27: 0 | P27: 116.5720482 | Q27: 197.7915967 | R27: 101.7084033 | S27: 397.3788 | T27: 75.6912
B28: 21 | C28: 4 | D28: WELLINGTON, COUNTY OF | E28: 32142 | F28: 4999.51 | G28: 1841.44 | H28: 1530.06 | I28: 0 | J28: 7.93 | K28: 361.7423029 | L28: 177.09 | M28: 0 | N28: 0 | O28: 0 | P28: 172.0476971 | Q28: 268.9 | R28: 133.18 | S28: 364.3712 | T28: 142.7488
B29: 34 | C29: 4 | D29: NORFOLK, COUNTY OF | E29: 28581 | F29: 4677.18 | G29: 2635.970968 | H29: 984.9527449 | I29: 0 | J29: 40.0415698 | K29: 202.915174 | L29: 99.45694873 | M29: 30.87133576 | N29: 18.29515722 | O29: 1.133441774 | P29: 8.279108386 | Q29: 153.0358785 | R29: 55.65667304 | S29: 375.1196401 | T29: 71.45136001
B30: 87 | C30: 4 | D30: QUINTE WASTE SOLUTIONS | E30: 63996 | F30: 10751.01 | G30: 4308.85 | H30: 3384.28 | I30: 215.69 | J30: 37.55 | K30: 363.4931213 | L30: 137.1 | M30: 267.93 | N30: 188.24 | O30: 4.56 | P30: 568.8468787 | Q30: 535.63 | R30: 130.16 | S30: 189.14 | T30: 419.54
B31: 88 | C31: 4 | D31: PETERBOROUGH, COUNTY OF | E31: 32975 | F31: 4707.1 | G31: 2562.653001 | H31: 957.5568694 | I31: 0 | J31: 38.92783733 | K31: 229.222195 | L31: 112.3510857 | M31: 34.87366276 | N31: 20.66704039 | O31: 1.280387298 | P31: 9.352456793 | Q31: 172.8762779 | R31: 62.87230527 | S31: 423.7521799 | T31: 80.71470092
B32: 89 | C32: 4 | D32: MUSKOKA, DISTRICT MUNICIPALITY OF | E32: 47996 | F32: 5843.74 | G32: 3712.820546 | H32: 633.1000606 | I32: 0 | J32: 56.39939319 | K32: 245.0275229 | L32: 116.79 | M32: 233.6 | N32: 0 | O32: 0 | P32: 224.9724771 | Q32: 307.01 | R32: 82.01 | S32: 163.82 | T32: 68.19
B33: 143 | C33: 4 | D33: NORTH BAY, CITY OF | E33: 23977 | F33: 3895.94 | G33: 1459.26 | H33: 1631.58 | I33: 0 | J33: 0 | K33: 148.2101657 | L33: 66.79 | M33: 0 | N33: 0 | O33: 0 | P33: 79.83983434 | Q33: 174.9 | R33: 41.04 | S33: 150.53 | T33: 143.79
B34: 183 | C34: 4 | D34: GREATER SUDBURY, CITY OF | E34: 74235 | F34: 13310.88 | G34: 8481.97 | H34: 1596.38 | I34: 0 | J34: 60.21 | K34: 259.4403376 | L34: 171.87 | M34: 95.87 | N34: 0 | O34: 0 | P34: 952.3696624 | Q34: 427.37 | R34: 97.61 | S34: 980.9436 | T34: 186.8464
B35: 186 | C35: 4 | D35: BLUEWATER RECYCLING ASSOCIATION | E35: 72685 | F35: 11868.21 | G35: 1842.6 | H35: 2042.93 | I35: 5304.08 | J35: 15.57 | K35: 458.8498511 | L35: 187.5 | M35: 81.97 | N35: 0 | O35: 0 | P35: 246.7101489 | Q35: 504.14 | R35: 186.14 | S35: 838.0848 | T35: 159.6352
B36: 190 | C36: 4 | D36: BRUCE AREA SOLID WASTE RECYCLING | E36: 33197 | F36: 4359.68 | G36: 1493.85 | H36: 1601.09 | I36: 0 | J36: 0 | K36: 225.4493102 | L36: 142.75 | M36: 0 | N36: 0 | O36: 0 | P36: 118.7906898 | Q36: 247.52 | R36: 87.18 | S36: 372.162 | T36: 70.888
B37: 324 | C37: 4 | D37: KINGSTON, CITY OF | E37: 53160 | F37: 9280.22 | G37: 5083.29 | H37: 1808.68 | I37: 0 | J37: 86.68 | K37: 344.6984241 | L37: 124.38 | M37: 132.16 | N37: 0 | O37: 30.64 | P37: 400.821576 | Q37: 294.89 | R37: 150.73 | S37: 727.0916 | T37: 96.1584
B38: 429 | C38: 4 | D38: CHATHAM-KENT, MUNICIPALITY OF | E38: 47303 | F38: 4232.23955 | G38: 2385.210871 | H38: 891.2541236 | I38: 0 | J38: 36.23241256 | K38: 183.6118397 | L38: 89.99560246 | M38: 27.93454349 | N38: 16.55473767 | O38: 1.025617381 | P38: 7.491516244 | Q38: 138.4775651 | R38: 50.36204996 | S38: 339.4344833 | T38: 64.6541873
B39: 601 | C39: 4 | D39: KAWARTHA LAKES, CITY OF | E39: 39445 | F39: 5857.16 | G39: 3773.816064 | H39: 478.293936 | I39: 0 | J39: 30.64 | K39: 211.520147 | L39: 107.15 | M39: 54.67 | N39: 0 | O39: 0 | P39: 66.17985299 | Q39: 327.99 | R39: 107.15 | S39: 587.79 | T39: 111.96
B40: 878 | C40: 4 | D40: OXFORD, RESTRUCTURED COUNTY OF | E40: 49192 | F40: 7146.65 | G40: 2897.878425 | H40: 2202.684016 | I40: 0 | J40: 52.33691455 | K40: 277.1282285 | L40: 103.1465284 | M40: 53.63617028 | N40: 0.02143545075 | O40: 17.87132799 | P40: 201.4892164 | Q40: 297.7493039 | R40: 116.2452099 | S40: 794.3191075 | T40: 132.1441157
D41: Group 4 Weighted Average | F41: =SUM(F27:F40) -> 96390.61955 | G41: =SUMPRODUCT(G27:G40,$F$27:$F$40)/SUM($F$27:$F$40) -> 3761.31531 | H41: =SUMPRODUCT(H27:H40,$F$27:$F$40)/SUM($F$27:$F$40) -> 1694.672642 | I41: 677.1283445 | J41: 38.87694119 | K41: 288.8045203 | L41: 132.2140077 | M41: 102.0598867 | N41: 23.62095512 | O41: 4.946119815 | P41: 321.8437111 | Q41: 335.2072308 | R41: 111.7830124 | S41: 552.420011 | T41: 153.2015929 | U41: =SUM(G41:T41) -> 8198.094286
B42: 8 | C42: 5 | D42: STRATFORD, CITY OF | E42: 13750 | F42: 2265.1 | G42: 948.02257 | H42: 682.7666149 | I42: 161.95 | J42: 14.40088391 | K42: 90.39923151 | L42: 47.10377733 | M42: 14.62096459 | N42: 8.66476423 | O42: 0.5368090376 | P42: 4.509939148 | Q42: 68.35909893 | R42: 26.5368298 | S42: 162.311154 | T42: 34.91736267
B43: 41 | C43: 5 | D43: OWEN SOUND, CITY OF | E43: 9605 | F43: 2068.16 | G43: 1101.71 | H43: 668.47 | I43: 0 | J43: 0 | K43: 90.59759898 | L43: 34.53 | M43: 0 | N43: 33.22 | O43: 2.57 | P43: 3.06240102 | Q43: 54.14 | R43: 36.02 | S43: 39.51 | T43: 4.33
B44: 56 | C44: 5 | D44: ORILLIA, CITY OF | E44: 14600 | F44: 2948.44 | G44: 1661.685511 | H44: 620.9027814 | I44: 0 | J44: 25.24174098 | K44: 127.9153711 | L44: 62.69650642 | M44: 19.46093184 | N44: 11.53305482 | O44: 0.7145085422 | P44: 5.219053859 | Q44: 96.47204207 | R44: 35.08532087 | S44: 236.4710684 | T44: 45.04210826
B45: 67 | C45: 5 | D45: BROCKVILLE, CITY OF | E45: 10689 | F45: 1376.472448 | G45: 723.4854589 | H45: 270.3364329 | I45: 0 | J45: 10.99006547 | K45: 74.21222292 | L45: 36.37441748 | M45: 11.2905822 | N45: 6.69109293 | O45: 0.4145339747 | P45: 3.027920609 | Q45: 55.96985436 | R45: 20.35533049 | S45: 137.1926101 | T45: 26.13192574
B46: 75 | C46: 5 | D46: ORANGEVILLE, TOWN OF | E46: 10303 | F46: 3605.5768 | G46: 2032.035493 | H46: 759.2871701 | I46: 0 | J46: 30.86752169 | K46: 156.4246498 | L46: 76.67005908 | M46: 23.79830838 | N46: 14.10349707 | O46: 0.8737554175 | P46: 6.382256214 | Q46: 117.9733543 | R46: 42.90500025 | S46: 289.1748172 | T46: 55.08091756
B47: 157 | C47: 5 | D47: HANOVER, TOWN OF | E47: 3375 | F47: 524.86075 | G47: 273.5014287 | H47: 141.7649415 | I47: 0 | J47: 4.15460818 | K47: 21.05394583 | L47: 10.31939194 | M47: 3.203128766 | N47: 1.898257491 | O47: 0.1176029434 | P47: 0.8590185548 | Q47: 15.87860106 | R47: 5.774790305 | S47: 38.92142923 | T47: 7.413605567
B48: 182 | C48: 5 | D48: SHELBURNE, TOWN OF | E48: 2161 | F48: 487.61 | G48: 274.8078551 | H48: 102.6842687 | I48: 0 | J48: 4.174453378 | K48: 21.15451361 | L48: 10.36868429 | M48: 3.218429059 | N48: 1.907324843 | O48: 0.118164694 | P48: 0.8631218041 | Q48: 15.95444792 | R48: 5.80237458 | S48: 39.1073441 | T48: 7.449017924
B49: 214 | C49: 5 | D49: CORNWALL, CITY OF | E49: 21629 | F49: 2598.56 | G49: 795.7 | H49: 548.03 | I49: 635.17 | J49: 0 | K49: 97.14624029 | L49: 50.22 | M49: 0 | N49: 0 | O49: 0 | P49: 92.89375971 | Q49: 138.89 | R49: 46.13 | S49: 133.8188 | T49: 60.5612
B50: 223 | C50: 5 | D50: PARRY SOUND, TOWN OF | E50: 3041 | F50: 358.02 | G50: 182.3692579 | H50: 102.5738086 | I50: 0 | J50: 2.770270029 | K50: 14.03865601 | L50: 6.880914149 | M50: 2.135828755 | N50: 1.265747721 | O50: 0.0784169999 | P50: 0.5727888776 | Q50: 10.58776441 | R50: 3.850598615 | S50: 25.95259629 | T50: 4.943351675
B51: 224 | C51: 5 | D51: PRESCOTT,TOWN OF | E51: 2263 | F51: 257.91626 | G51: 0 | H51: 186.13692 | I51: 0 | J51: 0 | K51: 40.35204383 | L51: 19.77817171 | M51: 6.139124389 | N51: 3.638204928 | O51: 0.2253980875 | P51: 1.646397053 | Q51: 0 | R51: 0 | S51: 0 | T51: 0
B52: 233 | C52: 5 | D52: ST. THOMAS, CITY OF | E52: 16476 | F52: 2142.03 | G52: 1109.71 | H52: 565.23 | I52: 0 | J52: 0 | K52: 130.4408096 | L52: 88.03 | M52: 0 | N52: 0 | O52: 0 | P52: 4.40919045 | Q52: 80.3 | R52: 46.09 | S52: 98.9688 | T52: 18.8512
B53: 272 | C53: 5 | D53: GANANOQUE, TOWN OF | E53: 2493 | F53: 416.71232 | G53: 234.8512517 | H53: 87.75414746 | I53: 0 | J53: 3.567494826 | K53: 18.07868265 | L53: 8.8610949 | M53: 2.750474847 | N53: 1.630002995 | O53: 0.1009837447 | P53: 0.7376253347 | Q53: 13.63469783 | R53: 4.958719003 | S53: 33.42120155 | T53: 6.365943153
B54: 427 | C54: 5 | D54: AYLMER, TOWN OF | E54: 2906 | F54: 382.737048 | G54: 212.808512 | H54: 75.681288 | I54: 5.47848 | J54: 2.417488 | K54: 17.33644546 | L54: 7.887272 | M54: 1.7392 | N54: 0 | O54: 0 | P54: 6.334066544 | Q54: 14.383184 | R54: 8.322072 | S54: 25.4931936 | T54: 4.8558464
B55: 524 | C55: 5 | D55: ARNPRIOR, TOWN OF | E55: 3494 | F55: 642.00449 | G55: 0 | H55: 87.75511 | I55: 405.20768 | J55: 0 | K55: 29.76026814 | L55: 14.58671328 | M55: 4.52770097 | N55: 2.683233461 | O55: 0.1662346411 | P55: 1.214243769 | Q55: 22.44479155 | R55: 8.162807548 | S55: 55.01639358 | T55: 10.47931306
B56: 565 | C56: 5 | D56: RENFREW, TOWN OF | E56: 3621 | F56: 457.60892 | G56: 279.0961433 | H56: 41.25190233 | I56: 0 | J56: 4.239594381 | K56: 26.56135136 | L56: 13.01879455 | M56: 4.04102059 | N56: 2.394813998 | O56: 0.1483661602 | P56: 1.083725295 | Q56: 20.0322118 | R56: 7.285391326 | S56: 49.10270813 | T56: 9.352896787
B57: 613 | C57: 5 | D57: MATTAWA, TOWN OF | E57: 1052 | F57: 158.16816 | G57: 98.55003802 | H57: 36.82405142 | I57: 0 | J57: 1.49701885 | K57: 7.586311971 | L57: 3.718358889 | M57: 1.154174818 | N57: 0.6839940429 | O57: 0.04237555393 | P57: 0.3095278575 | Q57: 5.721493838 | R57: 2.08081474 | S57: 0 | T57: 0
B58: 696 | C58: 5 | D58: PETROLIA, TOWN OF | E58: 2242 | F58: 3130.56 | G58: 679.8558919 | H58: 416.4937582 | I58: 173.92 | J58: 89.36154682 | K58: 173.2179676 | L58: 203.578622 | M58: 96.16600612 | N58: 92.41571888 | O58: 0.3379987179 | P58: 266.1922078 | Q58: 225.118663 | R58: 136.0467987 | S58: 363.5479392 | T58: 214.3068811
B59: 732 | C59: 5 | D59: CASSELMAN, VILLAGE OF | E59: 1374 | F59: 235.174624 | G59: 132.5400094 | H59: 49.5246904 | I59: 0 | J59: 2.013341612 | K59: 10.20283584 | L59: 5.000823257 | M59: 1.552250454 | N59: 0.9199040275 | O59: 0.05699090969 | P59: 0.4162842143 | Q59: 7.694840736 | R59: 2.79848908 | S59: 18.86149781 | T59: 3.592666249
B60: 736 | C60: 5 | D60: LAURENTIAN HILLS, TOWN OF | E60: 1457 | F60: 140.71894 | G60: 93.3268958 | H60: 34.87238035 | I60: 0 | J60: 1.417676999 | K60: 2.21681654 | L60: 1.08655161 | M60: 0.3372645149 | N60: 0.1998717313 | O60: 0.01238267411 | P60: 0.09044796428 | Q60: 1.671893039 | R60: 0.6080404484 | S60: 4.0981234 | T60: 0.7805949333
B61: 757 | C61: 5 | D61: DRUMMOND-NORTH ELMSLEY, TOWNSHIP OF | E61: 3566 | F61: 526.71 | G61: 290.44 | H61: 110.9 | I61: 0 | J61: 0 | K61: 15.27371437 | L61: 9.61 | M61: 0 | N61: 0 | O61: 0 | P61: 0.51628563 | Q61: 33.64 | R61: 8.24 | S61: 36.97 | T61: 21.12
B62: 885 | C62: 5 | D62: PERTH, TOWN OF | E62: 3009 | F62: 543.49 | G62: 280.9 | H62: 126.53 | I62: 0 | J62: 0 | K62: 25.41104981 | L62: 9.57 | M62: 0 | N62: 7.14 | O62: 0 | P62: 0.85895019 | Q62: 14.27 | R62: 12 | S62: 56.1204 | T62: 10.6896
B63: 909 | C63: 5 | D63: SMITHS FALLS, TOWN OF | E63: 4383 | F63: 576.83 | G63: 267.51 | H63: 165.53 | I63: 0 | J63: 0 | K63: 41.46827961 | L63: 9.54 | M63: 0 | N63: 4.91 | O63: 0 | P63: 1.40172039 | Q63: 17.93 | R63: 13.02 | S63: 46.6368 | T63: 8.8832
B64: 923 | C64: 5 | D64: SUNDRIDGE, VILLAGE OF | E64: 505 | F64: 67.10895 | G64: 36.40544435 | H64: 13.60320078 | I64: 0 | J64: 0.5530148696 | K64: 2.807355132 | L64: 1.34843 | M64: 2.69686 | N64: 0 | O64: 0 | P64: 2.586364868 | Q64: 3.52735 | R64: 0.93765 | S64: 1.86637 | T64: 0.77691
D65: Group 5 Weighted Average | F65: =SUM(F42:F64) -> 25910.56971 | G65: =SUMPRODUCT(G42:G64,$F$42:$F$64)/SUM($F$42:$F$64) -> 980.0236333 | H65: 478.7278314 | I65: 108.9929436 | J65: 20.21276925 | K65: 101.952933 | L65: 65.7528866 | M65: 19.52257529 | N65: 18.74102758 | O65: 0.534955168 | P65: 44.40932733 | Q65: 92.04709384 | R65: 42.67909689 | S65: 165.4994075 | T65: 52.94935693 | U65: =SUM(G65:T65) -> 2192.045838
B66: 394 | C66: 6 | D66: WEST NIPISSING, MUNICIPALITY OF | E66: 7156 | F66: 626.81 | G66: 142.71 | H66: 288.9 | I66: 0 | J66: 0 | K66: 38.97704026 | L66: 19.10422675 | M66: 5.929932558 | N66: 3.514232403 | O66: 0.2177176048 | P66: 1.59029576 | Q66: 29.39595636 | R66: 10.69083373 | S66: 72.05500224 | T66: 13.72476233
B67: 414 | C67: 6 | D67: KIRKLAND LAKE, TOWN OF | E67: 3700 | F67: 676.64 | G67: 454.8659085 | H67: 169.9644763 | I67: 0 | J67: 6.909615185 | K67: 12.81742907 | L67: 6.282341341 | M67: 1.950032364 | N67: 1.155639943 | O67: 0.0715954813 | P67: 0.5229617995 | Q67: 7.699732034 | R67: 14.40026797 | S67: 0 | T67: 0
B68: 426 | C68: 6 | D68: ELLIOT LAKE, CITY OF | E68: 6182 | F68: 515.78787 | G68: 101.15904 | H68: 163.25826 | I68: 147.75578 | J68: 0 | K68: 28.60348631 | L68: 14.01972763 | M68: 4.351709201 | N68: 2.578936157 | O68: 0.1597730994 | P68: 1.167046105 | Q68: 21.57236234 | R68: 7.84551916 | S68: 19.5856332 | T68: 3.7305968
B69: 430 | C69: 6 | D69: TIMMINS, CITY OF | E69: 20361 | F69: 3077.401352 | G69: 1734.365712 | H69: 648.0603502 | I69: 0 | J69: 26.3457855 | K69: 133.5102414 | L69: 65.43877903 | M69: 20.31213047 | N69: 12.03749729 | O69: 0.7457603186 | P69: 5.447329232 | Q69: 100.6916175 | R69: 36.61991218 | S69: 246.8140391 | T69: 47.01219793
B70: 562 | C70: 6 | D70: PRINCE, TOWNSHIP OF | E70: 475 | F70: 77.881376 | G70: 12.235272 | H70: 12.00048 | I70: 0 | J70: 0 | K70: 7.298036481 | L70: 3.577063391 | M70: 1.110316839 | N70: 0.6580026629 | O70: 0.04076530726 | P70: 0.2977659771 | Q70: 5.504080364 | R70: 2.001744977 | S70: 27.85259232 | T70: 5.30525568
B71: 603 | C71: 6 | D71: SABLES-SPANISH RIVERS, TOWNSHIP OF | E71: 1760 | F71: 134.935832 | G71: 0 | H71: 93.160248 | I71: 0 | J71: 0 | K71: 12.32240625 | L71: 6.039710598 | M71: 1.874720028 | N71: 1.111007892 | O71: 0.06883038722 | P71: 0.5027644553 | Q71: 9.293392058 | R71: 3.379856332 | S71: 6.03363264 | T71: 1.14926336
B72: 618 | C72: 6 | D72: BALDWIN, TOWNSHIP OF | E72: 353 | F72: 19.2888 | G72: 6.199510719 | H72: 5.61893596 | I72: 0 | J72: 0.09417332141 | K72: 2.283952755 | L72: 1.119457789 | M72: 0.3474785594 | N72: 0.20592484 | O72: 0.01275768298 | P72: 0.09318717784 | Q72: 1.722526263 | R72: 0.6264549329 | S72: 0.8101296 | T72: 0.1543104
B73: 620 | C73: 6 | D73: BLIND RIVER, TOWN OF | E73: 2417 | F73: 342.912 | G73: 84.28813811 | H73: 195.7264876 | I73: 0 | J73: 1.280374256 | K73: 0 | L73: 0 | M73: 0 | N73: 0 | O73: 0 | P73: 0 | Q73: 0 | R73: 61.617 | S73: 0 | T73: 0
B74: 622 | C74: 6 | D74: CENTRAL MANITOULIN, TOWNSHIP OF | E74: 1541 | F74: 117.82242 | G74: 2.81295 | H74: 20.72653 | I74: 50.57952 | J74: 0 | K74: 11.43566874 | L74: 5.605084612 | M74: 1.739812564 | N74: 1.031058217 | O74: 0.06387725671 | P74: 0.466584825 | Q74: 8.624626624 | R74: 3.136637164 | S74: 9.7440588 | T74: 1.8560112
B75: 623 | C75: 6 | D75: ESPANOLA, TOWN OF | E75: 2306 | F75: 213.025912 | G75: 105.1961087 | H75: 39.30741168 | I75: 0 | J75: 1.597975615 | K75: 18.92966933 | L75: 9.278197954 | M75: 2.879943211 | N75: 1.706729318 | O75: 0.1057371786 | P75: 0.7723463013 | Q75: 14.27650047 | R75: 5.192132239 | S75: 11.5778544 | T75: 2.2053056
B76: 626 | C76: 6 | D76: NAIRN & HYMAN, TOWNSHIP OF | E76: 301 | F76: 17.93144 | G76: 8.095099688 | H76: 3.024802152 | I76: 0 | J76: 0.1229681598 | K76: 0 | L76: 0 | M76: 0 | N76: 0 | O76: 0 | P76: 2.73258 | Q76: 2.003822263 | R76: 0.7287577369 | S76: 1.0276644 | T76: 0.1957456
B77: 627 | C77: 6 | D77: NORTHEASTERN MANITOULIN & ISLANDS, TOWN OF | E77: 2029 | F77: 274.82968 | G77: 99.52815029 | H77: 163.4065943 | I77: 0 | J77: 0.5589308783 | K77: 2.832445305 | L77: 1.388296213 | M77: 0.4309257327 | N77: 0.2553778072 | O77: 0.01582144779 | P77: 0.1155661315 | Q77: 2.136191923 | R77: 0 | S77: 3.4955592 | T77: 0.6658208
B78: 697 | C78: 6 | D78: SAULT NORTH WASTE MANAGEMENT COUNCIL | E78: 4533 | F78: 39.079824 | G78: 0 | H78: 13.861424 | I78: 0 | J78: 0 | K78: 8.983151866 | L78: 4.40300672 | M78: 1.366688809 | N78: 0.809935366 | O78: 0.05017800979 | P78: 0.3665200906 | Q78: 6.774971586 | R78: 2.463947553 | S78: 0 | T78: 0
B79: 710 | C79: 6 | D79: ATIKOKAN, TOWNSHIP OF | E79: 1658 | F79: 59.506728 | G79: 41.52751339 | H79: 15.51710501 | I79: 0 | J79: 0.6308213734 | K79: 0.6523308469 | L79: 0.31973378 | M79: 0.0992450402 | N79: 0.05881519439 | O79: 0.003643783842 | P79: 0.02661564278 | Q79: 0.491979098 | R79: 0.1789248381 | S79: 0 | T79: 0
B80: 718 | C80: 6 | D80: MISSISSAUGAS OF THE NEW CREDIT FIRST NATION | E80: 254 | F80: 13.65272 | G80: 7.983158062 | H80: 2.982974221 | I80: 0 | J80: 0.1212677168 | K80: 0 | L80: 0 | M80: 0 | N80: 0 | O80: 0 | P80: 0 | Q80: 0 | R80: 2.56532 | S80: 0 | T80: 0
B81: 758 | C81: 6 | D81: DRYDEN, CITY OF | E81: 3602 | F81: 681.1142 | G81: 387.3328548 | H81: 204.1934302 | I81: 0 | J81: 5.883758104 | K81: 29.81660822 | L81: 14.61432783 | M81: 4.536272499 | N81: 2.688313172 | O81: 0.166549345 | P81: 1.216542491 | Q81: 22.48728247 | R81: 8.178260808 | S81: 0 | T81: 0
B82: 774 | C82: 6 | D82: FORT FRANCES, TOWN OF | E82: 3813 | F82: 528.14 | G82: 310.6695713 | H82: 119.3374559 | I82: 0 | J82: 4.719208776 | K82: 33.62404491 | L82: 11.72177084 | M82: 3.638425749 | N82: 2.156225815 | O82: 0.1335848817 | P82: 0.9757569731 | Q82: 27.80080498 | R82: 10.11070298 | S82: 1.514822447 | T82: 1.737624423
B83: 794 | C83: 6 | D83: HEAD, CLARA AND MARIA, TOWNSHIPS OF | E83: 337 | F83: 37.12201 | G83: 20.92126893 | H83: 7.817408277 | I83: 0 | J83: 0.3178033675 | K83: 1.610504431 | L83: 0.7893734783 | M83: 0.245020725 | N83: 0.1452056601 | O83: 0.008995941328 | P83: 0.06570992442 | Q83: 1.21462065 | R83: 0.441737879 | S83: 2.977263015 | T83: 0.5670977172
B84: 811 | C84: 6 | D84: KENORA, CITY OF | E84: 6742 | F84: 967.31 | G84: 579.3832877 | H84: 296.1338829 | I84: 0 | J84: 8.801089481 | K84: 29.56283519 | L84: 14.48994339 | M84: 4.497663695 | N84: 2.66543259 | O84: 0.1651318218 | P84: 1.206188339 | Q84: 22.29589028 | R84: 8.108654568 | S84: 0 | T84: 0
B85: 840 | C85: 6 | D85: MARATHON, TOWN OF | E85: 1301 | F85: 125.42185 | G85: 76.55945352 | H85: 28.60708438 | I85: 0 | J85: 1.162972104 | K85: 6.80096238 | L85: 3.333427233 | M85: 1.034692424 | N85: 0.6131856655 | O85: 0.03798875517 | P85: 0.277484939 | Q85: 5.129193803 | R85: 1.8654048 | S85: 0 | T85: 0
B86: 888 | C86: 6 | D86: TRI-NEIGHBOURS | E86: 1312 | F86: 107.4279 | G86: 48.09479401 | H86: 17.9710247 | I86: 0 | J86: 0.730581283 | K86: 11.54700348 | L86: 5.659654282 | M86: 1.756750934 | N86: 1.041096336 | O86: 0.06449914933 | P86: 0.4711273754 | Q86: 8.708593782 | R86: 3.167174661 | S86: 6.901104 | T86: 1.314496
B87: 889 | C87: 6 | D87: PAPINEAU-CAMERON, TOWNSHIP OF | E87: 526 | F87: 55.07131 | G87: 33.20054635 | H87: 12.40566366 | I87: 0 | J87: 0.5043310454 | K87: 2.912378434 | L87: 1.427474678 | M87: 0.4430866886 | N87: 0.2625847062 | O87: 0.01626793755 | P87: 0.1188274699 | Q87: 2.196476408 | R87: 0.7988229324 | S87: 0.6592737397 | T87: 0.1255759504
B88: 891 | C88: 6 | D88: POWASSAN, MUNICIPALITY OF | E88: 1362 | F88: 328.54363 | G88: 57.70192632 | H88: 115.8155258 | I88: 0 | J88: 0.8765178899 | K88: 30.30168407 | L88: 14.85208316 | M88: 4.610071512 | N88: 2.732048388 | O88: 0.1692588773 | P88: 1.23633399 | Q88: 36.17543 | R88: 14.12726 | S88: 41.9542116 | T88: 7.9912784
B89: 904 | C89: 6 | D89: SPANISH, TOWN OF | E89: 385 | F89: 26.279312 | G89: 11.99665164 | H89: 4.482649889 | I89: 0 | J89: 0.1822344669 | K89: 2.589625848 | L89: 1.269280558 | M89: 0.3939833946 | N89: 0.2334848159 | O89: 0.01446510903 | P89: 0.1056588951 | Q89: 1.953060774 | R89: 0.7102966048 | S89: 1.9722528 | T89: 0.3756672
B90: 906 | C90: 6 | D90: SIOUX LOOKOUT, THE CORPORATION OF THE MUNICIPALITY OF | E90: 2430 | F90: 107.186896 | G90: 66.78507657 | H90: 24.95480614 | I90: 0 | J90: 1.014494977 | K90: 5.141067787 | L90: 2.519845635 | M90: 0.7821575227 | N90: 0.4635269092 | O90: 0.02871693071 | P90: 0.2097598548 | Q90: 3.877323761 | R90: 1.41011992 | S90: 0 | T90: 0
B91: 917 | C91: 6 | D91: ST. CHARLES, MUNICIPALITY OF | E91: 932 | F91: 54.836976 | G91: 0 | H91: 13.56576 | I91: 11.800472 | J91: 0 | K91: 8.691952885 | L91: 4.260278301 | M91: 1.322386053 | N91: 0.7836803993 | O91: 0.04855143311 | P91: 0.3546389292 | Q91: 9.426464 | R91: 4.582792 | S91: 0 | T91: 0
B92: 957 | C92: 6 | D92: CHISHOLM, TOWNSHIP OF | E92: 635 | F92: 84.029448 | G92: 29.19644395 | H92: 10.90949709 | I92: 0 | J92: 0.4435069516 | K92: 7.660455664 | L92: 3.754699717 | M92: 1.165454974 | N92: 0.6906789571 | O92: 0.04278970511 | P92: 0.3125529821 | Q92: 14.39253858 | R92: 5.234333422 | S92: 8.59025664 | T92: 1.63623936
B93: 959 | C93: 6 | D93: EAST FERRIS, TOWNSHIP OF | E93: 2081 | F93: 347.196496 | G93: 67.037464 | H93: 123.517984 | I93: 0 | J93: 0 | K93: 32.12307222 | L93: 15.7448193 | M93: 4.887175901 | N93: 2.896267663 | O93: 0.1794327711 | P93: 1.310648146 | Q93: 43.314776 | R93: 18.618136 | S93: 31.5560448 | T93: 6.0106752
B94: 969 | C94: 6 | D94: RAINY RIVER FIRST NATIONS | E94: 108 | F94: 12.65268 | G94: 5.948235419 | H94: 2.222608243 | I94: 0 | J94: 0.09035633799 | K94: 1.099937795 | L94: 0.5391240819 | M94: 0.1673435668 | N94: 0.09917215402 | O94: 0.00614402275 | P94: 0.04487837969 | Q94: 1.43484 | R94: 1.00004 | S94: 0 | T94: 0
B95: 970 | C95: 6 | D95: CALLANDER, MUNICIPALITY OF | E95: 1677 | F95: 201.44284 | G95: 113.5294083 | H95: 42.42121924 | I95: 0 | J95: 1.724562138 | K95: 8.739413262 | L95: 4.283540554 | M95: 1.329606632 | N95: 0.787959503 | O95: 0.04881653686 | P95: 0.3565753522 | Q95: 6.591147229 | R95: 2.397093608 | S95: 16.15613802 | T95: 3.077359623
B96: 986 | C96: 6 | D96: BATCHEWANA FIRST NATIONS OJIBWAYS | E96: 263 | F96: 8.713392 | G96: 0 | H96: 0 | I96: 0 | J96: 0 | K96: 4.898389646 | L96: 2.400899245 | M96: 0.7452366843 | N96: 0.4416466592 | O96: 0.02736138132 | P96: 0.1998583842 | Q96: 0 | R96: 0 | S96: 0 | T96: 0
B97: 988 | C97: 6 | D97: NIPPISING FIRST NATION | E97: 732 | F97: 62.01885 | G97: 25.36550299 | H97: 9.47803375 | I97: 0 | J97: 0.3853132569 | K97: 15.06047916 | L97: 7.381751075 | M97: 2.291288028 | N97: 1.357876933 | O97: 0.08412469053 | P97: 0.6144801144 | Q97: 0 | R97: 0 | S97: 0 | T97: 0
D98: Group 6 Weighted Average | F98: =SUM(F66:F97) -> 9942.013744 | G98: =SUMPRODUCT(G66:G97,$F$66:$F$97)/SUM($F$66:$F$97) -> 699.248086 | H98: 312.0348756 | I98: 8.330016919 | J98: 10.34162689 | K98: 56.53996281 | L98: 27.45973299 | M98: 8.523473198 | N98: 5.051232102 | O98: 0.3129395066 | P98: 2.290762797 | Q98: 43.76331337 | R98: 18.95190033 | S98: 85.7835873 | T98: 16.41670935 | U98: =SUM(G98:T98) -> 1295.048219
B99: 39 | C99: 7 | D99: NORTH HURON, TOWNSHIP OF | E99: 2234 | F99: 469.10572 | G99: 273.3714196 | H99: 102.1475325 | I99: 0 | J99: 4.152633285 | K99: 17.85798087 | L99: 8.752920015 | M99: 2.716897472 | N99: 1.610104169 | O99: 0.09975095068 | P99: 0.7286205179 | Q99: 13.46824753 | R99: 4.898183723 | S99: 33.01320066 | T99: 6.288228697
B100: 59 | C100: 7 | D100: ASHFIELD-COLBORNE-WAWANOSH, TOWNSHIP OF | E100: 3096 | F100: 251.44484 | G100: 141.7095981 | H100: 52.95098443 | I100: 0 | J100: 2.152631738 | K100: 10.90870427 | L100: 5.346797977 | M100: 1.659640655 | N100: 0.9835462563 | O100: 0.06093374329 | P100: 0.4450842352 | Q100: 8.227197156 | R100: 2.992098497 | S100: 20.16640323 | T100: 3.841219663
B101: 128 | C101: 7 | D101: HOWICK, TOWNSHIP OF | E101: 1410 | F101: 158.815048 | G101: 89.50518385 | H101: 33.44436551 | I101: 0 | J101: 1.359623498 | K101: 6.890045517 | L101: 3.377090487 | M101: 1.048245453 | N101: 0.6212175438 | O101: 0.03848635496 | P101: 0.2811196053 | Q101: 5.1963791 | R101: 1.889839006 | S101: 12.73729975 | T101: 2.426152333
B102: 152 | C102: 7 | D102: CHATSWORTH, TOWNSHIP OF | E102: 3175 | F102: 339.604888 | G102: 181.9019002 | H102: 84.81332848 | I102: 0 | J102: 2.763170658 | K102: 14.00267916 | L102: 6.863280432 | M102: 2.130355267 | N102: 1.262503989 | O102: 0.07821604067 | P102: 0.5713209917 | Q102: 10.56063115 | R102: 3.840730687 | S102: 25.88608758 | T102: 4.930683349
B103: 162 | C103: 7 | D103: THE BLUE MOUNTAINS, TOWN OF | E103: 7248 | F103: 791.49 | G103: 428.7162596 | H103: 190.9834399 | I103: 0 | J103: 6.512390404 | K103: 33.00227334 | L103: 16.17575139 | M103: 5.020936784 | N103: 2.975537844 | O103: 0.1843438049 | P103: 1.346520285 | Q103: 24.889868 | R103: 9.052042295 | S103: 61.00973454 | T103: 11.62090182
B104: 166 | C104: 7 | D104: THAMES CENTRE, MUNICIPALITY OF | E104: 4762 | F104: 1039.06801 | G104: 586.001589 | H104: 218.9644274 | I104: 0 | J104: 8.901624418 | K104: 44.96743778 | L104: 22.0403633 | M104: 6.841306358 | N104: 4.054336242 | O104: 0.251178714 | P104: 1.834708977 | Q104: 33.91383312 | R104: 12.33391241 | S104: 83.12916548 | T104: 15.83412676
B105: 192 | C105: 7 | D105: WEST ELGIN, MUNICIPALITY OF | E105: 2960 | F105: 177.99 | G105: 31.82 | H105: 23.24 | I105: 0 | J105: 0 | K105: 4.52697804 | L105: 3.27 | M105: 0 | N105: 0 | O105: 0 | P105: 67.95302196 | Q105: 15.26 | R105: 1.64 | S105: 30.28 | T105: 0
B106: 194 | C106: 7 | D106: AMARANTH, TOWNSHIP OF | E106: 1374 | F106: 271.12 | G106: 174.89 | H106: 0 | I106: 0 | J106: 0 | K106: 24.46309287 | L106: 7.09 | M106: 2.78 | N106: 13.88 | O106: 0 | P106: 0.82690713 | Q106: 18.2 | R106: 3.7 | S106: 21.2436 | T106: 4.0464
B107: 201 | C107: 7 | D107: MONO, TOWN OF | E107: 2881 | F107: 681.66 | G107: 384.1707974 | H107: 143.5486528 | I107: 0 | J107: 5.835725046 | K107: 29.57319528 | L107: 14.49502129 | M107: 4.499239869 | N107: 2.666366671 | O107: 0.1651896911 | P107: 1.20661104 | Q107: 22.30370372 | R107: 8.111496188 | S107: 54.67056086 | T107: 10.41344016
B108: 212 | C108: 7 | D108: GEORGIAN BLUFFS, TOWNSHIP OF | E108: 5165 | F108: 567.579224 | G108: 0 | H108: 203.18204 | I108: 232.96584 | J108: 0 | K108: 29.58383245 | L108: 20.974752 | M108: 0 | N108: 0 | O108: 0 | P108: 19.53117555 | Q108: 30.26208 | R108: 12.539632 | S108: 1.704416 | T108: 16.835456
B109: 216 | C109: 7 | D109: MEAFORD, MUNICIPALITY OF | E109: 6060 | F109: 821.79218 | G109: 0 | H109: 283.26853 | I109: 345.26059 | J109: 0 | K109: 42.09305094 | L109: 28.95999 | M109: 0 | N109: 0 | O109: 0 | P109: 26.53399906 | Q109: 47.5076 | R109: 18.29757 | S109: 2.68793 | T109: 27.18292
B110: 229 | C110: 7 | D110: CENTRAL ELGIN, MUNICIPALITY OF | E110: 5598 | F110: 523.92 | G110: 277.45 | H110: 107.27 | I110: 9.51 | J110: 4.83 | K110: 0 | L110: 9.54 | M110: 3.22 | N110: 0 | O110: 0 | P110: 39.05 | Q110: 19.73 | R110: 7.3 | S110: 38.6568 | T110: 7.3632
B111: 235 | C111: 7 | D111: EAST LUTHER GRAND VALLEY, TOWNSHIP OF | E111: 1384 | F111: 221.06215 | G111: 124.5864836 | H111: 46.55278852 | I111: 0 | J111: 1.892524023 | K111: 9.590579072 | L111: 4.700731406 | M111: 1.459102249 | N111: 0.8647019762 | O111: 0.05357097127 | P111: 0.3913036274 | Q111: 7.233084965 | R111: 2.630555977 | S111: 17.72964781 | T111: 3.377075773
B112: 236 | C112: 7 | D112: NORTH GRENVILLE, MUNICIPALITY OF | E112: 6061 | F112: 1102.4978 | G112: 434.4445 | H112: 289.6892 | I112: 0 | J112: 3.8399 | K112: 47.24994637 | L112: 34.5591 | M112: 0 | N112: 3.8399 | O112: 0 | P112: 75.98405363 | Q112: 68.8503 | R112: 30.5406 | S112: 95.340252 | T112: 18.160048
B113: 239 | C113: 7 | D113: OTTAWA VALLEY WASTE RECOVERY CENTRE | E113: 18592 | F113: 3279.57 | G113: 1676.157904 | H113: 626.3105128 | I113: 0 | J113: 25.46158305 | K113: 131.6952722 | L113: 64.5491891 | M113: 20.03600266 | N113: 11.87385676 | O113: 0.7356222801 | P113: 5.373276977 | Q113: 99.32279232 | R113: 36.12209261 | S113: 411.0135919 | T113: 170.9183032
B114: 249 | C114: 7 | D114: HAWKESBURY JOINT RECYCLING | E114: 10499 | F114: 1277.4424 | G114: 719.9425892 | H114: 269.0126098 | I114: 0 | J114: 10.9362477 | K114: 55.42066947 | L114: 27.16391571 | M114: 8.431651815 | N114: 4.99681636 | O114: 0.3095682825 | P114: 2.261209551 | Q114: 41.79751901 | R114: 15.20108142 | S114: 102.4535582 | T114: 19.51496346
B115: 271 | C115: 7 | D115: NORTH GLENGARRY, TOWNSHIP OF | E115: 4693 | F115: 1015.7 | G115: 579.1 | H115: 253.7211809 | I115: 0 | J115: 0 | K115: 42.6328009 | L115: 19.8 | M115: 35.4 | N115: 20.8 | O115: 0 | P115: 7.0288589 | Q115: 44.56372425 | R115: 12.53228062 | S115: 0.05642752087 | T115: 0.06472695108
B116: 275 | C116: 7 | D116: ST. CLAIR, TOWNSHIP OF | E116: 6003 | F116: 704.91 | G116: 342.12 | H116: 178.62 | I116: 0 | J116: 0 | K116: 33.99102742 | L116: 21.54 | M116: 0 | N116: 10.95 | O116: 0 | P116: 1.14897258 | Q116: 32.08 | R116: 13.41 | S116: 62.4276 | T116: 8.6224
B117: 280 | C117: 7 | D117: EAST GARAFRAXA, TOWNSHIP OF | E117: 924 | F117: 229.93 | G117: 148.32 | H117: 0 | I117: 0 | J117: 0 | K117: 20.74864935 | L117: 6.02 | M117: 0 | N117: 0 | O117: 0 | P117: 14.82135065 | Q117: 15.43 | R117: 3.14 | S117: 21.45 | T117: 0
B118: 282 | C118: 7 | D118: ATHENS, TOWNSHIP OF | E118: 1414 | F118: 189.90538 | G118: 86.15269318 | H118: 32.19167914 | I118: 0 | J118: 1.308697675 | K118: 18.96675798 | L118: 9.296376605 | M118: 2.885585845 | N118: 1.71007329 | O118: 0.105944348 | P118: 0.7738595492 | Q118: 14.30447223 | R118: 5.202305115 | S118: 15.50316303 | T118: 1.503772006
B119: 285 | C119: 7 | D119: MULMUR, TOWNSHIP OF | E119: 1666 | F119: 289.41237 | G119: 163.1073863 | H119: 60.94644812 | I119: 0 | J119: 2.477673644 | K119: 12.55589082 | L119: 6.154150844 | M119: 1.910242164 | N119: 1.132059234 | O119: 0.07013458323 | P119: 0.5122908204 | Q119: 9.469482959 | R119: 3.443897744 | S119: 23.21147872 | T119: 4.421234043
B120: 287 | C120: 7 | D120: MERRICKVILLE-WOLFORD, VILLAGE OF | E120: 1248 | F120: 203.54 | G120: 108.9535399 | H120: 40.71140747 | I120: 0 | J120: 1.655052664 | K120: 10.42715698 | L120: 5.110772136 | M120: 1.586378474 | N120: 0.9401291808 | O120: 0.05824392071 | P120: 0.4254367039 | Q120: 7.864020704 | R120: 2.860017097 | S120: 19.27618963 | T120: 3.671655169
B121: 290 | C121: 7 | D121: NORTH STORMONT, TOWNSHIP OF | E121: 2490 | F121: 400.285576 | G121: 225.5934467 | H121: 84.29489069 | I121: 0 | J121: 3.426864656 | K121: 17.36602339 | L121: 8.511791723 | M121: 2.642051496 | N121: 1.565748495 | O121: 0.09700297899 | P121: 0.7085482425 | Q121: 13.09721986 | R121: 4.763246962 | S121: 32.10374225 | T121: 6.114998524
B122: 294 | C122: 7 | D122: RUSSELL, TOWNSHIP OF | E122: 5607 | F122: 1067.755752 | G122: 601.7671253 | H122: 224.8553528 | I122: 0 | J122: 9.141109916 | K122: 46.32360614 | L122: 22.70507637 | M122: 7.047632617 | N122: 4.176610554 | O122: 0.2587539871 | P122: 1.890041777 | Q122: 34.93663694 | R122: 12.70588961 | S122: 85.63624948 | T122: 16.31166657
B123: 296 | C123: 7 | D123: SOUTH FRONTENAC, TOWNSHIP OF | E123: 10194 | F123: 903 | G123: 450.8 | H123: 135.82 | I123: 0 | J123: 7.69 | K123: 49.85479662 | L123: 17.99 | M123: 19.11 | N123: 0 | O123: 4.43 | P123: 57.96520338 | Q123: 42.65 | R123: 21.8 | S123: 79.7076 | T123: 15.1824
B124: 301 | C124: 7 | D124: SOUTH STORMONT, TOWNSHIP OF | E124: 5154 | F124: 622.72056 | G124: 350.9536339 | H124: 131.13678 | I124: 0 | J124: 5.331141579 | K124: 27.01616161 | L124: 13.24171548 | M124: 4.11021502 | N124: 2.435820419 | O124: 0.1509066352 | P124: 1.102281933 | Q124: 20.37522353 | R124: 7.410139144 | S124: 49.94349422 | T124: 9.513046519
B125: 321 | C125: 7 | D125: NORTH DUNDAS, TOWNSHIP OF | E125: 4553 | F125: 532.99 | G125: 259.4336157 | H125: 171.2854724 | I125: 0 | J125: 3.940911854 | K125: 33.83688841 | L125: 16.58483006 | M125: 5.147914386 | N125: 3.050788077 | O125: 0.1890057903 | P125: 1.380573277 | Q125: 29.02 | R125: 9.12 | S125: 0 | T125: 0
B126: 325 | C126: 7 | D126: WHITEWATER REGION, TOWNSHIP OF | E126: 3461 | F126: 413.5483 | G126: 181.3842432 | H126: 67.77574958 | I126: 0 | J126: 2.755307218 | K126: 32.27446695 | L126: 15.81902399 | M126: 4.910208961 | N126: 2.909917654 | O126: 0.1802784304 | P126: 1.316825178 | Q126: 24.34096627 | R126: 8.852415615 | S126: 59.66427344 | T126: 11.36462351
B127: 346 | C127: 7 | D127: SOUTHWOLD, TOWNSHIP OF | E127: 1707 | F127: 192.16467 | G127: 0 | H127: 43.3105 | I127: 80.42358 | J127: 0 | K127: 13.93311947 | L127: 10.8053 | M127: 0 | N127: 0 | O127: 0 | P127: 0.4709705307 | Q127: 15.12742 | R127: 6.48318 | S127: 21.6106 | T127: 0
B128: 358 | C128: 7 | D128: BAYHAM, MUNICIPALITY OF | E128: 2655 | F128: 412.99 | G128: 223.7979393 | H128: 85.80993076 | I128: 4.4 | J128: 3.768150818 | K128: 20.25909569 | L128: 8.131493671 | M128: 2.679627902 | N128: 0.6753731618 | O128: 0.04184146359 | P128: 6.01722705 | Q128: 14.56938163 | R128: 5.474588698 | S128: 31.38689392 | T128: 5.978455985
B129: 361 | C129: 7 | D129: CLARENCE-ROCKLAND, CITY OF | E129: 8935 | F129: 1496.97162 | G129: 859.5893382 | H129: 113.993098 | I129: 0 | J129: 13.05754384 | K129: 101.9017258 | L129: 49.9461648 | M129: 15.50323877 | N129: 9.187622878 | O129: 0.5692017536 | P129: 4.157675428 | Q129: 76.85290277 | R129: 27.95015732 | S129: 188.3808784 | T129: 35.88207207
B130: 376 | C130: 7 | D130: THE NATION, MUNICIPALITY | E130: 4376 | F130: 833.42464 | G130: 631.520912 | H130: 56.115288 | I130: 16.722408 | J130: 129.066032 | K130: 0 | L130: 0 | M130: 0 | N130: 0 | O130: 0 | P130: 0 | Q130: 0 | R130: 0 | S130: 0 | T130: 0
B131: 382 | C131: 7 | D131: DUTTON-DUNWICH, MUNICIPALITY OF | E131: 1591 | F131: 275.21 | G131: 159.47 | H131: 62.06 | I131: 6.14 | J131: 2.71 | K131: 14.96417741 | L131: 5.38 | M131: 1.95 | N131: 0 | O131: 0 | P131: 6.94582259 | Q131: 11.28 | R131: 4.31 | S131: 0 | T131: 0
B132: 389 | C132: 7 | D132: GREATER NAPANEE, TOWNSHIP OF | E132: 6885 | F132: 953.65256 | G132: 470.414462 | H132: 121.9284934 | I132: 0 | J132: 7.145804618 | K132: 68.62779525 | L132: 33.6372632 | M132: 10.44097229 | N132: 6.187591983 | O132: 0.3833405283 | P132: 2.800071301 | Q132: 76.20264437 | R132: 58.30784886 | S132: 81.96406865 | T132: 15.61220355
B133: 434 | C133: 7 | D133: EDWARDSBURGH CARDINAL, TOWNSHIP OF | E133: 3011 | F133: 283.541776 | G133: 139.118608 | H133: 68.481 | I133: 6.417648 | J133: 0 | K133: 5.711521817 | L133: 4.86976 | M133: 0 | N133: 0 | O133: 0 | P133: 2.280102183 | Q133: 13.904904 | R133: 4.513224 | S133: 18.774664 | T133: 19.470344
B134: 437 | C134: 7 | D134: PLYMPTON-WYOMING, TOWN OF | E134: 3388 | F134: 280.1341 | G134: 157.8783273 | H134: 58.99256619 | I134: 0 | J134: 2.398241915 | K134: 12.15336156 | L134: 5.956854947 | M134: 1.849001718 | N134: 1.095766552 | O134: 0.06788613891 | P134: 0.4958672911 | Q134: 9.165900843 | R134: 3.33348984 | S134: 22.46734202 | T134: 4.279493718
B135: 502 | C135: 7 | D135: SOUTH GLENGARRY, TOWNSHIP OF | E135: 5616 | F135: 672.47365 | G135: 378.9935427 | H135: 141.614128 | I135: 0 | J135: 5.757080249 | K135: 29.17465389 | L135: 14.29968001 | M135: 4.438606134 | N135: 2.630433541 | O135: 0.1629635222 | P135: 1.190350218 | Q135: 22.0031292 | R135: 8.002182098 | S135: 53.93379633 | T135: 10.27310406
B136: 503 | C136: 7 | D136: MALAHIDE, TOWNSHIP OF | E136: 3007 | F136: 353.95 | G136: 176.25 | H136: 75.28 | I136: 4.51 | J136: 2.28 | K136: 20.53584269 | L136: 10.22 | M136: 1.5 | N136: 0 | O136: 0 | P136: 6.08415731 | Q136: 17.48 | R136: 6.27 | S136: 28.1736 | T136: 5.3664
B137: 510 | C137: 7 | D137: SOUTH DUNDAS, TOWNSHIP OF | E137: 4442 | F137: 514.446664 | G137: 229.6331937 | H137: 85.80437614 | I137: 0 | J137: 3.488230206 | K137: 39.04110957 | L137: 19.13562972 | M137: 5.939680007 | N137: 3.520008995 | O137: 0.2180754826 | P137: 1.592909842 | Q137: 29.44427657 | R137: 10.70840701 | S137: 72.17344412 | T137: 13.74732269
B138: 531 | C138: 7 | D138: BRANT, COUNTY OF | E138: 13862 | F138: 1918.72 | G138: 1036.138499 | H138: 467.3918736 | I138: 0 | J138: 15.73940401 | K138: 79.76120615 | L138: 39.094199 | M138: 12.13479962 | N138: 7.191398148 | O138: 0.4455294358 | P138: 3.254323754 | Q138: 60.15482242 | R138: 21.87733566 | S138: 147.4507517 | T138: 28.08585747
B139: 550 | C139: 7 | D139: HASTINGS HIGHLANDS, MUNICIPALITY OF | E139: 3780 | F139: 260 | G139: 146.5311259 | H139: 54.75258888 | I139: 0 | J139: 2.225872887 | K139: 11.27986206 | L139: 5.528717447 | M139: 1.716108274 | N139: 1.017010437 | O139: 0.06300695316 | P139: 0.4602277826 | Q139: 8.507119337 | R139: 3.093901665 | S139: 20.852545 | T139: 3.971913333
B140: 551 | C140: 7 | D140: HORTON, TOWNSHIP OF | E140: 1340 | F140: 178.88576 | G140: 76.84879386 | H140: 28.71519883 | I140: 0 | J140: 1.167367312 | K140: 0 | L140: 0 | M140: 0 | N140: 0 | O140: 0 | P140: 0 | Q140: 0 | R140: 72.1544 | S140: 0 | T140: 0
B141: 555 | C141: 7 | D141: GREY HIGHLANDS, MUNICIPALITY OF | E141: 5262 | F141: 640.912592 | G141: 361.2063221 | H141: 134.9677833 | I141: 0 | J141: 5.486884467 | K141: 27.80540627 | L141: 13.62855627 | M141: 4.230290007 | N141: 2.506979982 | O141: 0.155315191 | P141: 1.134483773 | Q141: 20.97046117 | R141: 7.626617444 | S141: 51.40253332 | T141: 9.790958728
B142: 556 | C142: 7 | D142: MCNAB-BRAESIDE, TOWNSHIP OF | E142: 3114 | F142: 574.199 | G142: 221.1846142 | H142: 82.64749329 | I142: 0 | J142: 3.359892531 | K142: 52.95865571 | L142: 25.95718301 | M142: 8.057083212 | N142: 4.774837255 | O142: 2.081815988 | P142: 2.160757335 | Q142: 39.94070155 | R142: 14.52578695 | S142: 97.90215035 | T142: 18.64802864
B143: 558 | C143: 7 | D143: SOUTHWEST MIDDLESEX, MUNICIPALITY OF | E143: 2470 | F143: 362.979736 | G143: 204.5685747 | H143: 76.43877022 | I143: 0 | J143: 3.107487511 | K143: 15.74754366 | L143: 7.718509228 | M143: 2.395817416 | N143: 1.419823769 | O143: 0.08796248932 | P143: 0.6425129193 | Q143: 11.87658435 | R143: 4.319321575 | S143: 29.11173569 | T143: 5.545092512
B144: 600 | C144: 7 | D144: ALFRED AND PLANTAGENET, TOWNSHIP OF | E144: 4146 | F144: 627.251176 | G144: 247.244672 | H144: 27.627192 | I144: 239.331312 | J144: 0 | K144: 8.773368564 | L144: 8.21772 | M144: 0 | N144: 0 | O144: 0 | P144: 0.2965594358 | Q144: 25.114048 | R144: 6.00024 | S144: 20.418208 | T144: 44.227856
B145: 604 | C145: 7 | D145: WEST GREY, MUNICIPALITY OF | E145: 5564 | F145: 771.796088 | G145: 363.0931696 | H145: 260.5995558 | I145: 0 | J145: 5.515546518 | K145: 27.95065445 | L145: 13.69974829 | M145: 4.252387938 | N145: 2.520075791 | O145: 0.156126517 | P145: 1.14041002 | Q145: 23.68880538 | R145: 7.666456902 | S145: 51.67104673 | T145: 9.84210414
B146: 612 | C146: 7 | D146: SOUTHGATE, TOWNSHIP OF | E146: 2921 | F146: 591.693232 | G146: 333.4672135 | H146: 124.6028318 | I146: 0 | J146: 5.065515086 | K146: 25.67006938 | L146: 12.58194114 | M146: 3.905421735 | N146: 2.314454587 | O146: 0.1433876452 | P146: 1.047360247 | Q146: 19.36001898 | R146: 7.040925676 | S146: 47.45503748 | T146: 9.039054758
B147: 711 | C147: 7 | D147: BANCROFT, TOWN OF | E147: 1896 | F147: 386.73 | G147: 168.8126863 | H147: 79.072974 | I147: 0 | J147: 2.564339685 | K147: 27.2120443 | L147: 13.33772552 | M147: 4.14001644 | N147: 2.453481516 | O147: 0.152000795 | P147: 1.11027411 | Q147: 20.5229556 | R147: 7.463866908 | S147: 50.30561324 | T147: 9.58202157
B148: 712 | C148: 7 | D148: BECKWITH, TOWNSHIP OF | E148: 2950 | F148: 435.44 | G148: 240.12 | H148: 91.68 | I148: 0 | J148: 0 | K148: 12.62330415 | L148: 7.95 | M148: 0 | N148: 0 | O148: 0 | P148: 0.42669585 | Q148: 27.81 | R148: 6.81 | S148: 30.56 | T148: 17.46
B149: 731 | C149: 7 | D149: CARLETON PLACE, TOWN OF | E149: 4243 | F149: 623.18 | G149: 343.64 | H149: 131.21 | I149: 0 | J149: 0 | K149: 18.06922004 | L149: 11.37 | M149: 0 | N149: 0 | O149: 0 | P149: 0.61077996 | Q149: 39.8 | R149: 9.75 | S149: 43.74 | T149: 24.99
B150: 749 | C150: 7 | D150: CONMEE, TOWNSHIP OF | E150: 285 | F150: 16.58301 | G150: 7.882916773 | H150: 2.94551822 | I150: 0 | J150: 0.1197450071 | K150: 0 | L150: 0 | M150: 0 | N150: 0 | O150: 0 | P150: 0 | Q150: 4.132064863 | R150: 1.502765137 | S150: 0 | T150: 0
B151: 786 | C151: 7 | D151: HALDIMAND, COUNTY OF | E151: 19852 | F151: 2902.13 | G151: 1150.93 | H151: 824.86 | I151: 0 | J151: 36.36 | K151: 220.2935852 | L151: 3.68 | M151: 117.26 | N151: 0 | O151: 0 | P151: 172.3964148 | Q151: 125.19 | R151: 79.27 | S151: 144.3876 | T151: 27.5024
B152: 854 | C152: 7 | D152: MISSISSIPPI MILLS, TOWN OF | E152: 5417 | F152: 778.33 | G152: 425.58 | H152: 169.09 | I152: 0 | J152: 0 | K152: 22.37371839 | L152: 14.08 | M152: 0 | N152: 0 | O152: 0 | P152: 0.75628161 | Q152: 49.27 | R152: 12.07 | S152: 54.16 | T152: 30.95
B153: 855 | C153: 7 | D153: MONTAGUE, TOWNSHIP OF | E153: 1475 | F153: 214.42 | G153: 0 | H153: 45.57 | I153: 119.34 | J153: 0 | K153: 6.27779647 | L153: 3.95 | M153: 0 | N153: 0 | O153: 0 | P153: 0.21220353 | Q153: 13.82 | R153: 3.38 | S153: 15.19 | T153: 6.68
B154: 958 | C154: 7 | D154: DEEP RIVER, TOWN OF | E154: 1851 | F154: 601.137088 | G154: 292.5279566 | H154: 109.3055338 | I154: 0 | J154: 4.443629591 | K154: 38.90914353 | L154: 19.07094782 | M154: 5.91960281 | N154: 3.508110726 | O154: 0.2173383479 | P154: 1.587525517 | Q154: 29.34474957 | R154: 10.67221065 | S154: 71.92948478 | T154: 13.70085424
B155: 967 | C155: 7 | D155: MOHAWKS OF THE BAY OF QUINTE | E155: 1022 | F155: 282.35767 | G155: 111.2674345 | H155: 41.5760137 | I155: 0 | J155: 1.690201752 | K155: 21.12996869 | L155: 10.35665383 | M155: 3.214694817 | N155: 1.905111834 | O155: 0.1180275912 | P155: 0.862120351 | Q155: 15.93593648 | R155: 27.79916227 | S155: 39.06196908 | T155: 7.440375063
B156: 971 | C156: 7 | D156: LOYALIST, TOWNSHIP OF | E156: 6676 | F156: 1042.97 | G156: 571.29 | H156: 203.28 | I156: 0 | J156: 9.74 | K156: 38.74048515 | L156: 13.98 | M156: 14.85 | N156: 0 | O156: 3.44 | P156: 45.04951485 | Q156: 33.14 | R156: 16.94 | S156: 81.7136 | T156: 10.8064
B157: 976 | C157: 7 | D157: CHIPPEWAS OF NAWASH FIRST NATION | E157: 273 | F157: 15.52236 | G157: 0 | H157: 0 | I157: 0 | J157: 0 | K157: 4.70212179 | L157: 0 | M157: 0 | N157: 3.052296 | O157: 0 | P157: 0.1589422096 | Q157: 5.417608 | R157: 2.191392 | S157: 0 | T157: 0
B158: 978 | C158: 7 | D158: SAGAMOK ANISHNAWBEK FIRST NATION | E158: 398 | F158: 37.05057 | G158: 14.4666 | H158: 15.51141 | I158: 0 | J158: 0 | K158: 2.233056871 | L158: 1.094511655 | M158: 0.3397353046 | N158: 0.2013359856 | O158: 0.01247338921 | P158: 0.09111058335 | Q158: 1.684141277 | R158: 0.6124949344 | S158: 0.675108 | T158: 0.128592
B159: 980 | C159: 7 | D159: ATIKAMEKSHENG ANISHNAWBEK FIRST NATION | E159: 120 | F159: 50.95856 | G159: 28.71928913 | H159: 10.73120418 | I159: 0 | J159: 0.4362587579 | K159: 2.210790491 | L159: 1.083597999 | M159: 0.3363477171 | N159: 0.199328413 | O159: 0.01234901386 | P159: 0.09020209644 | Q159: 1.667348274 | R159: 0.6063875909 | S159: 4.086983329 | T159: 0.778473015
B160: 981 | C160: 7 | D160: CHIPPEWAS OF RAMA FIRST NATION | E160: 364 | F160: 91.13958 | G160: 45.70274184 | H160: 27.71471226 | I160: 11.63579 | J160: 0.2307266209 | K160: 1.169233191 | L160: 0.5730885633 | M160: 0.1778861073 | N160: 0.105419938 | O160: 0.006531092357 | P160: 0.04770568965 | Q160: 0.8818198516 | R160: 0.3207036129 | S160: 2.161505841 | T160: 0.4117153982
B161: 983 | C161: 7 | D161: CURVE LAKE FIRST NATION | E161: 563 | F161: 78.20894 | G161: 45.99657691 | H161: 17.18700822 | I161: 0 | J161: 0.6987084332 | K161: 2.860708377 | L161: 1.402149089 | M161: 0.4352256515 | N161: 0.257926051 | O161: 0.0159793194 | P161: 0.1167192884 | Q161: 2.157507549 | R161: 0.7846505891 | S161: 5.288455642 | T161: 1.007324884
D162: Group 7 Weighted Average | F162: =SUM(F99:F161) -> 38299.41524 | G162: =SUMPRODUCT(G99:G161,$F$99:$F$161)/SUM($F$99:$F$161) -> 573.9874439 | H162: =SUMPRODUCT(H99:H161,$F$99:$F$161)/SUM($F$99:$F$161) -> 252.4670719 | I162: 16.55445856 | J162: 12.02968426 | K162: 58.74218901 | L162: 21.53559447 | M162: 15.87214314 | N162: 3.976577207 | O162: 0.4115914395 | P162: 21.44210498 | Q162: 46.0704677 | R162: 20.61043471 | S162: 97.29289373 | T162: 28.63558371 | U162: =SUM(G162:T162) -> 1169.628239
B163: 188 | C163: 8 | D163: ARMOUR, TOWNSHIP OF | E163: 2184 | F163: 218.02 | G163: 65.51 | H163: 66.28 | I163: 0 | J163: 0 | K163: 16.50525077 | L163: 8.089892183 | M163: 9.991094308 | N163: 1.488139856 | O163: 0.09219488294 | P163: 0.6734280014 | Q163: 11.87 | R163: 5.32 | S163: 32.2 | T163: 0
B164: 232 | C164: 8 | D164: WHITESTONE, MUNICIPALITY OF | E164: 1634 | F164: 87.21038 | G164: 47.31036021 | H164: 17.67791441 | I164: 0 | J164: 0.7186653851 | K164: 3.653880679 | L164: 1.75028 | M164: 3.50949 | N164: 0 | O164: 0 | P164: 3.356169321 | Q164: 4.58109 | R164: 1.21448 | S164: 2.42896 | T164: 1.00909
B165: 245 | C165: 8 | D165: THE ARCHIPELAGO, TOWNSHIP OF | E165: 3299 | F165: 188.190136 | G165: 102.0905037 | H165: 38.14697622 | I165: 0 | J165: 1.550800096 | K165: 7.881731874 | L165: 3.78276 | M165: 7.56552 | N165: 0 | O165: 0 | P165: 7.249308126 | Q165: 9.887352 | R165: 2.617496 | S165: 5.243688 | T165: 2.174
B166: 338 | C166: 8 | D166: COCHRANE TEMISKAMING WASTE MANAGEMENT BOARD | E166: 19872 | F166: 1742.34 | G166: 879.7984053 | H166: 647.8570662 | I166: 0 | J166: 13.36452855 | K166: 67.94361744 | L166: 33.30191993 | M166: 10.33688208 | N166: 6.125905415 | O166: 0.3795188539 | P166: 2.772156276 | Q166: 52.75 | R166: 27.71 | S166: 0 | T166: 0
B167: 372 | C167: 8 | D167: CARLING, TOWNSHIP OF | E167: 1678 | F167: 116.60794 | G167: 63.25622774 | H167: 23.63622206 | I167: 0 | J167: 0.9608901955 | K167: 4.880478921 | L167: 2.33966 | M167: 4.68825 | N167: 0 | O167: 0 | P167: 4.496021079 | Q167: 6.12598 | R167: 1.62526 | S167: 3.25052 | T167: 1.34843
B168: 375 | C168: 8 | D168: MCDOUGALL, MUNICIPALITY OF | E168: 1800 | F168: 182.29 | G168: 98.88764978 | H168: 36.9502029 | I168: 0 | J168: 1.502147322 | K168: 7.63202067 | L168: 3.66 | M168: 7.33 | N168: 0 | O168: 0 | P168: 7.02797933 | Q168: 9.58 | R168: 2.54 | S168: 5.08 | T168: 2.1
B169: 404 | C169: 8 | D169: SEGUIN, TOWNSHIP OF | E169: 4732 | F169: 442.69582 | G169: 240.1589106 | H169: 89.73739889 | I169: 0 | J169: 3.648120522 | K169: 18.53718189 | L169: 8.89428 | M169: 17.79749 | N169: 0 | O169: 0 | P169: 17.05779811 | Q169: 23.25372 | R169: 6.17063 | S169: 12.33233 | T169: 5.10796
B170: 413 | C170: 8 | D170: MCKELLAR, TOWNSHIP OF | E170: 1499 | F170: 88.6 | G170: 47.92458111 | H170: 17.90742322 | I170: 0 | J170: 0.7279956734 | K170: 3.69509746 | L170: 2.04 | M170: 3.55 | N170: 0 | O170: 0 | P170: 3.40490254 | Q170: 4.64 | R170: 1.23 | S170: 2.46 | T170: 1.02
B171: 537 | C171: 8 | D171: CASEY, TOWNSHIP OF | E171: 157 | F171: 51.758592 | G171: 29.17017217 | H171: 10.89968042 | I171: 0 | J171: 0.4431078715 | K171: 2.245499147 | L171: 1.100610118 | M171: 0.3416282614 | N171: 0.2024578011 | O171: 0.01254288916 | P171: 0.09161823857 | Q171: 1.693525073 | R171: 0.6159076691 | S171: 4.151147572 | T171: 0.7906947756
B172: 545 | C172: 8 | D172: GILLIES, TOWNSHIP OF | E172: 190 | F172: 16.05614 | G172: 7.632155146 | H172: 2.851819027 | I172: 0 | J172: 0.1159358266 | K172: 1.943586536 | L172: 0.9526305141 | M172: 0.2956955429 | N172: 0.1752368763 | O172: 0.01085646839 | P172: 0.07929995218 | Q172: 1.465826667 | R172: 0.5330974429 | S172: 0 | T172: 0
B173: 605 | C173: 8 | D173: KERNS, TOWNSHIP OF | E173: 135 | F173: 17.374608 | G173: 9.792003358 | H173: 3.658864495 | I173: 0 | J173: 0.1487448803 | K173: 0.7537814676 | L173: 0.3694588399 | M173: 0.1146796482 | N173: 0.06796214491 | O173: 0.004210465817 | P173: 0.03075491274 | Q173: 0.5684917834 | R173: 0.2067512639 | S173: 1.393479981 | T173: 0.2654247583
B174: 607 | C174: 8 | D174: HUDSON, TOWNSHIP OF | E174: 336 | F174: 26.070608 | G174: 14.69290594 | H174: 5.490128007 | I174: 0 | J174: 0.2231917673 | K174: 1.131049469 | L174: 0.5543731743 | M174: 0.1720768696 | N174: 0.1019772325 | O174: 0.006317806066 | P174: 0.04614776197 | Q174: 0.8530222056 | R174: 0.310230375 | S174: 2.090917409 | T174: 0.3982699827
B175: 610 | C175: 8 | D175: NEEBING, MUNICIPALITY OF | E175: 1286 | F175: 57.0627 | G175: 27.11440459 | H175: 10.13152556 | I175: 0 | J175: 0.411879849 | K175: 6.912297125 | L175: 3.387996902 | M175: 1.051630793 | N175: 0.6232237844 | O175: 0.0386106478 | P175: 0.2820274895 | Q175: 5.213160961 | R175: 1.895942297 | S175: 0 | T175: 0
B176: 611 | C176: 8 | D176: CALVIN, MUNICIPALITY OF | E176: 300 | F176: 19.43556 | G176: 12.10973926 | H176: 4.524906029 | I176: 0 | J176: 0.1839523181 | K176: 0.9321991322 | L176: 0.4569085667 | M176: 0.1418239545 | N176: 0.08404856743 | O176: 0.005207069621 | P176: 0.03803450231 | Q176: 0.7030519719 | R176: 0.2556886274 | S176: 0 | T176: 0
B177: 616 | C177: 8 | D177: PERRY, TOWNSHIP OF | E177: 1631 | F177: 154.54258 | G177: 83.83797047 | H177: 31.32676352 | I177: 0 | J177: 1.273536009 | K177: 6.469873827 | L177: 3.10764 | M177: 6.21528 | N177: 0 | O177: 0 | P177: 5.951756173 | Q177: 8.11737 | R177: 2.15213 | S177: 4.30426 | T177: 1.786
B178: 709 | C178: 8 | D178: ASSIGINACK, TOWNSHIP OF | E178: 707 | F178: 86.26 | G178: 48.61451894 | H178: 18.1652243 | I178: 0 | J178: 0.7384761354 | K178: 3.742311159 | L178: 1.834258335 | M178: 0.5693519219 | N178: 0.3374127704 | O178: 0.02090376838 | P178: 0.1526894174 | Q178: 2.822400439 | R178: 1.026461375 | S178: 6.918232814 | T178: 1.317758631
B179: 714 | C179: 8 | D179: BILLINGS, TOWNSHIP OF | E179: 621 | F179: 48.63278 | G179: 0 | H179: 27.12934 | I179: 0 | J179: 0 | K179: 12.08854461 | L179: 5.92508553 | M179: 1.839140524 | N179: 1.089922551 | O179: 0.06752408493 | P179: 0.4932227051 | Q179: 0 | R179: 0 | S179: 0 | T179: 0
B180: 754 | C180: 8 | D180: DESERONTO, TOWN OF | E180: 777 | F180: 121.17117 | G180: 59.32762893 | H180: 22.16826804 | I180: 0 | J180: 0.9012130345 | K180: 0 | L180: 0 | M180: 0 | N180: 0 | O180: 0 | P180: 0 | Q180: 0 | R180: 38.77406 | S180: 0 | T180: 0
B181: 764 | C181: 8 | D181: EMO, TOWNSHIP OF | E181: 732 | F181: 45.0072 | G181: 18.19678496 | H181: 16.4430978 | I181: 0 | J181: 0.2764172458 | K181: 2.108467082 | L181: 1.033445151 | M181: 0.3207803239 | N181: 0.1901027706 | O181: 0.01177745667 | P181: 0.08602721601 | Q181: 3.274219384 | R181: 2.173080616 | S181: 0.75012 | T181: 0.14288
B182: 775 | C182: 8 | D182: FRENCH RIVER, MUNICIPALITY OF | E182: 2476 | F182: 180.155032 | G182: 0 | H182: 0 | I182: 0 | J182: 0 | K182: 64.17377835 | L182: 31.45416904 | M182: 9.763342087 | N182: 5.786010682 | O182: 0.3584613203 | P182: 2.618343696 | Q182: 48.39899529 | R182: 17.60193153 | S182: 0 | T182: 0
B183: 790 | C183: 8 | D183: HARLEY, TOWNSHIP OF | E183: 221 | F183: 51.758592 | G183: 29.17017217 | H183: 10.89968042 | I183: 0 | J183: 0.4431078715 | K183: 2.245499147 | L183: 1.100610118 | M183: 0.3416282614 | N183: 0.2024578011 | O183: 0.01254288916 | P183: 0.09161823857 | Q183: 1.693525073 | R183: 0.6159076691 | S183: 4.151147572 | T183: 0.7906947756
B184: 796 | C184: 8 | D184: HILLIARD, TOWNSHIP OF | E184: 141 | F184: 7.92984 | G184: 1.36629 | H184: 0.79477 | I184: 0.61617 | J184: 0 | K184: 1.827338138 | L184: 0.8956524638 | M184: 0.278009614 | N184: 0.1647557345 | O184: 0.01020712912 | P184: 0.07455692054 | Q184: 0.84835 | R184: 0.16074 | S184: 0.75012 | T184: 0.14288
B185: 797 | C185: 8 | D185: HILTON BEACH, VILLAGE OF | E185: 499 | F185: 18.3958 | G185: 7.10828 | H185: 6.93861 | I185: 0 | J185: 0 | K185: 1.164243326 | L185: 0.5706428284 | M185: 0.1771269537 | N185: 0.1049700438 | O185: 0.006503220015 | P185: 0.04750209901 | Q185: 0.8780565631 | R185: 0.3193349658 | S185: 0.9076452 | T185: 0.1728848
B186: 801 | C186: 8 | D186: HURON SHORES, MUNICIPALITY OF | E186: 1338 | F186: 137.09336 | G186: 67.18194923 | H186: 59.1295608 | I186: 0 | J186: 0.2390401596 | K186: 1.211362986 | L186: 0.593738083 | M186: 0.1842956972 | N186: 0.1092184278 | O186: 0.006766420592 | P186: 0.04942462044 | Q186: 0.913593573 | R186: 0 | S186: 6.2785044 | T186: 1.1959056
B187: 807 | C187: 8 | D187: JOHNSON, TOWNSHIP OF | E187: 409 | F187: 56.22328 | G187: 23.39586615 | H187: 29.04856648 | I187: 0 | J187: 0.3553935984 | K187: 0.3626250055 | L187: 0.1777372085 | M187: 0.05516944879 | N187: 0.03269485153 | O187: 0.00202554753 | P187: 0.01479540276 | Q187: 0.2734868725 | R187: 0.09946275073 | S187: 2.020583617 | T187: 0.3848730698
B188: 810 | C188: 8 | D188: KEARNEY, TOWN OF | E188: 967 | F188: 113.89322 | G188: 61.79023669 | H188: 23.08844216 | I188: 0 | J188: 0.9386211403 | K188: 4.768184716 | L188: 2.28608 | M188: 4.58109 | N188: 0 | O188: 0 | P188: 4.385065284 | Q188: 5.9831 | R188: 1.58954 | S188: 3.17015 | T188: 1.31271
B189: 812 | C189: 8 | D189: KILLARNEY, MUNICIPALITY OF | E189: 933 | F189: 41.366872 | G189: 23.31359358 | H189: 8.711320523 | I189: 0 | J189: 0.3541438415 | K189: 1.794663885 | L189: 0.8796374883 | M189: 0.2730385819 | N189: 0.1618097714 | O189: 0.01002461756 | P189: 0.07322378375 | Q189: 1.353511218 | R189: 0.4922501314 | S189: 3.317709845 | T189: 0.6319447325
B190: 833 | C190: 8 | D190: MACDONALD, MEREDITH & ABERDEEN ADDITIONAL, TOWNSHIP OF | E190: 771 | F190: 71.06494 | G190: 0 | H190: 36.98806 | I190: 19.67279 | J190: 0 | K190: 4.157557451 | L190: 2.037787368 | M190: 0.632527127 | N190: 0.3748520415 | O190: 0.02322324743 | P190: 0.1696318126 | Q190: 3.135573574 | R190: 1.140357378 | S190: 2.2953672 | T190: 0.4372128
B191: 834 | C191: 8 | D191: MACHAR, TOWNSHIP OF | E191: 859 | F191: 103.54 | G191: 51.95729333 | H191: 31.52345231 | I191: 0 | J191: 0.7892543631 | K191: 3.26948414 | L191: 1.57 | M191: 3.14 | N191: 0 | O191: 0 | P191: 3.01051586 | Q191: 4.11 | R191: 1.09 | S191: 2.18 | T191: 0.9
B192: 837 | C192: 8 | D192: MAGNETAWAN, MUNICIPALITY OF | E192: 2000 | F192: 154.68 | G192: 83.91841839 | H192: 31.35682356 | I192: 0 | J192: 1.274758049 | K192: 6.47125707 | L192: 3.11 | M192: 6.22 | N192: 0 | O192: 0 | P192: 5.95874293 | Q192: 8.13 | R192: 2.16 | S192: 4.31 | T192: 1.77
B193: 847 | C193: 8 | D193: MCMURRICH/MONTEITH, TOWNSHIP OF | E193: 787 | F193: 53.45 | G193: 29.0024358 | H193: 10.83700431 | I193: 0 | J193: 0.4405598817 | K193: 2.23446993 | L193: 1.07 | M193: 0 | N193: 0 | O193: 0 | P193: 4.20553007 | Q193: 2.81 | R193: 0.74 | S193: 1.49 | T193: 0.62
B194: 866 | C194: 8 | D194: NIPISSING, TOWNSHIP OF | E194: 1278 | F194: 183.065 | G194: 23.95919 | H194: 63.14403 | I194: 0 | J194: 0 | K194: 30.03059544 | L194: 14.71921164 | M194: 4.568828328 | N194: 2.707606604 | O194: 0.1677446329 | P194: 1.225273348 | Q194: 8.70675 | R194: 16.8777 | S194: 14.2447788 | T194: 2.7132912
B195: 871 | C195: 8 | D195: OCONNOR, TOWNSHIP OF | E195: 274 | F195: 19.01197 | G195: 11.8458125 | H195: 4.426287572 | I195: 0 | J195: 0.1799431533 | K195: 0.9118822372 | L195: 0.4469504333 | M195: 0.13873296 | N195: 0.08221676363 | O195: 0.00509358369 | P195: 0.03720555605 | Q195: 0.6877292446 | R195: 0.2501159994 | S195: 0 | T195: 0
B196: 873 | C196: 8 | D196: OLIVER PAIPOONGE, MUNICIPALITY OF | E196: 2149 | F196: 145.08571 | G196: 68.94658773 | H196: 25.76247298 | I196: 0 | J196: 1.047329291 | K196: 17.57180364 | L196: 8.612652962 | M196: 2.673358722 | N196: 1.584301972 | O196: 0.09815242449 | P196: 0.7169442485 | Q196: 13.25241654 | R196: 4.819689484 | S196: 0 | T196: 0
B197: 895 | C197: 8 | D197: RAINY RIVER, TOWN OF | E197: 530 | F197: 29.47944 | G197: 16.52983316 | H197: 6.176511329 | I197: 0 | J197: 0.2510955077 | K197: 1.466583726 | L197: 0.7188321092 | M197: 0.2231247558 | N197: 0.1322295387 | O197: 0.008192030334 | P197: 0.05983783958 | Q197: 2.6088 | R197: 0.8696 | S197: 0.365232 | T197: 0.069568
B198: 897 | C198: 8 | D198: RED LAKE, MUNICIPALITY OF | E198: 2135 | F198: 212.738944 | G198: 132.5515263 | H198: 49.52899378 | I198: 0 | J198: 2.013516559 | K198: 10.2037224 | L198: 5.001257797 | M198: 1.552385335 | N198: 0.9199839613 | O198: 0.05699586183 | P198: 0.4163203868 | Q198: 7.695509369 | R198: 2.798732251 | S198: 0 | T198: 0
B199: 905 | C199: 8 | D199: SHUNIAH, MUNICIPALITY OF | E199: 2460 | F199: 90.994944 | G199: 45.77010622 | H199: 17.10238554 | I199: 0 | J199: 0.6952682429 | K199: 15.41868358 | L199: 7.557321575 | M199: 2.345784932 | N199: 1.390173217 | O199: 0.08612554558 | P199: 0.6290951535 | Q199: 0 | R199: 0 | S199: 0 | T199: 0
B200: 907 | C200: 8 | D200: SIOUX NARROWS NESTOR FALLS, TOWNSHIP OF | E200: 1171 | F200: 11.28752 | G200: 4.192220013 | H200: 1.566458303 | I200: 0 | J200: 0.06368168403 | K200: 1.285160888 | L200: 0.6299094251 | M200: 0.195523245 | N200: 0.1158721649 | O200: 0.007178640258 | P200: 0.05243563643 | Q200: 0.9823 | R200: 0.94658 | S200: 1.050168 | T200: 0.200032
B201: 918 | C201: 8 | D201: ST. JOSEPH, TOWNSHIP OF | E201: 928 | F201: 73.87789 | G201: 17.35099 | H201: 24.67359 | I201: 14.56483 | J201: 0 | K201: 3.00099049 | L201: 1.470907037 | M201: 0.4565680487 | N201: 0.2705741111 | O201: 0.01676290599 | P201: 0.1224429157 | Q201: 2.263306421 | R201: 0.8231279271 | S201: 7.44559212 | T201: 1.418208023
... 60 more rows

Sheet 2012 BB Category Details
B2: 2012 Blue Box Financial Details
B4: Program Code | C4: Group # | D4: Program Name | E4: Marketed or Calculated Marketed Tonnes | F4: Single Stream | G4: Residential Collection Costs Per Tonne Marketed | H4: Residential Processing Costs Per Tonne Marketed | I4: Residential Depot/Transfer Costs Per Tonne Marketed | J4: Residential Promotion & Education Costs Per Tonne Marketed | K4: Calculated Administration1 and Interest on Municipal Capital2 Per Tonne Marketed | L4: Gross Costs Per Tonne Marketed
B5: 1 | C5: =VLOOKUP(B5,'2012 BB Tonnes (2)'!$B$5:$C$243,2,FALSE) -> 1 | D5: HALTON, REGIONAL MUNICIPALITY OF | E5: 41298.58 | F5: Y | G5: 124.2269269 | H5: 77.95850874 | I5: 1.165165969 | J5: 4.851781587 | K5: 8.039236458 | L5: 2696.095572
B6: 172 | C6: =VLOOKUP(B6,'2012 BB Tonnes (2)'!$B$5:$C$243,2,FALSE) -> 1 | D6: HAMILTON, CITY OF | E6: 38422.15 | F6: N | G6: 206.199088 | H6: 90.56351427 | I6: 3.23106151 | J6: 3.786926551 | K6: 14.77202291 | L6: 784.8843663
B7: 50 | C7: =VLOOKUP(B7,'2012 BB Tonnes (2)'!$B$5:$C$243,2,FALSE) -> 1 | D7: LONDON, CITY OF | E7: 26669.9 | F7: N | G7: 190.6466923 | H7: 155.732702 | I7: 2.476435607 | J7: 8.561635777 | K7: 22.52328843 | L7: 490.5155411
B8: 270 | C8: =VLOOKUP(B8,'2012 BB Tonnes (2)'!$B$5:$C$243,2,FALSE) -> 1 | D8: PEEL, REGIONAL MUNICIPALITY OF | E8: 86950.4 | F8: Y | G8: 229.2939702 | H8: 162.1122284 | I8: 3.300046923 | J8: 7.745654764 | K8: 25.13840488 | L8: 363.4226056
B9: 20 | C9: =VLOOKUP(B9,'2012 BB Tonnes (2)'!$B$5:$C$243,2,FALSE) -> 1 | D9: TORONTO, CITY OF | E9: 156465 | F9: Y | G9: 212.2898687 | H9: 143.1474997 | I9: 46.22358994 | J9: 11.54715751 | K9: 28.05760803 | L9: 894.1607737
B10: 97 | C10: =VLOOKUP(B10,'2012 BB Tonnes (2)'!$B$5:$C$243,2,FALSE) -> 1 | D10: YORK, REGIONAL MUNICIPALITY OF | E10: 76736.71 | F10: Y | G10: 120.5807488 | H10: 145.292793 | I10: 36.82764455 | J10: 4.523207471 | K10: 21.06323948 | L10: 167.9773532
G11: =SUMPRODUCT(G5:G10,$E$5:$E$10)/SUM($E$5:$E$10) -> 188.829009 | H11: =SUMPRODUCT(H5:H10,$E$5:$E$10)/SUM($E$5:$E$10) -> 137.1379191 | I11: 24.81265301 | J11: 7.974631944 | K11: 22.72322694
B12: 6 | C12: =VLOOKUP(B12,'2012 BB Tonnes (2)'!$B$5:$C$243,2,FALSE) -> 2 | D12: DURHAM, REGIONAL MUNICIPALITY OF | E12: 44429.08 | F12: N | G12: 215.6005132 | H12: 119.6098296 | I12: 5.445922355 | J12: 10.56502408 | K12: 23.20871353 | L12: 872.3223557
B13: 18 | C13: =VLOOKUP(B13,'2012 BB Tonnes (2)'!$B$5:$C$243,2,FALSE) -> 2 | D13: ESSEX-WINDSOR SOLID WASTE AUTHORITY | E13: 24918.31 | F13: N | G13: 150.7690991 | H13: 114.4124557 | I13: 0.4031449163 | J13: 7.620485097 | K13: 19.80471228 | L13: 246.3549281
B14: 357 | C14: =VLOOKUP(B14,'2012 BB Tonnes (2)'!$B$5:$C$243,2,FALSE) -> 2 | D14: NIAGARA, REGIONAL MUNICIPALITY OF | E14: 39464.89 | F14: N | G14: 168.7164145 | H14: 103.0527935 | I14: 4.109945574 | J14: 11.01705769 | K14: 19.65376642 | L14: 569.6756394
B15: 441 | C15: =VLOOKUP(B15,'2012 BB Tonnes (2)'!$B$5:$C$243,2,FALSE) -> 2 | D15: OTTAWA, CITY OF | E15: 60885.53 | F15: N | G15: 207.0015442 | H15: 91.58125798 | I15: 0 | J15: 0.9763275445 | K15: 12.17218508 | L15: 448.811732
B16: 335 | C16: =VLOOKUP(B16,'2012 BB Tonnes (2)'!$B$5:$C$243,2,FALSE) -> 2 | D16: SIMCOE, COUNTY OF | E16: 25511.02 | F16: N | G16: 228.7814031 | H16: 29.63831944 | I16: 6.364361754 | J16: 10.35085622 | K16: 10.17172069 | L16: 328.2957018
B17: 53 | C17: =VLOOKUP(B17,'2012 BB Tonnes (2)'!$B$5:$C$243,2,FALSE) -> 2 | D17: WATERLOO, REGIONAL MUNICIPALITY OF | E17: 34534.41 | F17: N | G17: 198.8377424 | H17: 105.9078363 | I17: 0.7983515572 | J17: 4.581697212 | K17: 14.87402391 | L17: 1277.781733
G18: =SUMPRODUCT(G12:G17,$E$12:$E$17)/SUM($E$12:$E$17) -> 197.180157 | H18: =SUMPRODUCT(H12:H17,$E$12:$E$17)/SUM($E$12:$E$17) -> 96.7237544 | I18: 2.62960303 | J18: 6.858970954 | K18: 16.60350063
B19: 14 | C19: =VLOOKUP(B19,'2012 BB Tonnes (2)'!$B$5:$C$243,2,FALSE) -> 3 | D19: BARRIE, CITY OF | E19: 11589.59511 | F19: N | G19: 132.2594461 | H19: 0 | I19: 9.625466545 | J19: 12.39523716 | K19: 5.639179745 | L19: 199.8453469
B20: 179 | C20: =VLOOKUP(B20,'2012 BB Tonnes (2)'!$B$5:$C$243,2,FALSE) -> 3 | D20: BRANTFORD, CITY OF | E20: 6607.44 | F20: N | G20: 259.6266875 | H20: 91.3259235 | I20: 3.055202923 | J20: 8.386043611 | K20: 11.4645203 | L20: 446.3798341
B21: 36 | C21: =VLOOKUP(B21,'2012 BB Tonnes (2)'!$B$5:$C$243,2,FALSE) -> 3 | D21: GUELPH, CITY OF | E21: 8415.73 | F21: Y | G21: 130.5560385 | H21: 262.783023 | I21: 8.725755223 | J21: 8.632677141 | K21: 40.87548436 | L21: 756.1030235
B22: 293 | C22: =VLOOKUP(B22,'2012 BB Tonnes (2)'!$B$5:$C$243,2,FALSE) -> 3 | D22: PETERBOROUGH, CITY OF | E22: 8517.7 | F22: N | G22: 136.3053571 | H22: 75.98408725 | I22: 6.35676415 | J22: 4.630356786 | K22: 7.127042511 | L22: 479.5524785
B23: 103 | C23: =VLOOKUP(B23,'2012 BB Tonnes (2)'!$B$5:$C$243,2,FALSE) -> 3 | D23: SARNIA, CITY OF | E23: 3873.07 | F23: Y | G23: 190.3143191 | H23: 107.0369578 | I23: 0 | J23: 1.787398627 | K23: 9.38511052 | L23: 159.9193296
B24: 55 | C24: =VLOOKUP(B24,'2012 BB Tonnes (2)'!$B$5:$C$243,2,FALSE) -> 3 | D24: SAULT STE. MARIE, CITY OF | E24: 6013.93 | F24: N | G24: 141.5334798 | H24: 76.40314403 | I24: 11.624984 | J24: 1.048414265 | K24: 7.163159531 | L24: 2890.160342
B25: 123 | C25: =VLOOKUP(B25,'2012 BB Tonnes (2)'!$B$5:$C$243,2,FALSE) -> 3 | D25: THUNDER BAY, CITY OF | E25: 6212.87 | F25: N | G25: 46.72057841 | H25: 42.446808 | I25: 33.33354955 | J25: 10.84340731 | K25: 5.265056246 | L25: 460.0558851
G26: =SUMPRODUCT(G19:G25,$E$19:$E$25)/SUM($E$19:$E$25) -> 144.1836303 | H26: =SUMPRODUCT(H19:H25,$E$19:$E$25)/SUM($E$19:$E$25) -> 89.7888423 | I26: 10.46898852 | J26: 7.646891615 | K26: 12.84295776
B27: 186 | C27: =VLOOKUP(B27,'2012 BB Tonnes (2)'!$B$5:$C$243,2,FALSE) -> 4 | D27: BLUEWATER RECYCLING ASSOCIATION | E27: 11868.21 | F27: Y | G27: 297.2965342 | H27: 148.7670424 | I27: 1.707839683 | J27: 4.621338011 | K27: 42.01239783 | L27: 557.6080746
B28: 190 | C28: =VLOOKUP(B28,'2012 BB Tonnes (2)'!$B$5:$C$243,2,FALSE) -> 4 | D28: BRUCE AREA SOLID WASTE RECYCLING | E28: 4359.68 | F28: N | G28: 186.9531456 | H28: 112.6714965 | I28: 30.8459864 | J28: 6.127578171 | K28: 24.27656846 | L28: 351.0190041
B29: 429 | C29: =VLOOKUP(B29,'2012 BB Tonnes (2)'!$B$5:$C$243,2,FALSE) -> 4 | D29: CHATHAM-KENT, MUNICIPALITY OF | E29: 4232.23955 | F29: N | G29: 199.0199491 | H29: 0 | I29: 64.47357168 | J29: 3.354843182 | K29: 9.731670316 | L29: 255.1601285
B30: 183 | C30: =VLOOKUP(B30,'2012 BB Tonnes (2)'!$B$5:$C$243,2,FALSE) -> 4 | D30: GREATER SUDBURY, CITY OF | E30: 13310.88 | F30: Y | G30: 219.5010886 | H30: 131.9501701 | I30: 12.78322245 | J30: 3.26773136 | K30: 12.69305185 | L30: 494.4051521
B31: 601 | C31: =VLOOKUP(B31,'2012 BB Tonnes (2)'!$B$5:$C$243,2,FALSE) -> 4 | D31: KAWARTHA LAKES, CITY OF | E31: 5857.16 | F31: N | G31: 270.8705311 | H31: 23.01135533 | I31: 109.3681716 | J31: 16.0638364 | K31: 16.57510124 | L31: 529.6428388
B32: 324 | C32: =VLOOKUP(B32,'2012 BB Tonnes (2)'!$B$5:$C$243,2,FALSE) -> 4 | D32: KINGSTON, CITY OF | E32: 9280.22 | F32: N | G32: 209.5007133 | H32: 151.0992207 | I32: 0 | J32: 4.385583531 | K32: 17.52375806 | L32: 339.1315251
B33: 89 | C33: =VLOOKUP(B33,'2012 BB Tonnes (2)'!$B$5:$C$243,2,FALSE) -> 4 | D33: MUSKOKA, DISTRICT MUNICIPALITY OF | E33: 5843.74 | F33: N | G33: 265.1904311 | H33: 149.1032746 | I33: 133.440882 | J33: 8.040691407 | K33: 18.24156448 | L33: 436.8383349
B34: 34 | C34: =VLOOKUP(B34,'2012 BB Tonnes (2)'!$B$5:$C$243,2,FALSE) -> 4 | D34: NORFOLK, COUNTY OF | E34: 4677.18 | F34: N | G34: 313.4701658 | H34: 153.7399395 | I34: 0 | J34: 12.06479759 | K34: 18.40902852 | L34: 373.8583778
B35: 143 | C35: =VLOOKUP(B35,'2012 BB Tonnes (2)'!$B$5:$C$243,2,FALSE) -> 4 | D35: NORTH BAY, CITY OF | E35: 3895.94 | F35: N | G35: 194.7143385 | H35: 47.26776336 | I35: 13.08235496 | J35: 9.312150598 | K35: 12.09682387 | L35: 156.7943625
B36: 12 | C36: =VLOOKUP(B36,'2012 BB Tonnes (2)'!$B$5:$C$243,2,FALSE) -> 4 | D36: NORTHUMBERLAND, COUNTY OF | E36: 5461.1 | F36: Y | G36: 176.5550878 | H36: 294.6655161 | I36: 8.828452143 | J36: 17.49814872 | K36: 35.31496951 | L36: 360.8747752
B37: 878 | C37: =VLOOKUP(B37,'2012 BB Tonnes (2)'!$B$5:$C$243,2,FALSE) -> 4 | D37: OXFORD, RESTRUCTURED COUNTY OF | E37: 7146.65 | F37: N | G37: 185.103878 | H37: 101.1043258 | I37: 18.64532053 | J37: 6.298239035 | K37: 11.20512968 | L37: 608.249045
B38: 88 | C38: =VLOOKUP(B38,'2012 BB Tonnes (2)'!$B$5:$C$243,2,FALSE) -> 4 | D38: PETERBOROUGH, COUNTY OF | E38: 4707.1 | F38: N | G38: 222.8434323 | H38: 109.0573368 | I38: 40.07351023 | J38: 11.18095643 | K38: 12.09339933 | L38: 233.2797731
B39: 87 | C39: =VLOOKUP(B39,'2012 BB Tonnes (2)'!$B$5:$C$243,2,FALSE) -> 4 | D39: QUINTE WASTE SOLUTIONS | E39: 10751.01 | F39: N | G39: 218.3890648 | H39: 82.21021281 | I39: 3.168882738 | J39: 4.803140356 | K39: 11.33371562 | L39: 960.100455
B40: 21 | C40: =VLOOKUP(B40,'2012 BB Tonnes (2)'!$B$5:$C$243,2,FALSE) -> 4 | D40: WELLINGTON, COUNTY OF | E40: 4999.51 | F40: N | G40: 253.3117946 | H40: 97.07604545 | I40: 58.9704371 | J40: 10.94467458 | K40: 16.7877112 | L40: 510.3370615
G41: =SUMPRODUCT(G27:G40,$E$27:$E$40)/SUM($E$27:$E$40) -> 232.0042002 | H41: =SUMPRODUCT(H27:H40,$E$27:$E$40)/SUM($E$27:$E$40) -> 119.7109757 | I41: 28.71759299 | J41: 7.40006946 | K41: 19.19036747
B42: 524 | C42: =VLOOKUP(B42,'2012 BB Tonnes (2)'!$B$5:$C$243,2,FALSE) -> 5 | D42: ARNPRIOR, TOWN OF | E42: 642.00449 | F42: N | G42: 229.6681601 | H42: 7.591348777 | I42: 0 | J42: 1.883460348 | K42: 7.211958907 | L42: 1121.496272
B43: 427 | C43: =VLOOKUP(B43,'2012 BB Tonnes (2)'!$B$5:$C$243,2,FALSE) -> 5 | D43: AYLMER, TOWN OF | E43: 382.737048 | F43: Y | G43: 308.9194282 | H43: 107.4700508 | I43: 0 | J43: 16.44928296 | K43: 13.5410722 | L43: 658.2454892
B44: 67 | C44: =VLOOKUP(B44,'2012 BB Tonnes (2)'!$B$5:$C$243,2,FALSE) -> 5 | D44: BROCKVILLE, CITY OF | E44: 1376.472448 | F44: Y | G44: 145.0665724 | H44: 0 | I44: 0 | J44: 7.024564868 | K44: 4.703225269 | L44: 198.6850802
B45: 732 | C45: =VLOOKUP(B45,'2012 BB Tonnes (2)'!$B$5:$C$243,2,FALSE) -> 5 | D45: CASSELMAN, VILLAGE OF | E45: 235.174624 | F45: Y | G45: 206.2034975 | H45: 71.11273196 | I45: 0 | J45: 11.42767852 | K45: 8.890882717 | L45: 297.6347907
B46: 214 | C46: =VLOOKUP(B46,'2012 BB Tonnes (2)'!$B$5:$C$243,2,FALSE) -> 5 | D46: CORNWALL, CITY OF | E46: 2598.56 | F46: Y | G46: 293.5444631 | H46: 195.7799743 | I46: 15.69404978 | J46: 5.485919124 | K46: 16.3553545 | L46: 702.1275386
B47: 757 | C47: =VLOOKUP(B47,'2012 BB Tonnes (2)'!$B$5:$C$243,2,FALSE) -> 5 | D47: DRUMMOND-NORTH ELMSLEY, TOWNSHIP OF | E47: 526.71 | F47: Y | G47: 338.0020315 | H47: 86.49514913 | I47: 0.8543600843 | J47: 5.035028763 | K47: 13.07058913 | L47: 1214.951301
B48: 272 | C48: =VLOOKUP(B48,'2012 BB Tonnes (2)'!$B$5:$C$243,2,FALSE) -> 5 | D48: GANANOQUE, TOWN OF | E48: 416.71232 | F48: Y | G48: 194.6879084 | H48: 0 | I48: 0 | J48: 0.878303766 | K48: 5.88456324 | L48: 586.4405094
B49: 157 | C49: =VLOOKUP(B49,'2012 BB Tonnes (2)'!$B$5:$C$243,2,FALSE) -> 5 | D49: HANOVER, TOWN OF | E49: 524.86075 | F49: N | G49: 275.9501449 | H49: 0 | I49: 0 | J49: 1.544809742 | K49: 8.453232596 | L49: 276.5800343
B50: 736 | C50: =VLOOKUP(B50,'2012 BB Tonnes (2)'!$B$5:$C$243,2,FALSE) -> 5 | D50: LAURENTIAN HILLS, TOWN OF | E50: 140.71894 | F50: N | G50: 473.5047748 | H50: 0 | I50: 0 | J50: 10.88311211 | K50: 14.74932941 | L50: 342.276905
B51: 613 | C51: =VLOOKUP(B51,'2012 BB Tonnes (2)'!$B$5:$C$243,2,FALSE) -> 5 | D51: MATTAWA, TOWN OF | E51: 158.16816 | F51: N | G51: 326.1648236 | H51: 88.19853503 | I51: 0 | J51: 0.9681468129 | K51: 12.47931316 | L51: 4818.446778
B52: 75 | C52: =VLOOKUP(B52,'2012 BB Tonnes (2)'!$B$5:$C$243,2,FALSE) -> 5 | D52: ORANGEVILLE, TOWN OF | E52: 3605.5768 | F52: N | G52: 179.993484 | H52: 0 | I52: 0 | J52: 0.154638226 | K52: 5.853304803 | L52: 326.7628608
B53: 56 | C53: =VLOOKUP(B53,'2012 BB Tonnes (2)'!$B$5:$C$243,2,FALSE) -> 5 | D53: ORILLIA, CITY OF | E53: 2948.44 | F53: N | G53: 144.0032051 | H53: 0 | I53: 1.915534995 | J53: 2.777156734 | K53: 4.979209345 | L53: 2964.877119
B54: 41 | C54: =VLOOKUP(B54,'2012 BB Tonnes (2)'!$B$5:$C$243,2,FALSE) -> 5 | D54: OWEN SOUND, CITY OF | E54: 2068.16 | F54: Y | G54: 123.727816 | H54: 107.3969084 | I54: 29.34022513 | J54: 10.07532299 | K54: 12.4429783 | L54: 1392.761411
B55: 223 | C55: =VLOOKUP(B55,'2012 BB Tonnes (2)'!$B$5:$C$243,2,FALSE) -> 5 | D55: PARRY SOUND, TOWN OF | E55: 358.02 | F55: N | G55: 298.2446511 | H55: 59.74277973 | I55: 243.7680297 | J55: 4.631221719 | K55: 22.09225742 | L55: 399.5773006
B56: 885 | C56: =VLOOKUP(B56,'2012 BB Tonnes (2)'!$B$5:$C$243,2,FALSE) -> 5 | D56: PERTH, TOWN OF | E56: 543.49 | F56: N | G56: 205.4287107 | H56: 175.3626746 | I56: 0 | J56: 1.968389483 | K56: 11.52216232 | L56: 237.3267303
B57: 696 | C57: =VLOOKUP(B57,'2012 BB Tonnes (2)'!$B$5:$C$243,2,FALSE) -> 5 | D57: PETROLIA, TOWN OF | E57: 3130.56 | F57: Y | G57: 37.2929955 | H57: 0 | I57: 0 | J57: 0.07586502095 | K57: 1.122581902 | L57: 430.1312717
B58: 224 | C58: =VLOOKUP(B58,'2012 BB Tonnes (2)'!$B$5:$C$243,2,FALSE) -> 5 | D58: PRESCOTT,TOWN OF | E58: 257.91626 | F58: N | G58: 306.7041993 | H58: 0 | I58: 0 | J58: 9.353811194 | K58: 10.04624524 | L58: 377.7818382
B59: 565 | C59: =VLOOKUP(B59,'2012 BB Tonnes (2)'!$B$5:$C$243,2,FALSE) -> 5 | D59: RENFREW, TOWN OF | E59: 457.60892 | F59: N | G59: 370.1101587 | H59: 0 | I59: 53.66582452 | J59: 1.879333995 | K59: 15.64117238 | L59: 526.8597608
B60: 182 | C60: =VLOOKUP(B60,'2012 BB Tonnes (2)'!$B$5:$C$243,2,FALSE) -> 5 | D60: SHELBURNE, TOWN OF | E60: 487.61 | F60: Y | G60: 191.5074752 | H60: 0 | I60: 0 | J60: 3.149012531 | K60: 5.902668116 | L60: 280.5178027
B61: 909 | C61: =VLOOKUP(B61,'2012 BB Tonnes (2)'!$B$5:$C$243,2,FALSE) -> 5 | D61: SMITHS FALLS, TOWN OF | E61: 576.83 | F61: N | G61: 280.4373039 | H61: 136.8021948 | I61: 0 | J61: 14.48926027 | K61: 13.34526637 | L61: 235.7296078
B62: 233 | C62: =VLOOKUP(B62,'2012 BB Tonnes (2)'!$B$5:$C$243,2,FALSE) -> 5 | D62: ST. THOMAS, CITY OF | E62: 2142.03 | F62: N | G62: 196.582088 | H62: 0 | I62: 0 | J62: 1.351162215 | K62: 5.977568008 | L62: 238.6581726
B63: 8 | C63: =VLOOKUP(B63,'2012 BB Tonnes (2)'!$B$5:$C$243,2,FALSE) -> 5 | D63: STRATFORD, CITY OF | E63: 2265.1 | F63: Y | G63: 216.1705267 | H63: 0 | I63: 19.98493223 | J63: 1.081625535 | K63: 8.417570968 | L63: 443.4571586
B64: 923 | C64: =VLOOKUP(B64,'2012 BB Tonnes (2)'!$B$5:$C$243,2,FALSE) -> 5 | D64: SUNDRIDGE, VILLAGE OF | E64: 67.10895 | F64: N | G64: 345.0489093 | H64: 0 | I64: 0 | J64: 9.73461811 | K64: 10.83819669 | L64: 479.6824527
G65: =SUMPRODUCT(G42:G64,$E$42:$E$64)/SUM($E$42:$E$64) -> 189.1504087 | H65: =SUMPRODUCT(H42:H64,$E$42:$E$64)/SUM($E$42:$E$64) -> 40.47410041 | I65: 10.21435318 | J65: 3.525293771 | K65: 8.136794071
B66: 710 | C66: =VLOOKUP(B66,'2012 BB Tonnes (2)'!$B$5:$C$243,2,FALSE) -> 6 | D66: ATIKOKAN, TOWNSHIP OF | E66: 59.506728 | F66: Y | G66: 588.1687866 | H66: 445.1093328 | I66: 203.3383519 | J66: 0 | K66: 41.16526118 | L66: 374.4300028
B67: 618 | C67: =VLOOKUP(B67,'2012 BB Tonnes (2)'!$B$5:$C$243,2,FALSE) -> 6 | D67: BALDWIN, TOWNSHIP OF | E67: 19.2888 | F67: N | G67: 705.2771557 | H67: 0 | I67: 0 | J67: 28.2547385 | K67: 22.57112936 | L67: 305.7860906
B68: 986 | C68: =VLOOKUP(B68,'2012 BB Tonnes (2)'!$B$5:$C$243,2,FALSE) -> 6 | D68: BATCHEWANA FNS OJIBWAYS | E68: 8.713392 | F68: Y | G68: 2735.925343 | H68: 0 | I68: 0 | J68: 65.11815376 | K68: 89.11684451 | L68: 290.028439
B69: 620 | C69: =VLOOKUP(B69,'2012 BB Tonnes (2)'!$B$5:$C$243,2,FALSE) -> 6 | D69: BLIND RIVER, TOWN OF | E69: 342.912 | F69: N | G69: 247.7282801 | H69: 0 | I69: 0 | J69: 0 | K69: 7.431848404 | L69: 261.8942905
B70: 970 | C70: =VLOOKUP(B70,'2012 BB Tonnes (2)'!$B$5:$C$243,2,FALSE) -> 6 | D70: CALLANDER, MUNICIPALITY OF | E70: 201.44284 | F70: Y | G70: 226.4852402 | H70: 0 | I70: 0 | J70: 0 | K70: 6.794532881 | L70: 291.1998434
B71: 622 | C71: =VLOOKUP(B71,'2012 BB Tonnes (2)'!$B$5:$C$243,2,FALSE) -> 6 | D71: CENTRAL MANITOULIN, TOWNSHIP OF | E71: 117.82242 | F71: N | G71: 496.5404717 | H71: 0 | I71: 70.58351034 | J71: 0.8487349012 | K71: 18.46779246 | L71: 392.7303702
B72: 957 | C72: =VLOOKUP(B72,'2012 BB Tonnes (2)'!$B$5:$C$243,2,FALSE) -> 6 | D72: CHISHOLM, TOWNSHIP OF | E72: 84.029448 | F72: Y | G72: 372.8527409 | H72: 0 | I72: 0 | J72: 14.79897857 | K72: 11.92558114 | L72: 591.9130943
B73: 758 | C73: =VLOOKUP(B73,'2012 BB Tonnes (2)'!$B$5:$C$243,2,FALSE) -> 6 | D73: DRYDEN, CITY OF | E73: 681.1142 | F73: Y | G73: 220.4167231 | H73: 18.69682059 | I73: 162.2705561 | J73: 52.93278278 | K73: 25.36557012 | L73: 681.9845989
B74: 959 | C74: =VLOOKUP(B74,'2012 BB Tonnes (2)'!$B$5:$C$243,2,FALSE) -> 6 | D74: EAST FERRIS, TOWNSHIP OF | E74: 347.196496 | F74: Y | G74: 176.3241873 | H74: 74.07543076 | I74: 0 | J74: 3.793039432 | K74: 7.701633026 | L74: 219.0730464
B75: 426 | C75: =VLOOKUP(B75,'2012 BB Tonnes (2)'!$B$5:$C$243,2,FALSE) -> 6 | D75: ELLIOT LAKE, CITY OF | E75: 515.78787 | F75: N | G75: 212.6922837 | H75: 0 | I75: 0 | J75: 0 | K75: 6.380762696 | L75: 268.2788532
B76: 623 | C76: =VLOOKUP(B76,'2012 BB Tonnes (2)'!$B$5:$C$243,2,FALSE) -> 6 | D76: ESPANOLA, TOWN OF | E76: 213.025912 | F76: Y | G76: 341.2040785 | H76: 0 | I76: 0 | J76: 6.853626333 | K76: 10.57880696 | L76: 216.4305545
B77: 774 | C77: =VLOOKUP(B77,'2012 BB Tonnes (2)'!$B$5:$C$243,2,FALSE) -> 6 | D77: FORT FRANCES, TOWN OF | E77: 528.14 | F77: Y | G77: 135.7708183 | H77: 28.81171659 | I77: 219.0844662 | J77: 0 | K77: 19.97502556 | L77: 358.6365118
B78: 794 | C78: =VLOOKUP(B78,'2012 BB Tonnes (2)'!$B$5:$C$243,2,FALSE) -> 6 | D78: HEAD, CLARA & MARIA, TOWNSHIPS OF | E78: 37.12201 | F78: N | G78: 656.7825934 | H78: 0 | I78: 0 | J78: 23.11162569 | K78: 20.8590537 | L78: 293.0098971
B79: 811 | C79: =VLOOKUP(B79,'2012 BB Tonnes (2)'!$B$5:$C$243,2,FALSE) -> 6 | D79: KENORA, CITY OF | E79: 967.31 | F79: Y | G79: 308.9079716 | H79: 19.19494268 | I79: 217.122484 | J79: 4.047719966 | K79: 65.6102387 | L79: 455.0826497
B80: 414 | C80: =VLOOKUP(B80,'2012 BB Tonnes (2)'!$B$5:$C$243,2,FALSE) -> 6 | D80: KIRKLAND LAKE, TOWN OF | E80: 676.64 | F80: Y | G80: 187.1512178 | H80: 0 | I80: 0 | J80: 17.7272996 | K80: 6.500901513 | L80: 403.6420267
B81: 840 | C81: =VLOOKUP(B81,'2012 BB Tonnes (2)'!$B$5:$C$243,2,FALSE) -> 6 | D81: MARATHON, TOWN OF | E81: 125.42185 | F81: N | G81: 531.7255327 | H81: 0 | I81: 0 | J81: 50.61414738 | K81: 18.48250524 | L81: 405.1602622
B82: 718 | C82: =VLOOKUP(B82,'2012 BB Tonnes (2)'!$B$5:$C$243,2,FALSE) -> 6 | D82: MISSISSAUGAS OF THE NEW CREDIT FN | E82: 13.65272 | F82: Y | G82: 887.892669 | H82: 0 | I82: 0 | J82: 1.004927956 | K82: 44.44462349 | L82: 473.2213026
B83: 626 | C83: =VLOOKUP(B83,'2012 BB Tonnes (2)'!$B$5:$C$243,2,FALSE) -> 6 | D83: NAIRN & HYMAN, TOWNSHIP OF | E83: 17.93144 | F83: N | G83: 731.2575008 | H83: 0 | I83: 94.57745725 | J83: 0 | K83: 24.77492047 | L83: 211.1946547
B84: 988 | C84: =VLOOKUP(B84,'2012 BB Tonnes (2)'!$B$5:$C$243,2,FALSE) -> 6 | D84: NIPISSING FIRST NATION | E84: 62.01885 | F84: N | G84: 431.025406 | H84: 0 | I84: 0 | J84: 92.80694499 | K84: 38.91945755 | L84: 201.4507754
B85: 627 | C85: =VLOOKUP(B85,'2012 BB Tonnes (2)'!$B$5:$C$243,2,FALSE) -> 6 | D85: NORTHEASTERN MANITOULIN & ISLANDS, TOWN OF | E85: 274.82968 | F85: N | G85: 118.1147538 | H85: 0 | I85: 187.2495358 | J85: 0 | K85: 12.26370456 | L85: 382.6604125
B86: 889 | C86: =VLOOKUP(B86,'2012 BB Tonnes (2)'!$B$5:$C$243,2,FALSE) -> 6 | D86: PAPINEAU-CAMERON, TOWNSHIP OF | E86: 55.07131 | F86: N | G86: 617.2542473 | H86: 82.69296663 | I86: 0 | J86: 33.39597333 | K86: 22.66824595 | L86: 742.2761635
B87: 891 | C87: =VLOOKUP(B87,'2012 BB Tonnes (2)'!$B$5:$C$243,2,FALSE) -> 6 | D87: POWASSAN, MUNICIPALITY OF | E87: 328.54363 | F87: N | G87: 268.4501294 | H87: 0 | I87: 0 | J87: 1.47621185 | K87: 8.127322389 | L87: 950.0254994
B88: 562 | C88: =VLOOKUP(B88,'2012 BB Tonnes (2)'!$B$5:$C$243,2,FALSE) -> 6 | D88: PRINCE, TOWNSHIP OF | E88: 77.881376 | F88: Y | G88: 390.217425 | H88: 50.42104033 | I88: 75.85420679 | J88: 0 | K88: 30.48225548 | L88: 166.81655
B89: 969 | C89: =VLOOKUP(B89,'2012 BB Tonnes (2)'!$B$5:$C$243,2,FALSE) -> 6 | D89: RAINY RIVER FIRST NATIONS | E89: 12.65268 | F89: Y | G89: 768.4269262 | H89: 0 | I89: 838.9526962 | J89: 224.7547555 | K89: 91.60667938 | L89: 380.1952643
B90: 603 | C90: =VLOOKUP(B90,'2012 BB Tonnes (2)'!$B$5:$C$243,2,FALSE) -> 6 | D90: SABLES-SPANISH RIVERS, TOWNSHIP OF | E90: 134.935832 | F90: Y | G90: 579.181592 | H90: 0 | I90: 0 | J90: 22.12392332 | K90: 18.48167357 | L90: 471.7078331
B91: 697 | C91: =VLOOKUP(B91,'2012 BB Tonnes (2)'!$B$5:$C$243,2,FALSE) -> 6 | D91: SAULT NORTH WASTE MANAGEMENT COUNCIL | E91: 39.079824 | F91: Y | G91: 1230.051599 | H91: 27.75856923 | I91: 27.75856923 | J91: 216.9078346 | K91: 49.41245385 | L91: 451.5729782
B92: 906 | C92: =VLOOKUP(B92,'2012 BB Tonnes (2)'!$B$5:$C$243,2,FALSE) -> 6 | D92: SIOUX LOOKOUT, TOWN OF | E92: 107.186896 | F92: Y | G92: 1022.034914 | H92: 0 | I92: 54.24870219 | J92: 28.09345277 | K92: 58.56452826 | L92: 696.5972372
B93: 904 | C93: =VLOOKUP(B93,'2012 BB Tonnes (2)'!$B$5:$C$243,2,FALSE) -> 6 | D93: SPANISH, TOWN OF | E93: 26.279312 | F93: Y | G93: 470.8646863 | H93: 0 | I93: 0 | J93: 38.24301032 | K93: 16.0380911 | L93: 216.2416197
B94: 917 | C94: =VLOOKUP(B94,'2012 BB Tonnes (2)'!$B$5:$C$243,2,FALSE) -> 6 | D94: ST. CHARLES, MUNICIPALITY OF | E94: 54.836976 | F94: Y | G94: 516.9759908 | H94: 0 | I94: 13.4188654 | J94: 5.653119895 | K94: 21.60768311 | L94: 318.5526133
B95: 430 | C95: =VLOOKUP(B95,'2012 BB Tonnes (2)'!$B$5:$C$243,2,FALSE) -> 6 | D95: TIMMINS, CITY OF | E95: 3077.401352 | F95: Y | G95: 212.4190592 | H95: 93.43696746 | I95: 113.9061143 | J95: 6.348122252 | K95: 25.94413301 | L95: 285.9481872
B96: 888 | C96: =VLOOKUP(B96,'2012 BB Tonnes (2)'!$B$5:$C$243,2,FALSE) -> 6 | D96: TRI-NEIGHBOURS | E96: 107.4279 | F96: N | G96: 276.5345874 | H96: 0 | I96: 0 | J96: 0.5129021418 | K96: 8.321674351 | L96: 169.3933251
B97: 394 | C97: =VLOOKUP(B97,'2012 BB Tonnes (2)'!$B$5:$C$243,2,FALSE) -> 6 | D97: WEST NIPISSING, MUNICIPALITY OF | E97: 626.81 | F97: N | G97: 139.5429716 | H97: 180.8835373 | I97: 75.66157209 | J97: 36.22636844 | K97: 21.43295416 | L97: 921.2183462
G98: =SUMPRODUCT(G66:G97,$E$66:$E$97)/SUM($E$66:$E$97) -> 258.3891127 | H98: =SUMPRODUCT(H66:H97,$E$66:$E$97)/SUM($E$66:$E$97) -> 51.21827661 | I98: 93.73845923 | J98: 13.4204381 | K98: 23.99139311
B99: 600 | C99: =VLOOKUP(B99,'2012 BB Tonnes (2)'!$B$5:$C$243,2,FALSE) -> 7 | D99: ALFRED & PLANTAGENET, TOWNSHIP OF | E99: 627.251176 | F99: Y | G99: 348.0648875 | H99: 111.8142822 | I99: 0 | J99: 14.44371943 | K99: 16.19265198 | L99: 398.430168
B100: 194 | C100: =VLOOKUP(B100,'2012 BB Tonnes (2)'!$B$5:$C$243,2,FALSE) -> 7 | D100: AMARANTH, TOWNSHIP OF | E100: 271.12 | F100: Y | G100: 163.0847964 | H100: 0 | I100: 0 | J100: 0 | K100: 4.892556801 | L100: 700.7532728
B101: 59 | C101: =VLOOKUP(B101,'2012 BB Tonnes (2)'!$B$5:$C$243,2,FALSE) -> 7 | D101: ASHFIELD-COLBORNE-WAWANOSH, TOWNSHIP OF | E101: 251.44484 | F101: Y | G101: 456.5028258 | H101: 0 | I101: 71.04782902 | J101: 22.31105637 | K101: 19.81392818 | L101: 956.2608975
B102: 282 | C102: =VLOOKUP(B102,'2012 BB Tonnes (2)'!$B$5:$C$243,2,FALSE) -> 7 | D102: ATHENS, TOWNSHIP OF | E102: 189.90538 | F102: N | G102: 83.22065441 | H102: 0 | I102: 228.7890949 | J102: 2.237956608 | K102: 14.0479959 | L102: 1593.02962
B103: 711 | C103: =VLOOKUP(B103,'2012 BB Tonnes (2)'!$B$5:$C$243,2,FALSE) -> 7 | D103: BANCROFT, TOWN OF | E103: 386.73 | F103: N | G103: 251.9207457 | H103: 0 | I103: 205.226437 | J103: 4.367956973 | K103: 18.03733871 | L103: 778.2618859
B104: 358 | C104: =VLOOKUP(B104,'2012 BB Tonnes (2)'!$B$5:$C$243,2,FALSE) -> 7 | D104: BAYHAM, MUNICIPALITY OF | E104: 412.99 | F104: N | G104: 386.6161408 | H104: 58.35431851 | I104: 0 | J104: 1.653623574 | K104: 13.43180222 | L104: 496.1066772
B105: 712 | C105: =VLOOKUP(B105,'2012 BB Tonnes (2)'!$B$5:$C$243,2,FALSE) -> 7 | D105: BECKWITH, TOWNSHIP OF | E105: 435.44 | F105: N | G105: 453.4253858 | H105: 86.83979423 | I105: 0 | J105: 1.04983465 | K105: 16.29305989 | L105: 471.4933562
B106: 531 | C106: =VLOOKUP(B106,'2012 BB Tonnes (2)'!$B$5:$C$243,2,FALSE) -> 7 | D106: BRANT, COUNTY OF | E106: 1918.72 | F106: Y | G106: 404.4757547 | H106: 0 | I106: 11.6563386 | J106: 7.758146056 | K106: 12.94809561 | L106: 296.7890124
B107: 731 | C107: =VLOOKUP(B107,'2012 BB Tonnes (2)'!$B$5:$C$243,2,FALSE) -> 7 | D107: CARLETON PLACE, TOWN OF | E107: 623.18 | F107: N | G107: 407.783658 | H107: 86.69544915 | I107: 0 | J107: 0.9748387304 | K107: 14.88311563 | L107: 265.8918711
B108: 229 | C108: =VLOOKUP(B108,'2012 BB Tonnes (2)'!$B$5:$C$243,2,FALSE) -> 7 | D108: CENTRAL ELGIN, MUNICIPALITY OF | E108: 523.92 | F108: N | G108: 588.1970721 | H108: 55.43424569 | I108: 0 | J108: 36.19552603 | K108: 22.30069476 | L108: 141.2834683
B109: 152 | C109: =VLOOKUP(B109,'2012 BB Tonnes (2)'!$B$5:$C$243,2,FALSE) -> 7 | D109: CHATSWORTH, TOWNSHIP OF | E109: 339.604888 | F109: Y | G109: 303.5562021 | H109: 0 | I109: 5.978064721 | J109: 22.04623745 | K109: 10.69640081 | L109: 435.8889957
B110: 976 | C110: =VLOOKUP(B110,'2012 BB Tonnes (2)'!$B$5:$C$243,2,FALSE) -> 7 | D110: CHIPPEWAS OF NAWASH FN | E110: 15.52236 | F110: Y | G110: 2582.721957 | H110: 0 | I110: 217.0359404 | J110: 12.18178164 | K110: 152.9374399 | L110: 888.8079554
B111: 981 | C111: =VLOOKUP(B111,'2012 BB Tonnes (2)'!$B$5:$C$243,2,FALSE) -> 7 | D111: CHIPPEWAS OF RAMA FN | E111: 91.13958 | F111: N | G111: 755.5209274 | H111: 0 | I111: 545.2408273 | J111: 25.12563696 | K111: 66.87401895 | L111: 614.8833569
B112: 361 | C112: =VLOOKUP(B112,'2012 BB Tonnes (2)'!$B$5:$C$243,2,FALSE) -> 7 | D112: CLARENCE-ROCKLAND, CITY OF | E112: 1496.97162 | F112: N | G112: 226.2512432 | H112: 0 | I112: 0 | J112: 3.767573095 | K112: 7.307914094 | L112: 304.9553694
B113: 749 | C113: =VLOOKUP(B113,'2012 BB Tonnes (2)'!$B$5:$C$243,2,FALSE) -> 7 | D113: CONMEE, TOWNSHIP OF | E113: 16.58301 | F113: N | G113: 0 | H113: 0 | I113: 294.5472505 | J113: 70.85565286 | K113: 12.37893483 | L113: 715.7950962
B114: 983 | C114: =VLOOKUP(B114,'2012 BB Tonnes (2)'!$B$5:$C$243,2,FALSE) -> 7 | D114: CURVE LAKE FN | E114: 78.20894 | F114: N | G114: 210.9733235 | H114: 0 | I114: 61.37405775 | J114: 0 | K114: 8.170421438 | L114: 1575.164542
B115: 958 | C115: =VLOOKUP(B115,'2012 BB Tonnes (2)'!$B$5:$C$243,2,FALSE) -> 7 | D115: DEEP RIVER, TOWN OF | E115: 601.137088 | F115: Y | G115: 188.5587369 | H115: 0 | I115: 0 | J115: 39.19655012 | K115: 7.974320826 | L115: 382.5092756
B116: 382 | C116: =VLOOKUP(B116,'2012 BB Tonnes (2)'!$B$5:$C$243,2,FALSE) -> 7 | D116: DUTTON-DUNWICH, MUNICIPALITY OF | E116: 275.21 | F116: N | G116: 260.7611642 | H116: 24.6743941 | I116: 0 | J116: 11.22615457 | K116: 9.124377748 | L116: 211.3794189
B117: 280 | C117: =VLOOKUP(B117,'2012 BB Tonnes (2)'!$B$5:$C$243,2,FALSE) -> 7 | D117: EAST GARAFRAXA, TOWNSHIP OF | E117: 229.93 | F117: Y | G117: 282.7183056 | H117: 0 | I117: 0 | J117: 0 | K117: 8.481537859 | L117: 661.7841483
B118: 235 | C118: =VLOOKUP(B118,'2012 BB Tonnes (2)'!$B$5:$C$243,2,FALSE) -> 7 | D118: EAST LUTHER GRAND VALLEY, TOWNSHIP OF | E118: 221.06215 | F118: N | G118: 379.8813592 | H118: 0 | I118: 0 | J118: 0.7658932115 | K118: 12.0831178 | L118: 499.1372164
B119: 434 | C119: =VLOOKUP(B119,'2012 BB Tonnes (2)'!$B$5:$C$243,2,FALSE) -> 7 | D119: EDWARDSBURGH CARDINAL, TOWNSHIP OF | E119: 283.541776 | F119: Y | G119: 569.4597187 | H119: 0 | I119: 0 | J119: 5.113884876 | K119: 17.33949074 | L119: 569.2078711
B120: 212 | C120: =VLOOKUP(B120,'2012 BB Tonnes (2)'!$B$5:$C$243,2,FALSE) -> 7 | D120: GEORGIAN BLUFFS, TOWNSHIP OF | E120: 567.579224 | F120: Y | G120: 369.4638407 | H120: 0 | I120: 0 | J120: 2.012053915 | K120: 11.18451792 | L120: 379.9407542
B121: 389 | C121: =VLOOKUP(B121,'2012 BB Tonnes (2)'!$B$5:$C$243,2,FALSE) -> 7 | D121: GREATER NAPANEE, TOWNSHIP OF | E121: 953.65256 | F121: N | G121: 109.7258628 | H121: 0 | I121: 51.07976641 | J121: 0.1572899883 | K121: 5.853630802 | L121: 463.8910419
B122: 555 | C122: =VLOOKUP(B122,'2012 BB Tonnes (2)'!$B$5:$C$243,2,FALSE) -> 7 | D122: GREY HIGHLANDS, MUNICIPALITY OF | E122: 640.912592 | F122: Y | G122: 383.7996055 | H122: 0 | I122: 54.29144385 | J122: 18.00971013 | K122: 15.60707361 | L122: 272.4851382
B123: 786 | C123: =VLOOKUP(B123,'2012 BB Tonnes (2)'!$B$5:$C$243,2,FALSE) -> 7 | D123: HALDIMAND, COUNTY OF | E123: 2902.13 | F123: N | G123: 472.7001375 | H123: 58.43589708 | I123: 123.8270236 | J123: 4.907598901 | K123: 36.72658013 | L123: 342.8610199
B124: 550 | C124: =VLOOKUP(B124,'2012 BB Tonnes (2)'!$B$5:$C$243,2,FALSE) -> 7 | D124: HASTINGS HIGHLANDS, MUNICIPALITY OF | E124: 260 | F124: N | G124: 312.7067308 | H124: 0 | I124: 570.6003846 | J124: 0 | K124: 37.91123077 | L124: 463.3098013
B125: 249 | C125: =VLOOKUP(B125,'2012 BB Tonnes (2)'!$B$5:$C$243,2,FALSE) -> 7 | D125: HAWKESBURY JOINT RECYCLING | E125: 1277.4424 | F125: Y | G125: 299.2987786 | H125: 68.67977766 | I125: 0 | J125: 5.948338649 | K125: 24.5032731 | L125: 431.1179855
B126: 551 | C126: =VLOOKUP(B126,'2012 BB Tonnes (2)'!$B$5:$C$243,2,FALSE) -> 7 | D126: HORTON, TOWNSHIP OF | E126: 178.88576 | F126: N | G126: 449.7480403 | H126: 0 | I126: 0.8532820052 | J126: 30.02189777 | K126: 15.48345715 | L126: 426.3848566
B127: 128 | C127: =VLOOKUP(B127,'2012 BB Tonnes (2)'!$B$5:$C$243,2,FALSE) -> 7 | D127: HOWICK, TOWNSHIP OF | E127: 158.815048 | F127: Y | G127: 276.9007128 | H127: 0 | I127: 174.9740994 | J127: 2.440763674 | K127: 17.17778028 | L127: 600.8221853
B128: 971 | C128: =VLOOKUP(B128,'2012 BB Tonnes (2)'!$B$5:$C$243,2,FALSE) -> 7 | D128: LOYALIST, TOWNSHIP OF | E128: 1042.97 | F128: N | G128: 277.5206286 | H128: 158.2069858 | I128: 13.50232509 | J128: 0.8500340374 | K128: 13.81106839 | L128: 427.8108186
B129: 503 | C129: =VLOOKUP(B129,'2012 BB Tonnes (2)'!$B$5:$C$243,2,FALSE) -> 7 | D129: MALAHIDE, TOWNSHIP OF | E129: 353.95 | F129: Y | G129: 304.6476338 | H129: 101.0928662 | I129: 0 | J129: 8.06871027 | K129: 12.57564628 | L129: 847.4258599
B130: 556 | C130: =VLOOKUP(B130,'2012 BB Tonnes (2)'!$B$5:$C$243,2,FALSE) -> 7 | D130: MCNAB-BRAESIDE, TOWNSHIP OF | E130: 574.199 | F130: N | G130: 226.1062802 | H130: 0 | I130: 0 | J130: 2.28318057 | K130: 6.932248228 | L130: 968.0231377
B131: 216 | C131: =VLOOKUP(B131,'2012 BB Tonnes (2)'!$B$5:$C$243,2,FALSE) -> 7 | D131: MEAFORD, MUNICIPALITY OF | E131: 821.79218 | F131: N | G131: 355.1197701 | H131: 0 | I131: 0 | J131: 3.697041751 | K131: 10.8384458 | L131: 1135.169691
B132: 287 | C132: =VLOOKUP(B132,'2012 BB Tonnes (2)'!$B$5:$C$243,2,FALSE) -> 7 | D132: MERRICKVILLE-WOLFORD, VILLAGE OF | E132: 203.54 | F132: N | G132: 85.14296944 | H132: 0 | I132: 0 | J132: 0.524565196 | K132: 2.580524713 | L132: 235.321709
B133: 854 | C133: =VLOOKUP(B133,'2012 BB Tonnes (2)'!$B$5:$C$243,2,FALSE) -> 7 | D133: MISSISSIPPI MILLS, TOWN OF | E133: 778.33 | F133: Y | G133: 366.2795087 | H133: 86.07690825 | I133: 4.86374674 | J133: 6.442640011 | K133: 14.03873678 | L133: 369.6552576
B134: 967 | C134: =VLOOKUP(B134,'2012 BB Tonnes (2)'!$B$5:$C$243,2,FALSE) -> 7 | D134: MOHAWKS OF THE BAY OF QUINTE | E134: 282.35767 | F134: N | G134: 203.7230297 | H134: 0 | I134: 0 | J134: 6.400392807 | K134: 21.54253504 | L134: 392.100914
B135: 201 | C135: =VLOOKUP(B135,'2012 BB Tonnes (2)'!$B$5:$C$243,2,FALSE) -> 7 | D135: MONO, TOWN OF | E135: 681.66 | F135: Y | G135: 194.3319543 | H135: 0 | I135: 31.97734941 | J135: 2.492444914 | K135: 7.856453364 | L135: 88.24805935
B136: 855 | C136: =VLOOKUP(B136,'2012 BB Tonnes (2)'!$B$5:$C$243,2,FALSE) -> 7 | D136: MONTAGUE, TOWNSHIP OF | E136: 214.42 | F136: Y | G136: 398.1567951 | H136: 88.19415166 | I136: 0 | J136: 5.216397724 | K136: 14.86759631 | L136: 199.8797393
B137: 285 | C137: =VLOOKUP(B137,'2012 BB Tonnes (2)'!$B$5:$C$243,2,FALSE) -> 7 | D137: MULMUR, TOWNSHIP OF | E137: 289.41237 | F137: N | G137: 177.3008182 | H137: 14.64173767 | I137: 155.5196138 | J137: 2.274021667 | K137: 12.61708337 | L137: 933.3422205
B138: 321 | C138: =VLOOKUP(B138,'2012 BB Tonnes (2)'!$B$5:$C$243,2,FALSE) -> 7 | D138: NORTH DUNDAS, TOWNSHIP OF | E138: 532.99 | F138: N | G138: 447.2695548 | H138: 238.8049682 | I138: 0 | J138: 2.632113173 | K138: 43.55637066 | L138: 477.7015405
B139: 271 | C139: =VLOOKUP(B139,'2012 BB Tonnes (2)'!$B$5:$C$243,2,FALSE) -> 7 | D139: NORTH GLENGARRY, TOWNSHIP OF | E139: 1015.7 | F139: Y | G139: 176.9753667 | H139: 310.6851334 | I139: 0 | J139: 6.696485183 | K139: 40.97913754 | L139: 231.6659576
B140: 236 | C140: =VLOOKUP(B140,'2012 BB Tonnes (2)'!$B$5:$C$243,2,FALSE) -> 7 | D140: NORTH GRENVILLE, MUNICIPALITY OF | E140: 1102.4978 | F140: N | G140: 211.7568126 | H140: 128.82296 | I140: 59.74582444 | J140: 2.003423499 | K140: 13.18911475 | L140: 236.658202
B141: 39 | C141: =VLOOKUP(B141,'2012 BB Tonnes (2)'!$B$5:$C$243,2,FALSE) -> 7 | D141: NORTH HURON, TOWNSHIP OF | E141: 469.10572 | F141: Y | G141: 179.3116912 | H141: 0 | I141: 28.13566204 | J141: 3.398210536 | K141: 6.393334961 | L141: 506.4349408
B142: 290 | C142: =VLOOKUP(B142,'2012 BB Tonnes (2)'!$B$5:$C$243,2,FALSE) -> 7 | D142: NORTH STORMONT, TOWNSHIP OF | E142: 400.285576 | F142: Y | G142: 253.1710011 | H142: 72.68573175 | I142: 0 | J142: 17.48751496 | K142: 25.95599398 | L142: 362.3532747
B143: 239 | C143: =VLOOKUP(B143,'2012 BB Tonnes (2)'!$B$5:$C$243,2,FALSE) -> 7 | D143: OTTAWA VALLEY WASTE RECOVERY CENTRE | E143: 3279.57 | F143: N | G143: 268.9545398 | H143: 262.9476029 | I143: 9.917672134 | J143: 7.074284129 | K143: 32.31623963 | L143: 574.0168437
B144: 437 | C144: =VLOOKUP(B144,'2012 BB Tonnes (2)'!$B$5:$C$243,2,FALSE) -> 7 | D144: PLYMPTON-WYOMING, TOWN OF | E144: 280.1341 | F144: N | G144: 788.3678924 | H144: 0 | I144: 0 | J144: 2.490093138 | K144: 23.9569192 | L144: 850.6098785
B145: 294 | C145: =VLOOKUP(B145,'2012 BB Tonnes (2)'!$B$5:$C$243,2,FALSE) -> 7 | D145: RUSSELL, TOWNSHIP OF | E145: 1067.755752 | F145: Y | G145: 267.3064223 | H145: 0 | I145: 0 | J145: 12.68571017 | K145: 8.877994787 | L145: 385.3165027
B146: 978 | C146: =VLOOKUP(B146,'2012 BB Tonnes (2)'!$B$5:$C$243,2,FALSE) -> 7 | D146: SAGAMOK ANISHNAWBEK FN | E146: 37.05057 | F146: N | G146: 0 | H146: 0 | I146: 1122.249941 | J146: 32.38816569 | K146: 35.28690652 | L146: 306.5499777
B147: 510 | C147: =VLOOKUP(B147,'2012 BB Tonnes (2)'!$B$5:$C$243,2,FALSE) -> 7 | D147: SOUTH DUNDAS, TOWNSHIP OF | E147: 514.446664 | F147: Y | G147: 518.4890654 | H147: 0 | I147: 0 | J147: 10.03730875 | K147: 16.75761668 | L147: 562.7518085
B148: 296 | C148: =VLOOKUP(B148,'2012 BB Tonnes (2)'!$B$5:$C$243,2,FALSE) -> 7 | D148: SOUTH FRONTENAC, TOWNSHIP OF | E148: 903 | F148: N | G148: 567.8480177 | H148: 163.7520819 | I148: 44.29993355 | J148: 4.140642303 | K148: 23.68282392 | L148: 210.3275339
B149: 502 | C149: =VLOOKUP(B149,'2012 BB Tonnes (2)'!$B$5:$C$243,2,FALSE) -> 7 | D149: SOUTH GLENGARRY, TOWNSHIP OF | E149: 672.47365 | F149: N | G149: 345.2819304 | H149: 27.99514895 | I149: 0 | J149: 20.86101069 | K149: 12.24135697 | L149: 497.6839313
B150: 301 | C150: =VLOOKUP(B150,'2012 BB Tonnes (2)'!$B$5:$C$243,2,FALSE) -> 7 | D150: SOUTH STORMONT, TOWNSHIP OF | E150: 622.72056 | F150: Y | G150: 231.0386861 | H150: 28.65275558 | I150: 6.848978938 | J150: 11.40421636 | K150: 23.53986835 | L150: 276.4734313
B151: 612 | C151: =VLOOKUP(B151,'2012 BB Tonnes (2)'!$B$5:$C$243,2,FALSE) -> 7 | D151: SOUTHGATE, TOWNSHIP OF | E151: 591.693232 | F151: Y | G151: 329.9204207 | H151: 14.75391221 | I151: 92.98240545 | J151: 2.814329977 | K151: 62.91679199 | L151: 732.2630068
B152: 558 | C152: =VLOOKUP(B152,'2012 BB Tonnes (2)'!$B$5:$C$243,2,FALSE) -> 7 | D152: SOUTHWEST MIDDLESEX, MUNICIPALITY OF | E152: 362.979736 | F152: Y | G152: 631.2935882 | H152: 0 | I152: 0 | J152: 2.00264623 | K152: 19.03894161 | L152: 699.4021292
B153: 346 | C153: =VLOOKUP(B153,'2012 BB Tonnes (2)'!$B$5:$C$243,2,FALSE) -> 7 | D153: SOUTHWOLD, TOWNSHIP OF | E153: 192.16467 | F153: N | G153: 378.973981 | H153: 0 | I153: 0 | J153: 0 | K153: 11.36920746 | L153: 535.3361229
B154: 275 | C154: =VLOOKUP(B154,'2012 BB Tonnes (2)'!$B$5:$C$243,2,FALSE) -> 7 | D154: ST. CLAIR, TOWNSHIP OF | E154: 704.91 | F154: Y | G154: 255.7170703 | H154: 59.42652253 | I154: 0 | J154: 2.078180193 | K154: 9.558213105 | L154: 415.5181353
B155: 166 | C155: =VLOOKUP(B155,'2012 BB Tonnes (2)'!$B$5:$C$243,2,FALSE) -> 7 | D155: THAMES CENTRE, MUNICIPALITY OF | E155: 1039.06801 | F155: N | G155: 307.0516241 | H155: 31.21229764 | I155: 7.358748346 | J155: 11.9296811 | K155: 11.11234288 | L155: 217.2388987
B156: 162 | C156: =VLOOKUP(B156,'2012 BB Tonnes (2)'!$B$5:$C$243,2,FALSE) -> 7 | D156: THE BLUE MOUNTAINS, TOWN OF | E156: 791.49 | F156: N | G156: 353.3768336 | H156: 0 | I156: 4.395557746 | J156: 12.76433057 | K156: 12.30547448 | L156: 369.3002418
B157: 376 | C157: =VLOOKUP(B157,'2012 BB Tonnes (2)'!$B$5:$C$243,2,FALSE) -> 7 | D157: THE NATION, MUNICIPALITY | E157: 833.42464 | F157: Y | G157: 305.3249422 | H157: 0 | I157: 4.43405417 | J157: 0.7019230917 | K157: 9.327861965 | L157: 317.6279942
B158: 192 | C158: =VLOOKUP(B158,'2012 BB Tonnes (2)'!$B$5:$C$243,2,FALSE) -> 7 | D158: WEST ELGIN, MUNICIPALITY OF | E158: 177.99 | F158: Y | G158: 257.9572448 | H158: 477.047924 | I158: 0 | J158: 1.63587842 | K158: 22.13197371 | L158: 293.1063205
B159: 604 | C159: =VLOOKUP(B159,'2012 BB Tonnes (2)'!$B$5:$C$243,2,FALSE) -> 7 | D159: WEST GREY, MUNICIPALITY OF | E159: 771.796088 | F159: Y | G159: 312.1124527 | H159: 0 | I159: 11.31775625 | J159: 1.116097909 | K159: 9.985072637 | L159: 532.8621743
B160: 980 | C160: =VLOOKUP(B160,'2012 BB Tonnes (2)'!$B$5:$C$243,2,FALSE) -> 7 | D160: WHITEFISH LAKE FN | E160: 50.95856 | F160: Y | G160: 281.0010722 | H160: 0 | I160: 0 | J160: 0 | K160: 8.429987033 | L160: 536.696618
B161: 325 | C161: =VLOOKUP(B161,'2012 BB Tonnes (2)'!$B$5:$C$243,2,FALSE) -> 7 | D161: WHITEWATER REGION, TOWNSHIP OF | E161: 413.5483 | F161: N | G161: 361.769109 | H161: 0 | I161: 0 | J161: 0 | K161: 10.85307327 | L161: 359.1525313
G162: =SUMPRODUCT(G99:G161,$E$99:$E$161)/SUM($E$99:$E$161) -> 328.4492095 | H162: =SUMPRODUCT(H99:H161,$E$99:$E$161)/SUM($E$99:$E$161) -> 67.85959847 | I162: 31.53258117 | J162: 7.105585511 | K162: 19.05405462
B163: 975 | C163: =VLOOKUP(B163,'2012 BB Tonnes (2)'!$B$5:$C$243,2,FALSE) -> 8 | D163: ALGONQUINS OF PIKWAKANAGAN | E163: 28.46884 | F163: N | G163: 488.6584771 | H163: 0 | I163: 336.0604085 | J163: 0 | K163: 69.44188804 | L163: 855.611703
B164: 188 | C164: =VLOOKUP(B164,'2012 BB Tonnes (2)'!$B$5:$C$243,2,FALSE) -> 8 | D164: ARMOUR, TOWNSHIP OF | E164: 218.02 | F164: Y | G164: 183.7041556 | H164: 636.7354371 | I164: 0 | J164: 7.960645812 | K164: 43.92211724 | L164: 186.001427
B165: 709 | C165: =VLOOKUP(B165,'2012 BB Tonnes (2)'!$B$5:$C$243,2,FALSE) -> 8 | D165: ASSIGINACK, TOWNSHIP OF | E165: 86.26 | F165: Y | G165: 0 | H165: 106.34083 | I165: 315.2171342 | J165: 13.91143056 | K165: 13.34233712 | L165: 153.6751062
B166: 714 | C166: =VLOOKUP(B166,'2012 BB Tonnes (2)'!$B$5:$C$243,2,FALSE) -> 8 | D166: BILLINGS, TOWNSHIP OF | E166: 48.63278 | F166: N | G166: 0 | H166: 0 | I166: 339.0614314 | J166: 0 | K166: 11.95757265 | L166: 581.2103386
B167: 955 | C167: =VLOOKUP(B167,'2012 BB Tonnes (2)'!$B$5:$C$243,2,FALSE) -> 8 | D167: BONFIELD, TOWNSHIP OF | E167: 47.82015 | F167: N | G167: 0 | H167: 0 | I167: 502.3305029 | J167: 2.091168681 | K167: 25.22116723 | L167: 311.7313148
B168: 611 | C168: =VLOOKUP(B168,'2012 BB Tonnes (2)'!$B$5:$C$243,2,FALSE) -> 8 | D168: CALVIN, MUNICIPALITY OF | E168: 19.43556 | F168: Y | G168: 0 | H168: 0 | I168: 891.4592633 | J168: 22.92190192 | K168: 45.7192898 | L168: 282.9832508
B169: 372 | C169: =VLOOKUP(B169,'2012 BB Tonnes (2)'!$B$5:$C$243,2,FALSE) -> 8 | D169: CARLING, TOWNSHIP OF | E169: 116.60794 | F169: N | G169: 0 | H169: 186.8569156 | I169: 884.7939514 | J169: 0 | K169: 49.84540504 | L169: 322.3568931
B170: 537 | C170: =VLOOKUP(B170,'2012 BB Tonnes (2)'!$B$5:$C$243,2,FALSE) -> 8 | D170: CASEY, TOWNSHIP OF | E170: 51.758592 | F170: Y | G170: 0 | H170: 22.42410304 | I170: 136.4990763 | J170: 33.32779995 | K170: 6.434100835 | L170: 756.0114332
B171: 979 | C171: =VLOOKUP(B171,'2012 BB Tonnes (2)'!$B$5:$C$243,2,FALSE) -> 8 | D171: CHIPPEWAS OF GEORGINA ISLAND | E171: 23.1287 | F171: N | G171: 1812.992516 | H171: 0 | I171: 2300.647248 | J171: 473.5787139 | K171: 231.2283008 | L171: 628.4789397
B172: 338 | C172: =VLOOKUP(B172,'2012 BB Tonnes (2)'!$B$5:$C$243,2,FALSE) -> 8 | D172: COCHRANE TEMISKAMING WMB | E172: 1742.34 | F172: N | G172: 0 | H172: 206.2808579 | I172: 182.3066738 | J172: 0.607803299 | K172: 40.93593673 | L172: 427.5903052
B173: 754 | C173: =VLOOKUP(B173,'2012 BB Tonnes (2)'!$B$5:$C$243,2,FALSE) -> 8 | D173: DESERONTO, TOWN OF | E173: 121.17117 | F173: N | G173: 228.8358691 | H173: 0 | I173: 0 | J173: 2.816429024 | K173: 7.005874417 | L173: 818.489571
B174: 764 | C174: =VLOOKUP(B174,'2012 BB Tonnes (2)'!$B$5:$C$243,2,FALSE) -> 8 | D174: EMO, TOWNSHIP OF | E174: 45.0072 | F174: N | G174: 0 | H174: 0 | I174: 260.4649923 | J174: 0 | K174: 7.813860893 | L174: 394.2819371
B175: 775 | C175: =VLOOKUP(B175,'2012 BB Tonnes (2)'!$B$5:$C$243,2,FALSE) -> 8 | D175: FRENCH RIVER, MUNICIPALITY OF | E175: 180.155032 | F175: Y | G175: 0 | H175: 122.1636707 | I175: 269.5127605 | J175: 0 | K175: 13.48383097 | L175: 230.4036078
B176: 545 | C176: =VLOOKUP(B176,'2012 BB Tonnes (2)'!$B$5:$C$243,2,FALSE) -> 8 | D176: GILLIES, TOWNSHIP OF | E176: 16.05614 | F176: N | G176: 0 | H176: 0 | I176: 633.1029749 | J176: 73.82658597 | K176: 35.34660261 | L176: 395.248635
B177: 790 | C177: =VLOOKUP(B177,'2012 BB Tonnes (2)'!$B$5:$C$243,2,FALSE) -> 8 | D177: HARLEY, TOWNSHIP OF | E177: 51.758592 | F177: Y | G177: 0 | H177: 22.42410304 | I177: 136.4990763 | J177: 5.430982357 | K177: 5.039163353 | L177: 38.49144243
B178: 796 | C178: =VLOOKUP(B178,'2012 BB Tonnes (2)'!$B$5:$C$243,2,FALSE) -> 8 | D178: HILLIARD, TOWNSHIP OF | E178: 7.92984 | F178: N | G178: 0 | H178: 0 | I178: 1510.287723 | J178: 7.201910757 | K178: 75.53998567 | L178: 814.8149047
B179: 797 | C179: =VLOOKUP(B179,'2012 BB Tonnes (2)'!$B$5:$C$243,2,FALSE) -> 8 | D179: HILTON BEACH, VILLAGE OF | E179: 18.3958 | F179: N | G179: 0 | H179: 0 | I179: 738.4837843 | J179: 2.71801172 | K179: 37.0600898 | L179: 278.0536637
B180: 607 | C180: =VLOOKUP(B180,'2012 BB Tonnes (2)'!$B$5:$C$243,2,FALSE) -> 8 | D180: HUDSON, TOWNSHIP OF | E180: 26.070608 | F180: Y | G180: 0 | H180: 27.94027665 | I180: 247.4295958 | J180: 12.53135332 | K180: 8.887786583 | L180: 326.1042557
B181: 801 | C181: =VLOOKUP(B181,'2012 BB Tonnes (2)'!$B$5:$C$243,2,FALSE) -> 8 | D181: HURON SHORES, MUNICIPALITY OF | E181: 137.09336 | F181: N | G181: 0 | H181: 0 | I181: 254.386281 | J181: 3.689529529 | K181: 7.81606053 | L181: 546.9749276
B182: 807 | C182: =VLOOKUP(B182,'2012 BB Tonnes (2)'!$B$5:$C$243,2,FALSE) -> 8 | D182: JOHNSON, TOWNSHIP OF | E182: 56.22328 | F182: N | G182: 0 | H182: 0 | I182: 134.5556503 | J182: 0 | K182: 6.727818085 | L182: 319.9050164
B183: 810 | C183: =VLOOKUP(B183,'2012 BB Tonnes (2)'!$B$5:$C$243,2,FALSE) -> 8 | D183: KEARNEY, TOWN OF | E183: 113.89322 | F183: N | G183: 16.90460591 | H183: 0 | I183: 834.8266912 | J183: 0 | K183: 37.07665829 | L183: 1923.741057
B184: 605 | C184: =VLOOKUP(B184,'2012 BB Tonnes (2)'!$B$5:$C$243,2,FALSE) -> 8 | D184: KERNS, TOWNSHIP OF | E184: 17.374608 | F184: Y | G184: 0 | H184: 27.94940755 | I184: 259.0291533 | J184: 8.702354609 | K184: 9.274453847 | L184: 438.3868893
B185: 812 | C185: =VLOOKUP(B185,'2012 BB Tonnes (2)'!$B$5:$C$243,2,FALSE) -> 8 | D185: KILLARNEY, MUNICIPALITY OF | E185: 41.366872 | F185: Y | G185: 0 | H185: 0 | I185: 1523.250296 | J185: 1.208696659 | K185: 50.70555008 | L185: 1355.6579
B186: 833 | C186: =VLOOKUP(B186,'2012 BB Tonnes (2)'!$B$5:$C$243,2,FALSE) -> 8 | D186: MACDONALD; MEREDITH & ABERDEEN ADDITIONAL, TOWNSHIP OF | E186: 71.06494 | F186: N | G186: 0 | H186: 0 | I186: 253.9737598 | J186: 7.880116412 | K186: 10.63126205 | L186: 441.2964896
B187: 834 | C187: =VLOOKUP(B187,'2012 BB Tonnes (2)'!$B$5:$C$243,2,FALSE) -> 8 | D187: MACHAR, TOWNSHIP OF | E187: 103.54 | F187: N | G187: 0 | H187: 80.00618119 | I187: 241.1851458 | J187: 9.10952289 | K187: 12.56016998 | L187: 556.6616122
B188: 837 | C188: =VLOOKUP(B188,'2012 BB Tonnes (2)'!$B$5:$C$243,2,FALSE) -> 8 | D188: MAGNETAWAN, MUNICIPALITY OF | E188: 154.68 | F188: N | G188: 102.050362 | H188: 0 | I188: 308.6482415 | J188: 1.881561934 | K188: 18.53782002 | L188: 288.8701273
B189: 375 | C189: =VLOOKUP(B189,'2012 BB Tonnes (2)'!$B$5:$C$243,2,FALSE) -> 8 | D189: MCDOUGALL, MUNICIPALITY OF | E189: 182.29 | F189: N | G189: 0 | H189: 0 | I189: 770.5670086 | J189: 0 | K189: 76.85885128 | L189: 619.7871889
B190: 413 | C190: =VLOOKUP(B190,'2012 BB Tonnes (2)'!$B$5:$C$243,2,FALSE) -> 8 | D190: MCKELLAR, TOWNSHIP OF | E190: 88.6 | F190: N | G190: 0 | H190: 0 | I190: 861.2785553 | J190: 20.64209932 | K190: 86.10248307 | L190: 1189.925013
B191: 847 | C191: =VLOOKUP(B191,'2012 BB Tonnes (2)'!$B$5:$C$243,2,FALSE) -> 8 | D191: MCMURRICH/MONTEITH, TOWNSHIP OF | E191: 53.45 | F191: N | G191: 0 | H191: 0 | I191: 1076.281572 | J191: 0 | K191: 58.88811974 | L191: 308.523786
B192: 610 | C192: =VLOOKUP(B192,'2012 BB Tonnes (2)'!$B$5:$C$243,2,FALSE) -> 8 | D192: NEEBING, MUNICIPALITY OF | E192: 57.0627 | F192: N | G192: 0 | H192: 0 | I192: 363.463173 | J192: 3.504916522 | K192: 18.34841324 | L192: 1551.889026
B193: 866 | C193: =VLOOKUP(B193,'2012 BB Tonnes (2)'!$B$5:$C$243,2,FALSE) -> 8 | D193: NIPISSING, TOWNSHIP OF | E193: 183.065 | F193: N | G193: 0 | H193: 0 | I193: 198.0468686 | J193: 6.037363778 | K193: 6.24330156 | L193: 237.7731816
B194: 871 | C194: =VLOOKUP(B194,'2012 BB Tonnes (2)'!$B$5:$C$243,2,FALSE) -> 8 | D194: OCONNOR, TOWNSHIP OF | E194: 19.01197 | F194: N | G194: 0 | H194: 0 | I194: 488.3470782 | J194: 22.79248284 | K194: 25.55705695 | L194: 627.6064906
B195: 873 | C195: =VLOOKUP(B195,'2012 BB Tonnes (2)'!$B$5:$C$243,2,FALSE) -> 8 | D195: OLIVER PAIPOONGE, MUNICIPALITY OF | E195: 145.08571 | F195: N | G195: 0 | H195: 0 | I195: 330.7999802 | J195: 10.79244813 | K195: 17.56010292 | L195: 982.2409265
B196: 616 | C196: =VLOOKUP(B196,'2012 BB Tonnes (2)'!$B$5:$C$243,2,FALSE) -> 8 | D196: PERRY, TOWNSHIP OF | E196: 154.54258 | F196: N | G196: 0 | H196: 0 | I196: 756.9916977 | J196: 2.200040921 | K196: 59.29783235 | L196: 200.5591559
B197: 895 | C197: =VLOOKUP(B197,'2012 BB Tonnes (2)'!$B$5:$C$243,2,FALSE) -> 8 | D197: RAINY RIVER, TOWN OF | E197: 29.47944 | F197: Y | G197: 0 | H197: 0 | I197: 425.6183292 | J197: 0 | K197: 12.76856005 | L197: 566.3531152
B198: 897 | C198: =VLOOKUP(B198,'2012 BB Tonnes (2)'!$B$5:$C$243,2,FALSE) -> 8 | D198: RED LAKE, MUNICIPALITY OF | E198: 212.738944 | F198: Y | G198: 583.1275067 | H198: 170.3026222 | I198: 541.4066077 | J198: 10.70654934 | K198: 50.11461371 | L198: 285.3066612
B199: 404 | C199: =VLOOKUP(B199,'2012 BB Tonnes (2)'!$B$5:$C$243,2,FALSE) -> 8 | D199: SEGUIN, TOWNSHIP OF | E199: 442.69582 | F199: N | G199: 152.4079898 | H199: 0 | I199: 433.1965005 | J199: 5.009850782 | K199: 36.9921496 | L199: 1162.941597
B200: 974 | C200: =VLOOKUP(B200,'2012 BB Tonnes (2)'!$B$5:$C$243,2,FALSE) -> 8 | D200: SERPENT RIVER FNS | E200: 21.63739 | F200: N | G200: 450.7844985 | H200: 0 | I200: 464.9876903 | J200: 3.167664862 | K200: 63.30107282 | L200: 4115.168788
B201: 905 | C201: =VLOOKUP(B201,'2012 BB Tonnes (2)'!$B$5:$C$243,2,FALSE) -> 8 | D201: SHUNIAH, MUNICIPALITY OF | E201: 90.994944 | F201: Y | G201: 0 | H201: 0 | I201: 539.3839245 | J201: 0 | K201: 26.96919073 | L201: 232.4876941
B202: 907 | C202: =VLOOKUP(B202,'2012 BB Tonnes (2)'!$B$5:$C$243,2,FALSE) -> 8 | D202: SIOUX NARROWS NESTOR FALLS, TOWNSHIP OF | E202: 11.28752 | F202: N | G202: 0 | H202: 0 | I202: 3871.675089 | J202: 47.53302763 | K202: 195.9606716 | L202: 445.0740253
... 46 more rows
